Workbook

Sheet Ввод данных
J2: v. 2.0
J3: Расчет максимальной суммы кредита для заемщика по продукту "Военная ипотека"
J5: поля для ввода-
J7: поля с результатами расчета-
J9: Процентная ставка | L9: 0.115
J11: Дата рождения заемщика | L11: 1995-01-02
J13: Предельная дата выдачи кредита, до: | L13: 2017-01-15 | M13: =IF(L26<Справочники!$O$19,"Кредит д.б. выдан раньше либо кредитования невозможно") -> FALSE
J15: Срок целевого жилищного займа (ЦЖЗ) согласно свидетельству, до: | L15: 2040-02-01
J17: При изменении любых вводных параметоров необходимо нажать кнопку пересчета суммы кредита
J19: Расчетная максимальная сумма кредита для заемщика, руб. | L19: 2810000
J21: Максимальная сумма кредита, руб. | L21: =IF(MIN(L19,VLOOKUP($L$9,Справочники!$Q$3:$S$4,3,FALSE))<Справочники!$R$7,0,MIN(L19,VLOOKUP($L$9,Справочники!$Q$3:$S$4,3,FALSE))) -> 2100000
J24: Предельная дата выдачи кредита (дата договора + 2 мес.), до:
J26: ="Срок кредитного договора, мес. с даты выдачи кредита "&IF(L26<Справочники!$O$19,"(min 36 мес.)","") -> Срок кредитного договора, мес. с даты выдачи кредита | L26: =DATEDIF(L13,L30,"M")+1 -> 277 | M26: =IF(L26<Справочники!$O$19,"Срок кредита меньше допустимого") -> FALSE
J28: Возраст заемщика на дату выдачи кредита | L28: =DATEDIF($L$11,$L$13,"Y")& " г "&DATEDIF($L$11,$L$13,"M")-_xlfn.FLOOR.MATH(DATEDIF($L$11,$L$13,"M"),12)&" м" -> 22 г 0 м
J30: Срок кредитного договора, по: | K30: =IFERROR(IF(DATEDIF(L24,L30,"M")<Справочники!$O$9,"!",""),"!") ->  | L30: =EOMONTH(L15,-1) -> 2040-01-31
J32: Возраст заемщика на дату окончания кредитного договора, мес. | L32: =DATEDIF($L$11,$L$30,"Y")& " г "&DATEDIF($L$11,$L$30,"M")-_xlfn.FLOOR.MATH(DATEDIF($L$11,$L$30,"M"),12)&" м" -> 45 г 0 м
J37: Выбор условий кредитования
J39: Запрашиваемая сумма кредита, руб. | M39: =IF(L39>L21,"Превышение максимальной суммы","") -> 
J41: Общая сумма накоплений участника НИС на дату подписания договора, руб.
J43: Счет для получения заемщиком накоплений открыт в банке:
J45: Максимальная сумма накоплений для оплаты первоначального взноса, руб. | L45: =MIN(IF(L43="Иной",Справочники!$O$3, $L$41),L41) -> 0
J47: Сумма неиспользованных накоплений, на которую возможно увеличить сумму кредита | L47: =MIN(L41-L45,Справочники!$O$15) -> 0
J49: Увеличить сумму кредита, на неиспользованную сумму накоплений?
J51: Решение заемщика о сумме накоплений для оплаты первоначального взноса, руб. | M51: =IF(L51>L45,"Решение превышает сумму для использования накоплений","") -> 
J53: Собственные средства заемщика, руб.
J55: Общая сумма первоначального взноса, руб. | L55: =L51+L53 -> 0
J57: Расчет: сумма кредита + накопления + средства заемщика | L57: =L39+L51++L53 -> 0
J59: Оценочная стоимость жилья, руб. | M59: =IF(L39+L51>L59,"Кредит+Накопления > Оценки","") -> 
J61: Стоимость жилья по договору купли-продажи, руб. | M61: =IF(L39+L55<>L61,"Кредит+Первоначальный взнос≠Стоимости жилья","") -> 
J63: Коэффициент Кредит/Залог, % | L63: =IFERROR(L39/L61,0) -> 0 | M63: =IF($L$63>80%,"превышение К/З","") -> 

Sheet График платежей (hidden)
B2: Параметр | D2: Значение
B3: Сумма кредита | D3: 2810000
B4: Ставка | D4: ='Ввод данных'!$L$9 -> 0.115
B5: Максимальный срок кредита. | D5: ='Ввод данных'!$L$30 -> 2040-01-31
B6: Расчетный период полного погашения | D6: =MATCH(0,V11:V370,0) -> 
B7: Остаток долга на конец срока кредита | D7: =VLOOKUP(D5,$G$11:$O$370,8,TRUE) -> 2934526.101
B8: Расчетная дата полного погашения | D8: =VLOOKUP(D6,$F$11:$H$370,3,FALSE) ->  | P8: График платежей
B9: Возраст заемщика на дату погашения кредита | D9: =YEARFRAC('Ввод данных'!L11,$D$8) ->  | G9: Начало процентного периода | H9: Конец месяца (процентного периода) | I9: Процентный период, дн. | J9: День недели | K9: Первый рабочий день нового месяца | L9: Кол-во дней в году | M9: Платеж | N9: Общий долга на начало | O9: ОД на начало | P9: Накопленные %% на начало | Q9: Начислено за месяц | R9: Погашение ОД | S9: Погашение текущих % | T9: Погашение накопленных %% | U9: Формирование накопленных %% | V9: ОД на конец периода | W9: Накопленные %% на конец периода
F11: 1 | G11: ='Ввод данных'!$L$13 -> 2017-01-15 | H11: =EOMONTH(G11,0) -> 2017-01-31 | I11: =H11-G11 -> 16 | J11: =WEEKDAY(H11,11) -> 2 | K11: =WORKDAY(H11,IF(OR(J11=6,J11=7),1,0)) -> 2017-01-31 | L11: =VLOOKUP(YEAR(G11),Справочники!$C$3:$I$33,7,FALSE) -> 365 | M11: =VLOOKUP(YEAR(G11),Справочники!$C$3:$D$33,2,FALSE) -> 21678 | N11: =O11+P11 -> 2810000 | O11: =D3 -> 2810000 | P11: 0 | Q11: =O11*$D$4/L11*I11 -> 14165.47945 | R11: 0 | S11: 0 | T11: 0 | U11: =MAX(Q11-S11,0) -> 14165.47945 | V11: =O11-R11 -> 2810000 | W11: =P11+U11-T11 -> 14165.47945
F12: 2 | G12: =H11+1 -> 2017-02-01 | H12: =EOMONTH(G12,0) -> 2017-02-28 | I12: =H12-G12+1 -> 28 | J12: =WEEKDAY(H12,11) -> 2 | K12: =WORKDAY(H12,IF(OR(J12=6,J12=7),1,0)) -> 2017-02-28 | L12: =VLOOKUP(YEAR(G12),Справочники!$C$3:$I$33,7,FALSE) -> 365 | M12: =VLOOKUP(YEAR(G12),Справочники!$C$3:$D$33,2,FALSE)+MIN(W11,M11) -> 35843.47945 | N12: =O12+P12 -> 2824165.479 | O12: =V11 -> 2810000 | P12: =W11 -> 14165.47945 | Q12: =O12*$D$4/L12*I12 -> 24789.58904 | R12: =MIN(M12-T12-S12,O12) -> 0 | S12: =MIN(M12-T12,Q12) -> 21678 | T12: =MIN(M12,P12) -> 14165.47945 | U12: =MAX(Q12-S12,0) -> 3111.589041 | V12: =O12-R12 -> 2810000 | W12: 3111.589041
F13: 3 | G13: =H12+1 -> 2017-03-01 | H13: 2017-03-31 | I13: =H13-G13+1 -> 31 | J13: 5 | K13: 2017-03-31 | L13: =VLOOKUP(YEAR(G13),Справочники!$C$3:$I$33,7,FALSE) -> 365 | M13: =VLOOKUP(YEAR(G13),Справочники!$C$3:$D$33,2,FALSE)+IF('Ввод данных'!$L$49="да",'Ввод данных'!$L$47,0) -> 21678 | N13: 2813111.589 | O13: =V12 -> 2810000 | P13: 3111.589041 | Q13: =O13*$D$4/L13*I13 -> 27445.61644 | R13: 0 | S13: 18566.41096 | T13: 3111.589041 | U13: =MAX(Q13-S13,0) -> 8879.205479 | V13: 2810000 | W13: 8879.205479
F14: 4 | G14: 2017-04-01 | H14: 2017-04-30 | I14: 30 | J14: 7 | K14: 2017-05-01 | L14: =VLOOKUP(YEAR(G14),Справочники!$C$3:$I$33,7,FALSE) -> 365 | M14: =VLOOKUP(YEAR(G14),Справочники!$C$3:$D$33,2,FALSE) -> 21678 | N14: 2818879.205 | O14: 2810000 | P14: 8879.205479 | Q14: 26560.27397 | R14: 0 | S14: 12798.79452 | T14: 8879.205479 | U14: 13761.47945 | V14: 2810000 | W14: 13761.47945
F15: 5 | G15: 2017-05-01 | H15: 2017-05-31 | I15: 31 | J15: 3 | K15: 2017-05-31 | L15: =VLOOKUP(YEAR(G15),Справочники!$C$3:$I$33,7,FALSE) -> 365 | M15: =VLOOKUP(YEAR(G15),Справочники!$C$3:$D$33,2,FALSE) -> 21678 | N15: 2823761.479 | O15: 2810000 | P15: 13761.47945 | Q15: 27445.61644 | R15: 0 | S15: 7916.520548 | T15: 13761.47945 | U15: 19529.09589 | V15: 2810000 | W15: 19529.09589
F16: 6 | G16: 2017-06-01 | H16: 2017-06-30 | I16: 30 | J16: 5 | K16: 2017-06-30 | L16: =VLOOKUP(YEAR(G16),Справочники!$C$3:$I$33,7,FALSE) -> 365 | M16: =VLOOKUP(YEAR(G16),Справочники!$C$3:$D$33,2,FALSE) -> 21678 | N16: 2829529.096 | O16: 2810000 | P16: 19529.09589 | Q16: 26560.27397 | R16: 0 | S16: 2148.90411 | T16: 19529.09589 | U16: 24411.36986 | V16: 2810000 | W16: 24411.36986
F17: 7 | G17: 2017-07-01 | H17: 2017-07-31 | I17: 31 | J17: 1 | K17: 2017-07-31 | L17: =VLOOKUP(YEAR(G17),Справочники!$C$3:$I$33,7,FALSE) -> 365 | M17: =VLOOKUP(YEAR(G17),Справочники!$C$3:$D$33,2,FALSE) -> 21678 | N17: 2834411.37 | O17: =V16 -> 2810000 | P17: =W16 -> 24411.36986 | Q17: 27445.61644 | R17: 0 | S17: 0 | T17: 21678 | U17: =MAX(Q17-S17,0) -> 27445.61644 | V17: 2810000 | W17: 30178.9863
F18: 8 | G18: 2017-08-01 | H18: 2017-08-31 | I18: 31 | J18: 4 | K18: 2017-08-31 | L18: =VLOOKUP(YEAR(G18),Справочники!$C$3:$I$33,7,FALSE) -> 365 | M18: =VLOOKUP(YEAR(G18),Справочники!$C$3:$D$33,2,FALSE) -> 21678 | N18: 2840178.986 | O18: =V17 -> 2810000 | P18: =W17 -> 30178.9863 | Q18: 27445.61644 | R18: 0 | S18: 0 | T18: 21678 | U18: 27445.61644 | V18: 2810000 | W18: 35946.60274
F19: 9 | G19: 2017-09-01 | H19: 2017-09-30 | I19: 30 | J19: 6 | K19: 2017-10-02 | L19: =VLOOKUP(YEAR(G19),Справочники!$C$3:$I$33,7,FALSE) -> 365 | M19: =VLOOKUP(YEAR(G19),Справочники!$C$3:$D$33,2,FALSE) -> 21678 | N19: 2845946.603 | O19: 2810000 | P19: 35946.60274 | Q19: 26560.27397 | R19: 0 | S19: 0 | T19: 21678 | U19: 26560.27397 | V19: 2810000 | W19: 40828.87671
F20: 10 | G20: 2017-10-01 | H20: 2017-10-31 | I20: 31 | J20: 2 | K20: 2017-10-31 | L20: =VLOOKUP(YEAR(G20),Справочники!$C$3:$I$33,7,FALSE) -> 365 | M20: =VLOOKUP(YEAR(G20),Справочники!$C$3:$D$33,2,FALSE) -> 21678 | N20: 2850828.877 | O20: 2810000 | P20: 40828.87671 | Q20: 27445.61644 | R20: 0 | S20: 0 | T20: 21678 | U20: 27445.61644 | V20: 2810000 | W20: 46596.49315
F21: 11 | G21: 2017-11-01 | H21: 2017-11-30 | I21: 30 | J21: 4 | K21: 2017-11-30 | L21: =VLOOKUP(YEAR(G21),Справочники!$C$3:$I$33,7,FALSE) -> 365 | M21: =VLOOKUP(YEAR(G21),Справочники!$C$3:$D$33,2,FALSE) -> 21678 | N21: 2856596.493 | O21: 2810000 | P21: 46596.49315 | Q21: 26560.27397 | R21: 0 | S21: 0 | T21: 21678 | U21: 26560.27397 | V21: 2810000 | W21: 51478.76712
F22: 12 | G22: 2017-12-01 | H22: 2017-12-31 | I22: 31 | J22: 7 | K22: 2018-01-01 | L22: =VLOOKUP(YEAR(G22),Справочники!$C$3:$I$33,7,FALSE) -> 365 | M22: =VLOOKUP(YEAR(G22),Справочники!$C$3:$D$33,2,FALSE) -> 21678 | N22: 2861478.767 | O22: 2810000 | P22: 51478.76712 | Q22: 27445.61644 | R22: 0 | S22: 0 | T22: 21678 | U22: 27445.61644 | V22: 2810000 | W22: 57246.38356
F23: 13 | G23: 2018-01-01 | H23: 2018-01-31 | I23: 31 | J23: 3 | K23: 2018-01-31 | L23: =VLOOKUP(YEAR(G23),Справочники!$C$3:$I$33,7,FALSE) -> 365 | M23: =VLOOKUP(YEAR(G23),Справочники!$C$3:$D$33,2,FALSE) -> 21678 | N23: 2867246.384 | O23: =V22 -> 2810000 | P23: =W22 -> 57246.38356 | Q23: 27445.61644 | R23: 0 | S23: 0 | T23: 21678 | U23: 27445.61644 | V23: 2810000 | W23: 63014
F24: 14 | G24: 2018-02-01 | H24: 2018-02-28 | I24: 28 | J24: 3 | K24: 2018-02-28 | L24: =VLOOKUP(YEAR(G24),Справочники!$C$3:$I$33,7,FALSE) -> 365 | M24: =VLOOKUP(YEAR(G24),Справочники!$C$3:$D$33,2,FALSE) -> 21678 | N24: 2873014 | O24: 2810000 | P24: 63014 | Q24: 24789.58904 | R24: 0 | S24: 0 | T24: 21678 | U24: 24789.58904 | V24: 2810000 | W24: 66125.58904
F25: 15 | G25: 2018-03-01 | H25: 2018-03-31 | I25: 31 | J25: 6 | K25: 2018-04-02 | L25: =VLOOKUP(YEAR(G25),Справочники!$C$3:$I$33,7,FALSE) -> 365 | M25: =VLOOKUP(YEAR(G25),Справочники!$C$3:$D$33,2,FALSE) -> 21678 | N25: 2876125.589 | O25: 2810000 | P25: 66125.58904 | Q25: 27445.61644 | R25: 0 | S25: 0 | T25: 21678 | U25: 27445.61644 | V25: 2810000 | W25: 71893.20548
F26: 16 | G26: 2018-04-01 | H26: 2018-04-30 | I26: 30 | J26: 1 | K26: 2018-04-30 | L26: =VLOOKUP(YEAR(G26),Справочники!$C$3:$I$33,7,FALSE) -> 365 | M26: =VLOOKUP(YEAR(G26),Справочники!$C$3:$D$33,2,FALSE) -> 21678 | N26: 2881893.205 | O26: 2810000 | P26: 71893.20548 | Q26: 26560.27397 | R26: 0 | S26: 0 | T26: 21678 | U26: 26560.27397 | V26: 2810000 | W26: 76775.47945
F27: 17 | G27: 2018-05-01 | H27: 2018-05-31 | I27: 31 | J27: 4 | K27: 2018-05-31 | L27: =VLOOKUP(YEAR(G27),Справочники!$C$3:$I$33,7,FALSE) -> 365 | M27: =VLOOKUP(YEAR(G27),Справочники!$C$3:$D$33,2,FALSE) -> 21678 | N27: 2886775.479 | O27: 2810000 | P27: 76775.47945 | Q27: 27445.61644 | R27: 0 | S27: 0 | T27: 21678 | U27: 27445.61644 | V27: 2810000 | W27: 82543.09589
F28: 18 | G28: 2018-06-01 | H28: 2018-06-30 | I28: 30 | J28: 6 | K28: 2018-07-02 | L28: =VLOOKUP(YEAR(G28),Справочники!$C$3:$I$33,7,FALSE) -> 365 | M28: =VLOOKUP(YEAR(G28),Справочники!$C$3:$D$33,2,FALSE) -> 21678 | N28: 2892543.096 | O28: 2810000 | P28: 82543.09589 | Q28: 26560.27397 | R28: 0 | S28: 0 | T28: 21678 | U28: 26560.27397 | V28: 2810000 | W28: 87425.36986
F29: 19 | G29: 2018-07-01 | H29: 2018-07-31 | I29: 31 | J29: 2 | K29: 2018-07-31 | L29: =VLOOKUP(YEAR(G29),Справочники!$C$3:$I$33,7,FALSE) -> 365 | M29: =VLOOKUP(YEAR(G29),Справочники!$C$3:$D$33,2,FALSE) -> 21678 | N29: 2897425.37 | O29: 2810000 | P29: 87425.36986 | Q29: 27445.61644 | R29: 0 | S29: 0 | T29: 21678 | U29: 27445.61644 | V29: 2810000 | W29: 93192.9863
F30: 20 | G30: 2018-08-01 | H30: 2018-08-31 | I30: 31 | J30: 5 | K30: 2018-08-31 | L30: =VLOOKUP(YEAR(G30),Справочники!$C$3:$I$33,7,FALSE) -> 365 | M30: =VLOOKUP(YEAR(G30),Справочники!$C$3:$D$33,2,FALSE) -> 21678 | N30: 2903192.986 | O30: 2810000 | P30: 93192.9863 | Q30: 27445.61644 | R30: 0 | S30: 0 | T30: 21678 | U30: 27445.61644 | V30: 2810000 | W30: 98960.60274
F31: 21 | G31: 2018-09-01 | H31: 2018-09-30 | I31: 30 | J31: 7 | K31: 2018-10-01 | L31: =VLOOKUP(YEAR(G31),Справочники!$C$3:$I$33,7,FALSE) -> 365 | M31: =VLOOKUP(YEAR(G31),Справочники!$C$3:$D$33,2,FALSE) -> 21678 | N31: 2908960.603 | O31: 2810000 | P31: 98960.60274 | Q31: 26560.27397 | R31: 0 | S31: 0 | T31: 21678 | U31: 26560.27397 | V31: 2810000 | W31: 103842.8767
F32: 22 | G32: 2018-10-01 | H32: 2018-10-31 | I32: 31 | J32: 3 | K32: 2018-10-31 | L32: =VLOOKUP(YEAR(G32),Справочники!$C$3:$I$33,7,FALSE) -> 365 | M32: =VLOOKUP(YEAR(G32),Справочники!$C$3:$D$33,2,FALSE) -> 21678 | N32: 2913842.877 | O32: 2810000 | P32: 103842.8767 | Q32: 27445.61644 | R32: 0 | S32: 0 | T32: 21678 | U32: 27445.61644 | V32: 2810000 | W32: 109610.4932
F33: 23 | G33: 2018-11-01 | H33: 2018-11-30 | I33: 30 | J33: 5 | K33: 2018-11-30 | L33: =VLOOKUP(YEAR(G33),Справочники!$C$3:$I$33,7,FALSE) -> 365 | M33: =VLOOKUP(YEAR(G33),Справочники!$C$3:$D$33,2,FALSE) -> 21678 | N33: 2919610.493 | O33: 2810000 | P33: 109610.4932 | Q33: 26560.27397 | R33: 0 | S33: 0 | T33: 21678 | U33: 26560.27397 | V33: 2810000 | W33: 114492.7671
F34: 24 | G34: 2018-12-01 | H34: 2018-12-31 | I34: 31 | J34: 1 | K34: 2018-12-31 | L34: =VLOOKUP(YEAR(G34),Справочники!$C$3:$I$33,7,FALSE) -> 365 | M34: =VLOOKUP(YEAR(G34),Справочники!$C$3:$D$33,2,FALSE) -> 21678 | N34: 2924492.767 | O34: 2810000 | P34: 114492.7671 | Q34: 27445.61644 | R34: 0 | S34: 0 | T34: 21678 | U34: 27445.61644 | V34: 2810000 | W34: 120260.3836
F35: 25 | G35: 2019-01-01 | H35: 2019-01-31 | I35: 31 | J35: 4 | K35: 2019-01-31 | L35: =VLOOKUP(YEAR(G35),Справочники!$C$3:$I$33,7,FALSE) -> 365 | M35: =VLOOKUP(YEAR(G35),Справочники!$C$3:$D$33,2,FALSE) -> 21678 | N35: 2930260.384 | O35: 2810000 | P35: 120260.3836 | Q35: 27445.61644 | R35: 0 | S35: 0 | T35: 21678 | U35: 27445.61644 | V35: 2810000 | W35: 126028
F36: 26 | G36: 2019-02-01 | H36: 2019-02-28 | I36: 28 | J36: 4 | K36: 2019-02-28 | L36: =VLOOKUP(YEAR(G36),Справочники!$C$3:$I$33,7,FALSE) -> 365 | M36: =VLOOKUP(YEAR(G36),Справочники!$C$3:$D$33,2,FALSE) -> 21678 | N36: 2936028 | O36: 2810000 | P36: 126028 | Q36: 24789.58904 | R36: 0 | S36: 0 | T36: 21678 | U36: 24789.58904 | V36: 2810000 | W36: 129139.589
F37: 27 | G37: 2019-03-01 | H37: 2019-03-31 | I37: 31 | J37: 7 | K37: 2019-04-01 | L37: =VLOOKUP(YEAR(G37),Справочники!$C$3:$I$33,7,FALSE) -> 365 | M37: =VLOOKUP(YEAR(G37),Справочники!$C$3:$D$33,2,FALSE) -> 21678 | N37: 2939139.589 | O37: 2810000 | P37: 129139.589 | Q37: 27445.61644 | R37: 0 | S37: 0 | T37: 21678 | U37: 27445.61644 | V37: 2810000 | W37: 134907.2055
F38: 28 | G38: 2019-04-01 | H38: 2019-04-30 | I38: 30 | J38: 2 | K38: 2019-04-30 | L38: =VLOOKUP(YEAR(G38),Справочники!$C$3:$I$33,7,FALSE) -> 365 | M38: =VLOOKUP(YEAR(G38),Справочники!$C$3:$D$33,2,FALSE) -> 21678 | N38: 2944907.205 | O38: 2810000 | P38: 134907.2055 | Q38: 26560.27397 | R38: 0 | S38: 0 | T38: 21678 | U38: 26560.27397 | V38: 2810000 | W38: 139789.4795
F39: 29 | G39: 2019-05-01 | H39: 2019-05-31 | I39: 31 | J39: 5 | K39: 2019-05-31 | L39: =VLOOKUP(YEAR(G39),Справочники!$C$3:$I$33,7,FALSE) -> 365 | M39: =VLOOKUP(YEAR(G39),Справочники!$C$3:$D$33,2,FALSE) -> 21678 | N39: 2949789.479 | O39: 2810000 | P39: 139789.4795 | Q39: 27445.61644 | R39: 0 | S39: 0 | T39: 21678 | U39: 27445.61644 | V39: 2810000 | W39: 145557.0959
F40: 30 | G40: 2019-06-01 | H40: 2019-06-30 | I40: 30 | J40: 7 | K40: 2019-07-01 | L40: =VLOOKUP(YEAR(G40),Справочники!$C$3:$I$33,7,FALSE) -> 365 | M40: =VLOOKUP(YEAR(G40),Справочники!$C$3:$D$33,2,FALSE) -> 21678 | N40: 2955557.096 | O40: 2810000 | P40: 145557.0959 | Q40: 26560.27397 | R40: 0 | S40: 0 | T40: 21678 | U40: 26560.27397 | V40: 2810000 | W40: 150439.3699
F41: 31 | G41: 2019-07-01 | H41: 2019-07-31 | I41: 31 | J41: 3 | K41: 2019-07-31 | L41: =VLOOKUP(YEAR(G41),Справочники!$C$3:$I$33,7,FALSE) -> 365 | M41: =VLOOKUP(YEAR(G41),Справочники!$C$3:$D$33,2,FALSE) -> 21678 | N41: 2960439.37 | O41: 2810000 | P41: 150439.3699 | Q41: 27445.61644 | R41: 0 | S41: 0 | T41: 21678 | U41: 27445.61644 | V41: 2810000 | W41: 156206.9863
F42: 32 | G42: 2019-08-01 | H42: 2019-08-31 | I42: 31 | J42: 6 | K42: 2019-09-02 | L42: =VLOOKUP(YEAR(G42),Справочники!$C$3:$I$33,7,FALSE) -> 365 | M42: =VLOOKUP(YEAR(G42),Справочники!$C$3:$D$33,2,FALSE) -> 21678 | N42: 2966206.986 | O42: 2810000 | P42: 156206.9863 | Q42: 27445.61644 | R42: 0 | S42: 0 | T42: 21678 | U42: 27445.61644 | V42: 2810000 | W42: 161974.6027
F43: 33 | G43: 2019-09-01 | H43: 2019-09-30 | I43: 30 | J43: 1 | K43: 2019-09-30 | L43: =VLOOKUP(YEAR(G43),Справочники!$C$3:$I$33,7,FALSE) -> 365 | M43: =VLOOKUP(YEAR(G43),Справочники!$C$3:$D$33,2,FALSE) -> 21678 | N43: 2971974.603 | O43: 2810000 | P43: 161974.6027 | Q43: 26560.27397 | R43: 0 | S43: 0 | T43: 21678 | U43: 26560.27397 | V43: =O43-R43 -> 2810000 | W43: =P43+U43-T43 -> 166856.8767
F44: 34 | G44: 2019-10-01 | H44: 2019-10-31 | I44: 31 | J44: 4 | K44: 2019-10-31 | L44: =VLOOKUP(YEAR(G44),Справочники!$C$3:$I$33,7,FALSE) -> 365 | M44: =VLOOKUP(YEAR(G44),Справочники!$C$3:$D$33,2,FALSE) -> 21678 | N44: 2976856.877 | O44: 2810000 | P44: 166856.8767 | Q44: 27445.61644 | R44: 0 | S44: 0 | T44: 21678 | U44: 27445.61644 | V44: 2810000 | W44: 172624.4932
F45: 35 | G45: 2019-11-01 | H45: 2019-11-30 | I45: 30 | J45: 6 | K45: 2019-12-02 | L45: =VLOOKUP(YEAR(G45),Справочники!$C$3:$I$33,7,FALSE) -> 365 | M45: =VLOOKUP(YEAR(G45),Справочники!$C$3:$D$33,2,FALSE) -> 21678 | N45: 2982624.493 | O45: 2810000 | P45: 172624.4932 | Q45: 26560.27397 | R45: 0 | S45: 0 | T45: 21678 | U45: 26560.27397 | V45: 2810000 | W45: 177506.7671
F46: 36 | G46: 2019-12-01 | H46: 2019-12-31 | I46: 31 | J46: 2 | K46: 2019-12-31 | L46: =VLOOKUP(YEAR(G46),Справочники!$C$3:$I$33,7,FALSE) -> 365 | M46: =VLOOKUP(YEAR(G46),Справочники!$C$3:$D$33,2,FALSE) -> 21678 | N46: 2987506.767 | O46: 2810000 | P46: 177506.7671 | Q46: 27445.61644 | R46: 0 | S46: 0 | T46: 21678 | U46: 27445.61644 | V46: 2810000 | W46: 183274.3836
F47: 37 | G47: 2020-01-01 | H47: 2020-01-31 | I47: 31 | J47: 5 | K47: 2020-01-31 | L47: =VLOOKUP(YEAR(G47),Справочники!$C$3:$I$33,7,FALSE) -> 366 | M47: =VLOOKUP(YEAR(G47),Справочники!$C$3:$D$33,2,FALSE) -> 21678 | N47: 2993274.384 | O47: 2810000 | P47: 183274.3836 | Q47: 27370.62842 | R47: 0 | S47: 0 | T47: 21678 | U47: 27370.62842 | V47: 2810000 | W47: 188967.012
F48: 38 | G48: 2020-02-01 | H48: 2020-02-29 | I48: 29 | J48: 6 | K48: 2020-03-02 | L48: =VLOOKUP(YEAR(G48),Справочники!$C$3:$I$33,7,FALSE) -> 366 | M48: =VLOOKUP(YEAR(G48),Справочники!$C$3:$D$33,2,FALSE) -> 21678 | N48: 2998967.012 | O48: 2810000 | P48: 188967.012 | Q48: 25604.78142 | R48: 0 | S48: 0 | T48: 21678 | U48: 25604.78142 | V48: 2810000 | W48: 192893.7934
F49: 39 | G49: 2020-03-01 | H49: 2020-03-31 | I49: 31 | J49: 2 | K49: 2020-03-31 | L49: =VLOOKUP(YEAR(G49),Справочники!$C$3:$I$33,7,FALSE) -> 366 | M49: =VLOOKUP(YEAR(G49),Справочники!$C$3:$D$33,2,FALSE) -> 21678 | N49: 3002893.793 | O49: 2810000 | P49: 192893.7934 | Q49: 27370.62842 | R49: 0 | S49: 0 | T49: 21678 | U49: 27370.62842 | V49: 2810000 | W49: 198586.4218
F50: 40 | G50: 2020-04-01 | H50: 2020-04-30 | I50: 30 | J50: 4 | K50: 2020-04-30 | L50: =VLOOKUP(YEAR(G50),Справочники!$C$3:$I$33,7,FALSE) -> 366 | M50: =VLOOKUP(YEAR(G50),Справочники!$C$3:$D$33,2,FALSE) -> 21678 | N50: 3008586.422 | O50: 2810000 | P50: 198586.4218 | Q50: 26487.70492 | R50: 0 | S50: 0 | T50: 21678 | U50: 26487.70492 | V50: 2810000 | W50: 203396.1267
F51: 41 | G51: 2020-05-01 | H51: 2020-05-31 | I51: 31 | J51: 7 | K51: 2020-06-01 | L51: =VLOOKUP(YEAR(G51),Справочники!$C$3:$I$33,7,FALSE) -> 366 | M51: =VLOOKUP(YEAR(G51),Справочники!$C$3:$D$33,2,FALSE) -> 21678 | N51: 3013396.127 | O51: 2810000 | P51: 203396.1267 | Q51: 27370.62842 | R51: 0 | S51: 0 | T51: 21678 | U51: 27370.62842 | V51: 2810000 | W51: 209088.7551
F52: 42 | G52: 2020-06-01 | H52: 2020-06-30 | I52: 30 | J52: 2 | K52: 2020-06-30 | L52: =VLOOKUP(YEAR(G52),Справочники!$C$3:$I$33,7,FALSE) -> 366 | M52: =VLOOKUP(YEAR(G52),Справочники!$C$3:$D$33,2,FALSE) -> 21678 | N52: 3019088.755 | O52: 2810000 | P52: 209088.7551 | Q52: 26487.70492 | R52: 0 | S52: 0 | T52: 21678 | U52: 26487.70492 | V52: 2810000 | W52: 213898.4601
F53: 43 | G53: 2020-07-01 | H53: 2020-07-31 | I53: 31 | J53: 5 | K53: 2020-07-31 | L53: =VLOOKUP(YEAR(G53),Справочники!$C$3:$I$33,7,FALSE) -> 366 | M53: =VLOOKUP(YEAR(G53),Справочники!$C$3:$D$33,2,FALSE) -> 21678 | N53: 3023898.46 | O53: 2810000 | P53: 213898.4601 | Q53: 27370.62842 | R53: 0 | S53: 0 | T53: 21678 | U53: 27370.62842 | V53: 2810000 | W53: 219591.0885
F54: 44 | G54: 2020-08-01 | H54: 2020-08-31 | I54: 31 | J54: 1 | K54: 2020-08-31 | L54: =VLOOKUP(YEAR(G54),Справочники!$C$3:$I$33,7,FALSE) -> 366 | M54: =VLOOKUP(YEAR(G54),Справочники!$C$3:$D$33,2,FALSE) -> 21678 | N54: 3029591.088 | O54: 2810000 | P54: 219591.0885 | Q54: 27370.62842 | R54: 0 | S54: 0 | T54: 21678 | U54: 27370.62842 | V54: 2810000 | W54: 225283.7169
F55: 45 | G55: 2020-09-01 | H55: 2020-09-30 | I55: 30 | J55: 3 | K55: 2020-09-30 | L55: =VLOOKUP(YEAR(G55),Справочники!$C$3:$I$33,7,FALSE) -> 366 | M55: =VLOOKUP(YEAR(G55),Справочники!$C$3:$D$33,2,FALSE) -> 21678 | N55: 3035283.717 | O55: 2810000 | P55: 225283.7169 | Q55: 26487.70492 | R55: 0 | S55: 0 | T55: 21678 | U55: 26487.70492 | V55: 2810000 | W55: 230093.4218
F56: 46 | G56: 2020-10-01 | H56: 2020-10-31 | I56: 31 | J56: 6 | K56: 2020-11-02 | L56: =VLOOKUP(YEAR(G56),Справочники!$C$3:$I$33,7,FALSE) -> 366 | M56: =VLOOKUP(YEAR(G56),Справочники!$C$3:$D$33,2,FALSE) -> 21678 | N56: 3040093.422 | O56: 2810000 | P56: 230093.4218 | Q56: 27370.62842 | R56: 0 | S56: 0 | T56: 21678 | U56: 27370.62842 | V56: 2810000 | W56: 235786.0502
F57: 47 | G57: 2020-11-01 | H57: 2020-11-30 | I57: 30 | J57: 1 | K57: 2020-11-30 | L57: =VLOOKUP(YEAR(G57),Справочники!$C$3:$I$33,7,FALSE) -> 366 | M57: =VLOOKUP(YEAR(G57),Справочники!$C$3:$D$33,2,FALSE) -> 21678 | N57: 3045786.05 | O57: 2810000 | P57: 235786.0502 | Q57: 26487.70492 | R57: 0 | S57: 0 | T57: 21678 | U57: 26487.70492 | V57: 2810000 | W57: 240595.7551
F58: 48 | G58: 2020-12-01 | H58: 2020-12-31 | I58: 31 | J58: 4 | K58: 2020-12-31 | L58: =VLOOKUP(YEAR(G58),Справочники!$C$3:$I$33,7,FALSE) -> 366 | M58: =VLOOKUP(YEAR(G58),Справочники!$C$3:$D$33,2,FALSE) -> 21678 | N58: 3050595.755 | O58: 2810000 | P58: 240595.7551 | Q58: 27370.62842 | R58: 0 | S58: 0 | T58: 21678 | U58: 27370.62842 | V58: 2810000 | W58: 246288.3836
F59: 49 | G59: 2021-01-01 | H59: 2021-01-31 | I59: 31 | J59: 7 | K59: 2021-02-01 | L59: =VLOOKUP(YEAR(G59),Справочники!$C$3:$I$33,7,FALSE) -> 365 | M59: =VLOOKUP(YEAR(G59),Справочники!$C$3:$D$33,2,FALSE) -> 22350.018 | N59: 3056288.384 | O59: 2810000 | P59: 246288.3836 | Q59: 27445.61644 | R59: 0 | S59: 0 | T59: 22350.018 | U59: 27445.61644 | V59: 2810000 | W59: 251383.982
F60: 50 | G60: 2021-02-01 | H60: 2021-02-28 | I60: 28 | J60: 7 | K60: 2021-03-01 | L60: =VLOOKUP(YEAR(G60),Справочники!$C$3:$I$33,7,FALSE) -> 365 | M60: =VLOOKUP(YEAR(G60),Справочники!$C$3:$D$33,2,FALSE) -> 22350.018 | N60: 3061383.982 | O60: 2810000 | P60: 251383.982 | Q60: 24789.58904 | R60: 0 | S60: 0 | T60: 22350.018 | U60: 24789.58904 | V60: 2810000 | W60: 253823.553
F61: 51 | G61: 2021-03-01 | H61: 2021-03-31 | I61: 31 | J61: 3 | K61: 2021-03-31 | L61: =VLOOKUP(YEAR(G61),Справочники!$C$3:$I$33,7,FALSE) -> 365 | M61: =VLOOKUP(YEAR(G61),Справочники!$C$3:$D$33,2,FALSE) -> 22350.018 | N61: 3063823.553 | O61: 2810000 | P61: 253823.553 | Q61: 27445.61644 | R61: 0 | S61: 0 | T61: 22350.018 | U61: 27445.61644 | V61: 2810000 | W61: 258919.1515
F62: 52 | G62: 2021-04-01 | H62: 2021-04-30 | I62: 30 | J62: 5 | K62: 2021-04-30 | L62: =VLOOKUP(YEAR(G62),Справочники!$C$3:$I$33,7,FALSE) -> 365 | M62: =VLOOKUP(YEAR(G62),Справочники!$C$3:$D$33,2,FALSE) -> 22350.018 | N62: 3068919.151 | O62: 2810000 | P62: 258919.1515 | Q62: 26560.27397 | R62: 0 | S62: 0 | T62: 22350.018 | U62: 26560.27397 | V62: 2810000 | W62: 263129.4075
F63: 53 | G63: 2021-05-01 | H63: 2021-05-31 | I63: 31 | J63: 1 | K63: 2021-05-31 | L63: =VLOOKUP(YEAR(G63),Справочники!$C$3:$I$33,7,FALSE) -> 365 | M63: =VLOOKUP(YEAR(G63),Справочники!$C$3:$D$33,2,FALSE) -> 22350.018 | N63: 3073129.407 | O63: 2810000 | P63: 263129.4075 | Q63: 27445.61644 | R63: 0 | S63: 0 | T63: 22350.018 | U63: 27445.61644 | V63: 2810000 | W63: 268225.0059
F64: 54 | G64: 2021-06-01 | H64: 2021-06-30 | I64: 30 | J64: 3 | K64: 2021-06-30 | L64: =VLOOKUP(YEAR(G64),Справочники!$C$3:$I$33,7,FALSE) -> 365 | M64: =VLOOKUP(YEAR(G64),Справочники!$C$3:$D$33,2,FALSE) -> 22350.018 | N64: 3078225.006 | O64: 2810000 | P64: 268225.0059 | Q64: 26560.27397 | R64: 0 | S64: 0 | T64: 22350.018 | U64: 26560.27397 | V64: 2810000 | W64: 272435.2619
F65: 55 | G65: 2021-07-01 | H65: 2021-07-31 | I65: 31 | J65: 6 | K65: 2021-08-02 | L65: =VLOOKUP(YEAR(G65),Справочники!$C$3:$I$33,7,FALSE) -> 365 | M65: =VLOOKUP(YEAR(G65),Справочники!$C$3:$D$33,2,FALSE) -> 22350.018 | N65: 3082435.262 | O65: 2810000 | P65: 272435.2619 | Q65: 27445.61644 | R65: 0 | S65: 0 | T65: 22350.018 | U65: 27445.61644 | V65: 2810000 | W65: 277530.8603
F66: 56 | G66: 2021-08-01 | H66: 2021-08-31 | I66: 31 | J66: 2 | K66: 2021-08-31 | L66: =VLOOKUP(YEAR(G66),Справочники!$C$3:$I$33,7,FALSE) -> 365 | M66: =VLOOKUP(YEAR(G66),Справочники!$C$3:$D$33,2,FALSE) -> 22350.018 | N66: 3087530.86 | O66: 2810000 | P66: 277530.8603 | Q66: 27445.61644 | R66: 0 | S66: 0 | T66: 22350.018 | U66: 27445.61644 | V66: 2810000 | W66: 282626.4587
F67: 57 | G67: 2021-09-01 | H67: 2021-09-30 | I67: 30 | J67: 4 | K67: 2021-09-30 | L67: =VLOOKUP(YEAR(G67),Справочники!$C$3:$I$33,7,FALSE) -> 365 | M67: =VLOOKUP(YEAR(G67),Справочники!$C$3:$D$33,2,FALSE) -> 22350.018 | N67: 3092626.459 | O67: 2810000 | P67: 282626.4587 | Q67: 26560.27397 | R67: 0 | S67: 0 | T67: 22350.018 | U67: 26560.27397 | V67: 2810000 | W67: 286836.7147
F68: 58 | G68: 2021-10-01 | H68: 2021-10-31 | I68: 31 | J68: 7 | K68: 2021-11-01 | L68: =VLOOKUP(YEAR(G68),Справочники!$C$3:$I$33,7,FALSE) -> 365 | M68: =VLOOKUP(YEAR(G68),Справочники!$C$3:$D$33,2,FALSE) -> 22350.018 | N68: 3096836.715 | O68: 2810000 | P68: 286836.7147 | Q68: 27445.61644 | R68: 0 | S68: 0 | T68: 22350.018 | U68: 27445.61644 | V68: 2810000 | W68: 291932.3132
F69: 59 | G69: 2021-11-01 | H69: 2021-11-30 | I69: 30 | J69: 2 | K69: 2021-11-30 | L69: =VLOOKUP(YEAR(G69),Справочники!$C$3:$I$33,7,FALSE) -> 365 | M69: =VLOOKUP(YEAR(G69),Справочники!$C$3:$D$33,2,FALSE) -> 22350.018 | N69: 3101932.313 | O69: 2810000 | P69: 291932.3132 | Q69: 26560.27397 | R69: 0 | S69: 0 | T69: 22350.018 | U69: 26560.27397 | V69: 2810000 | W69: 296142.5691
F70: 60 | G70: 2021-12-01 | H70: 2021-12-31 | I70: 31 | J70: 5 | K70: 2021-12-31 | L70: =VLOOKUP(YEAR(G70),Справочники!$C$3:$I$33,7,FALSE) -> 365 | M70: =VLOOKUP(YEAR(G70),Справочники!$C$3:$D$33,2,FALSE) -> 22350.018 | N70: 3106142.569 | O70: 2810000 | P70: 296142.5691 | Q70: 27445.61644 | R70: 0 | S70: 0 | T70: 22350.018 | U70: 27445.61644 | V70: 2810000 | W70: 301238.1676
F71: 61 | G71: 2022-01-01 | H71: 2022-01-31 | I71: 31 | J71: 1 | K71: 2022-01-31 | L71: =VLOOKUP(YEAR(G71),Справочники!$C$3:$I$33,7,FALSE) -> 365 | M71: =VLOOKUP(YEAR(G71),Справочники!$C$3:$D$33,2,FALSE) -> 23020.51854 | N71: 3111238.168 | O71: 2810000 | P71: 301238.1676 | Q71: 27445.61644 | R71: 0 | S71: 0 | T71: 23020.51854 | U71: 27445.61644 | V71: 2810000 | W71: 305663.2655
F72: 62 | G72: 2022-02-01 | H72: 2022-02-28 | I72: 28 | J72: 1 | K72: 2022-02-28 | L72: =VLOOKUP(YEAR(G72),Справочники!$C$3:$I$33,7,FALSE) -> 365 | M72: =VLOOKUP(YEAR(G72),Справочники!$C$3:$D$33,2,FALSE) -> 23020.51854 | N72: 3115663.265 | O72: 2810000 | P72: 305663.2655 | Q72: 24789.58904 | R72: 0 | S72: 0 | T72: 23020.51854 | U72: 24789.58904 | V72: 2810000 | W72: 307432.336
F73: 63 | G73: 2022-03-01 | H73: 2022-03-31 | I73: 31 | J73: 4 | K73: 2022-03-31 | L73: =VLOOKUP(YEAR(G73),Справочники!$C$3:$I$33,7,FALSE) -> 365 | M73: =VLOOKUP(YEAR(G73),Справочники!$C$3:$D$33,2,FALSE) -> 23020.51854 | N73: 3117432.336 | O73: 2810000 | P73: 307432.336 | Q73: 27445.61644 | R73: 0 | S73: 0 | T73: 23020.51854 | U73: 27445.61644 | V73: 2810000 | W73: 311857.4339
F74: 64 | G74: 2022-04-01 | H74: 2022-04-30 | I74: 30 | J74: 6 | K74: 2022-05-02 | L74: =VLOOKUP(YEAR(G74),Справочники!$C$3:$I$33,7,FALSE) -> 365 | M74: =VLOOKUP(YEAR(G74),Справочники!$C$3:$D$33,2,FALSE) -> 23020.51854 | N74: 3121857.434 | O74: 2810000 | P74: 311857.4339 | Q74: 26560.27397 | R74: 0 | S74: 0 | T74: 23020.51854 | U74: 26560.27397 | V74: 2810000 | W74: 315397.1893
F75: 65 | G75: 2022-05-01 | H75: 2022-05-31 | I75: 31 | J75: 2 | K75: 2022-05-31 | L75: =VLOOKUP(YEAR(G75),Справочники!$C$3:$I$33,7,FALSE) -> 365 | M75: =VLOOKUP(YEAR(G75),Справочники!$C$3:$D$33,2,FALSE) -> 23020.51854 | N75: 3125397.189 | O75: 2810000 | P75: 315397.1893 | Q75: 27445.61644 | R75: 0 | S75: 0 | T75: 23020.51854 | U75: 27445.61644 | V75: =O75-R75 -> 2810000 | W75: =P75+U75-T75 -> 319822.2872
F76: 66 | G76: 2022-06-01 | H76: =EOMONTH(G76,0) -> 2022-06-30 | I76: =H76-G76+1 -> 30 | J76: =WEEKDAY(H76,11) -> 4 | K76: =WORKDAY(H76,IF(OR(J76=6,J76=7),1,0)) -> 2022-06-30 | L76: =VLOOKUP(YEAR(G76),Справочники!$C$3:$I$33,7,FALSE) -> 365 | M76: =VLOOKUP(YEAR(G76),Справочники!$C$3:$D$33,2,FALSE) -> 23020.51854 | N76: =O76+P76 -> 3129822.287 | O76: 2810000 | P76: 319822.2872 | Q76: =O76*$D$4/L76*I76 -> 26560.27397 | R76: =MIN(M76-T76-S76,O76) -> 0 | S76: =MIN(M76-T76,Q76) -> 0 | T76: =MIN(M76,P76) -> 23020.51854 | U76: 26560.27397 | V76: 2810000 | W76: 323362.0426
F77: 67 | G77: =H76+1 -> 2022-07-01 | H77: 2022-07-31 | I77: 31 | J77: 7 | K77: 2022-08-01 | L77: =VLOOKUP(YEAR(G77),Справочники!$C$3:$I$33,7,FALSE) -> 365 | M77: =VLOOKUP(YEAR(G77),Справочники!$C$3:$D$33,2,FALSE) -> 23020.51854 | N77: 3133362.043 | O77: =V76 -> 2810000 | P77: 323362.0426 | Q77: 27445.61644 | R77: 0 | S77: 0 | T77: 23020.51854 | U77: =MAX(Q77-S77,0) -> 27445.61644 | V77: 2810000 | W77: 327787.1405
F78: 68 | G78: 2022-08-01 | H78: 2022-08-31 | I78: 31 | J78: 3 | K78: 2022-08-31 | L78: =VLOOKUP(YEAR(G78),Справочники!$C$3:$I$33,7,FALSE) -> 365 | M78: =VLOOKUP(YEAR(G78),Справочники!$C$3:$D$33,2,FALSE) -> 23020.51854 | N78: 3137787.141 | O78: 2810000 | P78: 327787.1405 | Q78: 27445.61644 | R78: 0 | S78: 0 | T78: 23020.51854 | U78: 27445.61644 | V78: 2810000 | W78: 332212.2384
F79: 69 | G79: 2022-09-01 | H79: 2022-09-30 | I79: 30 | J79: 5 | K79: 2022-09-30 | L79: =VLOOKUP(YEAR(G79),Справочники!$C$3:$I$33,7,FALSE) -> 365 | M79: =VLOOKUP(YEAR(G79),Справочники!$C$3:$D$33,2,FALSE) -> 23020.51854 | N79: 3142212.238 | O79: 2810000 | P79: 332212.2384 | Q79: 26560.27397 | R79: 0 | S79: 0 | T79: 23020.51854 | U79: 26560.27397 | V79: 2810000 | W79: 335751.9939
F80: 70 | G80: 2022-10-01 | H80: 2022-10-31 | I80: 31 | J80: 1 | K80: 2022-10-31 | L80: =VLOOKUP(YEAR(G80),Справочники!$C$3:$I$33,7,FALSE) -> 365 | M80: =VLOOKUP(YEAR(G80),Справочники!$C$3:$D$33,2,FALSE) -> 23020.51854 | N80: 3145751.994 | O80: 2810000 | P80: 335751.9939 | Q80: 27445.61644 | R80: 0 | S80: 0 | T80: 23020.51854 | U80: 27445.61644 | V80: 2810000 | W80: 340177.0918
F81: 71 | G81: 2022-11-01 | H81: 2022-11-30 | I81: 30 | J81: 3 | K81: 2022-11-30 | L81: =VLOOKUP(YEAR(G81),Справочники!$C$3:$I$33,7,FALSE) -> 365 | M81: =VLOOKUP(YEAR(G81),Справочники!$C$3:$D$33,2,FALSE) -> 23020.51854 | N81: 3150177.092 | O81: 2810000 | P81: 340177.0918 | Q81: 26560.27397 | R81: 0 | S81: 0 | T81: 23020.51854 | U81: 26560.27397 | V81: 2810000 | W81: 343716.8472
F82: 72 | G82: 2022-12-01 | H82: 2022-12-31 | I82: 31 | J82: 6 | K82: 2023-01-02 | L82: =VLOOKUP(YEAR(G82),Справочники!$C$3:$I$33,7,FALSE) -> 365 | M82: =VLOOKUP(YEAR(G82),Справочники!$C$3:$D$33,2,FALSE) -> 23020.51854 | N82: 3153716.847 | O82: 2810000 | P82: 343716.8472 | Q82: 27445.61644 | R82: 0 | S82: 0 | T82: 23020.51854 | U82: 27445.61644 | V82: 2810000 | W82: 348141.9451
F83: 73 | G83: 2023-01-01 | H83: 2023-01-31 | I83: 31 | J83: 2 | K83: 2023-01-31 | L83: =VLOOKUP(YEAR(G83),Справочники!$C$3:$I$33,7,FALSE) -> 365 | M83: =VLOOKUP(YEAR(G83),Справочники!$C$3:$D$33,2,FALSE) -> 23665.09306 | N83: 3158141.945 | O83: 2810000 | P83: 348141.9451 | Q83: 27445.61644 | R83: 0 | S83: 0 | T83: 23665.09306 | U83: 27445.61644 | V83: 2810000 | W83: 351922.4685
F84: 74 | G84: 2023-02-01 | H84: 2023-02-28 | I84: 28 | J84: 2 | K84: 2023-02-28 | L84: =VLOOKUP(YEAR(G84),Справочники!$C$3:$I$33,7,FALSE) -> 365 | M84: =VLOOKUP(YEAR(G84),Справочники!$C$3:$D$33,2,FALSE) -> 23665.09306 | N84: 3161922.468 | O84: 2810000 | P84: 351922.4685 | Q84: 24789.58904 | R84: 0 | S84: 0 | T84: 23665.09306 | U84: 24789.58904 | V84: 2810000 | W84: 353046.9644
F85: 75 | G85: 2023-03-01 | H85: 2023-03-31 | I85: 31 | J85: 5 | K85: 2023-03-31 | L85: =VLOOKUP(YEAR(G85),Справочники!$C$3:$I$33,7,FALSE) -> 365 | M85: =VLOOKUP(YEAR(G85),Справочники!$C$3:$D$33,2,FALSE) -> 23665.09306 | N85: 3163046.964 | O85: 2810000 | P85: 353046.9644 | Q85: 27445.61644 | R85: 0 | S85: 0 | T85: 23665.09306 | U85: 27445.61644 | V85: 2810000 | W85: 356827.4878
F86: 76 | G86: 2023-04-01 | H86: 2023-04-30 | I86: 30 | J86: 7 | K86: 2023-05-01 | L86: =VLOOKUP(YEAR(G86),Справочники!$C$3:$I$33,7,FALSE) -> 365 | M86: =VLOOKUP(YEAR(G86),Справочники!$C$3:$D$33,2,FALSE) -> 23665.09306 | N86: 3166827.488 | O86: 2810000 | P86: 356827.4878 | Q86: 26560.27397 | R86: 0 | S86: 0 | T86: 23665.09306 | U86: 26560.27397 | V86: 2810000 | W86: 359722.6687
F87: 77 | G87: 2023-05-01 | H87: 2023-05-31 | I87: 31 | J87: 3 | K87: 2023-05-31 | L87: =VLOOKUP(YEAR(G87),Справочники!$C$3:$I$33,7,FALSE) -> 365 | M87: =VLOOKUP(YEAR(G87),Справочники!$C$3:$D$33,2,FALSE) -> 23665.09306 | N87: 3169722.669 | O87: 2810000 | P87: 359722.6687 | Q87: 27445.61644 | R87: 0 | S87: 0 | T87: 23665.09306 | U87: 27445.61644 | V87: 2810000 | W87: 363503.1921
F88: 78 | G88: 2023-06-01 | H88: 2023-06-30 | I88: 30 | J88: 5 | K88: 2023-06-30 | L88: =VLOOKUP(YEAR(G88),Справочники!$C$3:$I$33,7,FALSE) -> 365 | M88: =VLOOKUP(YEAR(G88),Справочники!$C$3:$D$33,2,FALSE) -> 23665.09306 | N88: 3173503.192 | O88: 2810000 | P88: 363503.1921 | Q88: 26560.27397 | R88: 0 | S88: 0 | T88: 23665.09306 | U88: 26560.27397 | V88: 2810000 | W88: 366398.373
F89: 79 | G89: 2023-07-01 | H89: 2023-07-31 | I89: 31 | J89: 1 | K89: 2023-07-31 | L89: =VLOOKUP(YEAR(G89),Справочники!$C$3:$I$33,7,FALSE) -> 365 | M89: =VLOOKUP(YEAR(G89),Справочники!$C$3:$D$33,2,FALSE) -> 23665.09306 | N89: 3176398.373 | O89: 2810000 | P89: 366398.373 | Q89: 27445.61644 | R89: 0 | S89: 0 | T89: 23665.09306 | U89: 27445.61644 | V89: 2810000 | W89: 370178.8964
F90: 80 | G90: 2023-08-01 | H90: 2023-08-31 | I90: 31 | J90: 4 | K90: 2023-08-31 | L90: =VLOOKUP(YEAR(G90),Справочники!$C$3:$I$33,7,FALSE) -> 365 | M90: =VLOOKUP(YEAR(G90),Справочники!$C$3:$D$33,2,FALSE) -> 23665.09306 | N90: 3180178.896 | O90: 2810000 | P90: 370178.8964 | Q90: 27445.61644 | R90: 0 | S90: 0 | T90: 23665.09306 | U90: 27445.61644 | V90: 2810000 | W90: 373959.4198
F91: 81 | G91: 2023-09-01 | H91: 2023-09-30 | I91: 30 | J91: 6 | K91: 2023-10-02 | L91: =VLOOKUP(YEAR(G91),Справочники!$C$3:$I$33,7,FALSE) -> 365 | M91: =VLOOKUP(YEAR(G91),Справочники!$C$3:$D$33,2,FALSE) -> 23665.09306 | N91: 3183959.42 | O91: 2810000 | P91: 373959.4198 | Q91: 26560.27397 | R91: 0 | S91: 0 | T91: 23665.09306 | U91: 26560.27397 | V91: 2810000 | W91: 376854.6007
F92: 82 | G92: 2023-10-01 | H92: 2023-10-31 | I92: 31 | J92: 2 | K92: 2023-10-31 | L92: =VLOOKUP(YEAR(G92),Справочники!$C$3:$I$33,7,FALSE) -> 365 | M92: =VLOOKUP(YEAR(G92),Справочники!$C$3:$D$33,2,FALSE) -> 23665.09306 | N92: 3186854.601 | O92: 2810000 | P92: 376854.6007 | Q92: 27445.61644 | R92: 0 | S92: 0 | T92: 23665.09306 | U92: 27445.61644 | V92: 2810000 | W92: 380635.1241
F93: 83 | G93: 2023-11-01 | H93: 2023-11-30 | I93: 30 | J93: 4 | K93: 2023-11-30 | L93: =VLOOKUP(YEAR(G93),Справочники!$C$3:$I$33,7,FALSE) -> 365 | M93: =VLOOKUP(YEAR(G93),Справочники!$C$3:$D$33,2,FALSE) -> 23665.09306 | N93: 3190635.124 | O93: 2810000 | P93: 380635.1241 | Q93: 26560.27397 | R93: 0 | S93: 0 | T93: 23665.09306 | U93: 26560.27397 | V93: 2810000 | W93: 383530.305
F94: 84 | G94: 2023-12-01 | H94: 2023-12-31 | I94: 31 | J94: 7 | K94: 2024-01-01 | L94: =VLOOKUP(YEAR(G94),Справочники!$C$3:$I$33,7,FALSE) -> 365 | M94: =VLOOKUP(YEAR(G94),Справочники!$C$3:$D$33,2,FALSE) -> 23665.09306 | N94: 3193530.305 | O94: 2810000 | P94: 383530.305 | Q94: 27445.61644 | R94: 0 | S94: 0 | T94: 23665.09306 | U94: 27445.61644 | V94: 2810000 | W94: 387310.8284
F95: 85 | G95: 2024-01-01 | H95: 2024-01-31 | I95: 31 | J95: 3 | K95: 2024-01-31 | L95: =VLOOKUP(YEAR(G95),Справочники!$C$3:$I$33,7,FALSE) -> 366 | M95: =VLOOKUP(YEAR(G95),Справочники!$C$3:$D$33,2,FALSE) -> 24304.05057 | N95: 3197310.828 | O95: 2810000 | P95: 387310.8284 | Q95: 27370.62842 | R95: 0 | S95: 0 | T95: 24304.05057 | U95: 27370.62842 | V95: 2810000 | W95: 390377.4062
F96: 86 | G96: 2024-02-01 | H96: 2024-02-29 | I96: 29 | J96: 4 | K96: 2024-02-29 | L96: =VLOOKUP(YEAR(G96),Справочники!$C$3:$I$33,7,FALSE) -> 366 | M96: =VLOOKUP(YEAR(G96),Справочники!$C$3:$D$33,2,FALSE) -> 24304.05057 | N96: 3200377.406 | O96: 2810000 | P96: 390377.4062 | Q96: 25604.78142 | R96: 0 | S96: 0 | T96: 24304.05057 | U96: 25604.78142 | V96: 2810000 | W96: 391678.1371
F97: 87 | G97: 2024-03-01 | H97: 2024-03-31 | I97: 31 | J97: 7 | K97: 2024-04-01 | L97: =VLOOKUP(YEAR(G97),Справочники!$C$3:$I$33,7,FALSE) -> 366 | M97: =VLOOKUP(YEAR(G97),Справочники!$C$3:$D$33,2,FALSE) -> 24304.05057 | N97: 3201678.137 | O97: 2810000 | P97: 391678.1371 | Q97: 27370.62842 | R97: 0 | S97: 0 | T97: 24304.05057 | U97: 27370.62842 | V97: 2810000 | W97: 394744.7149
F98: 88 | G98: 2024-04-01 | H98: 2024-04-30 | I98: 30 | J98: 2 | K98: 2024-04-30 | L98: =VLOOKUP(YEAR(G98),Справочники!$C$3:$I$33,7,FALSE) -> 366 | M98: =VLOOKUP(YEAR(G98),Справочники!$C$3:$D$33,2,FALSE) -> 24304.05057 | N98: 3204744.715 | O98: 2810000 | P98: 394744.7149 | Q98: 26487.70492 | R98: 0 | S98: 0 | T98: 24304.05057 | U98: 26487.70492 | V98: 2810000 | W98: 396928.3693
F99: 89 | G99: 2024-05-01 | H99: 2024-05-31 | I99: 31 | J99: 5 | K99: 2024-05-31 | L99: =VLOOKUP(YEAR(G99),Справочники!$C$3:$I$33,7,FALSE) -> 366 | M99: =VLOOKUP(YEAR(G99),Справочники!$C$3:$D$33,2,FALSE) -> 24304.05057 | N99: 3206928.369 | O99: 2810000 | P99: 396928.3693 | Q99: 27370.62842 | R99: 0 | S99: 0 | T99: 24304.05057 | U99: 27370.62842 | V99: 2810000 | W99: 399994.9471
F100: 90 | G100: 2024-06-01 | H100: 2024-06-30 | I100: 30 | J100: 7 | K100: 2024-07-01 | L100: =VLOOKUP(YEAR(G100),Справочники!$C$3:$I$33,7,FALSE) -> 366 | M100: =VLOOKUP(YEAR(G100),Справочники!$C$3:$D$33,2,FALSE) -> 24304.05057 | N100: 3209994.947 | O100: 2810000 | P100: 399994.9471 | Q100: 26487.70492 | R100: 0 | S100: 0 | T100: 24304.05057 | U100: 26487.70492 | V100: 2810000 | W100: 402178.6014
F101: 91 | G101: 2024-07-01 | H101: 2024-07-31 | I101: 31 | J101: 3 | K101: 2024-07-31 | L101: =VLOOKUP(YEAR(G101),Справочники!$C$3:$I$33,7,FALSE) -> 366 | M101: =VLOOKUP(YEAR(G101),Справочники!$C$3:$D$33,2,FALSE) -> 24304.05057 | N101: 3212178.601 | O101: 2810000 | P101: 402178.6014 | Q101: 27370.62842 | R101: 0 | S101: 0 | T101: 24304.05057 | U101: 27370.62842 | V101: 2810000 | W101: 405245.1793
F102: 92 | G102: 2024-08-01 | H102: 2024-08-31 | I102: 31 | J102: 6 | K102: 2024-09-02 | L102: =VLOOKUP(YEAR(G102),Справочники!$C$3:$I$33,7,FALSE) -> 366 | M102: =VLOOKUP(YEAR(G102),Справочники!$C$3:$D$33,2,FALSE) -> 24304.05057 | N102: 3215245.179 | O102: 2810000 | P102: 405245.1793 | Q102: 27370.62842 | R102: 0 | S102: 0 | T102: 24304.05057 | U102: 27370.62842 | V102: 2810000 | W102: 408311.7571
F103: 93 | G103: 2024-09-01 | H103: 2024-09-30 | I103: 30 | J103: 1 | K103: 2024-09-30 | L103: =VLOOKUP(YEAR(G103),Справочники!$C$3:$I$33,7,FALSE) -> 366 | M103: =VLOOKUP(YEAR(G103),Справочники!$C$3:$D$33,2,FALSE) -> 24304.05057 | N103: 3218311.757 | O103: 2810000 | P103: 408311.7571 | Q103: 26487.70492 | R103: 0 | S103: 0 | T103: 24304.05057 | U103: 26487.70492 | V103: 2810000 | W103: 410495.4115
F104: 94 | G104: 2024-10-01 | H104: 2024-10-31 | I104: 31 | J104: 4 | K104: 2024-10-31 | L104: =VLOOKUP(YEAR(G104),Справочники!$C$3:$I$33,7,FALSE) -> 366 | M104: =VLOOKUP(YEAR(G104),Справочники!$C$3:$D$33,2,FALSE) -> 24304.05057 | N104: 3220495.411 | O104: 2810000 | P104: 410495.4115 | Q104: 27370.62842 | R104: 0 | S104: 0 | T104: 24304.05057 | U104: 27370.62842 | V104: 2810000 | W104: 413561.9893
F105: 95 | G105: 2024-11-01 | H105: 2024-11-30 | I105: 30 | J105: 6 | K105: 2024-12-02 | L105: =VLOOKUP(YEAR(G105),Справочники!$C$3:$I$33,7,FALSE) -> 366 | M105: =VLOOKUP(YEAR(G105),Справочники!$C$3:$D$33,2,FALSE) -> 24304.05057 | N105: 3223561.989 | O105: 2810000 | P105: 413561.9893 | Q105: 26487.70492 | R105: 0 | S105: 0 | T105: 24304.05057 | U105: 26487.70492 | V105: 2810000 | W105: 415745.6437
F106: 96 | G106: 2024-12-01 | H106: 2024-12-31 | I106: 31 | J106: 2 | K106: 2024-12-31 | L106: =VLOOKUP(YEAR(G106),Справочники!$C$3:$I$33,7,FALSE) -> 366 | M106: =VLOOKUP(YEAR(G106),Справочники!$C$3:$D$33,2,FALSE) -> 24304.05057 | N106: 3225745.644 | O106: 2810000 | P106: 415745.6437 | Q106: 27370.62842 | R106: 0 | S106: 0 | T106: 24304.05057 | U106: 27370.62842 | V106: 2810000 | W106: 418812.2215
F107: 97 | G107: 2025-01-01 | H107: 2025-01-31 | I107: 31 | J107: 5 | K107: 2025-01-31 | L107: =VLOOKUP(YEAR(G107),Справочники!$C$3:$I$33,7,FALSE) -> 365 | M107: =VLOOKUP(YEAR(G107),Справочники!$C$3:$D$33,2,FALSE) -> 24838.73968 | N107: 3228812.222 | O107: 2810000 | P107: 418812.2215 | Q107: 27445.61644 | R107: 0 | S107: 0 | T107: 24838.73968 | U107: 27445.61644 | V107: =O107-R107 -> 2810000 | W107: =P107+U107-T107 -> 421419.0983
F108: 98 | G108: 2025-02-01 | H108: 2025-02-28 | I108: 28 | J108: 5 | K108: 2025-02-28 | L108: =VLOOKUP(YEAR(G108),Справочники!$C$3:$I$33,7,FALSE) -> 365 | M108: =VLOOKUP(YEAR(G108),Справочники!$C$3:$D$33,2,FALSE) -> 24838.73968 | N108: 3231419.098 | O108: 2810000 | P108: 421419.0983 | Q108: 24789.58904 | R108: 0 | S108: 0 | T108: 24838.73968 | U108: 24789.58904 | V108: 2810000 | W108: 421369.9476
F109: 99 | G109: 2025-03-01 | H109: 2025-03-31 | I109: 31 | J109: 1 | K109: 2025-03-31 | L109: =VLOOKUP(YEAR(G109),Справочники!$C$3:$I$33,7,FALSE) -> 365 | M109: =VLOOKUP(YEAR(G109),Справочники!$C$3:$D$33,2,FALSE) -> 24838.73968 | N109: 3231369.948 | O109: 2810000 | P109: 421369.9476 | Q109: 27445.61644 | R109: 0 | S109: 0 | T109: 24838.73968 | U109: 27445.61644 | V109: 2810000 | W109: 423976.8244
F110: 100 | G110: 2025-04-01 | H110: 2025-04-30 | I110: 30 | J110: 3 | K110: 2025-04-30 | L110: =VLOOKUP(YEAR(G110),Справочники!$C$3:$I$33,7,FALSE) -> 365 | M110: =VLOOKUP(YEAR(G110),Справочники!$C$3:$D$33,2,FALSE) -> 24838.73968 | N110: 3233976.824 | O110: 2810000 | P110: 423976.8244 | Q110: 26560.27397 | R110: 0 | S110: 0 | T110: 24838.73968 | U110: 26560.27397 | V110: 2810000 | W110: 425698.3587
F111: 101 | G111: 2025-05-01 | H111: 2025-05-31 | I111: 31 | J111: 6 | K111: 2025-06-02 | L111: =VLOOKUP(YEAR(G111),Справочники!$C$3:$I$33,7,FALSE) -> 365 | M111: =VLOOKUP(YEAR(G111),Справочники!$C$3:$D$33,2,FALSE) -> 24838.73968 | N111: 3235698.359 | O111: 2810000 | P111: 425698.3587 | Q111: 27445.61644 | R111: 0 | S111: 0 | T111: 24838.73968 | U111: 27445.61644 | V111: 2810000 | W111: 428305.2354
F112: 102 | G112: 2025-06-01 | H112: 2025-06-30 | I112: 30 | J112: 1 | K112: 2025-06-30 | L112: =VLOOKUP(YEAR(G112),Справочники!$C$3:$I$33,7,FALSE) -> 365 | M112: =VLOOKUP(YEAR(G112),Справочники!$C$3:$D$33,2,FALSE) -> 24838.73968 | N112: 3238305.235 | O112: 2810000 | P112: 428305.2354 | Q112: 26560.27397 | R112: 0 | S112: 0 | T112: 24838.73968 | U112: 26560.27397 | V112: 2810000 | W112: 430026.7697
F113: 103 | G113: 2025-07-01 | H113: 2025-07-31 | I113: 31 | J113: 4 | K113: 2025-07-31 | L113: =VLOOKUP(YEAR(G113),Справочники!$C$3:$I$33,7,FALSE) -> 365 | M113: =VLOOKUP(YEAR(G113),Справочники!$C$3:$D$33,2,FALSE) -> 24838.73968 | N113: 3240026.77 | O113: 2810000 | P113: 430026.7697 | Q113: 27445.61644 | R113: 0 | S113: 0 | T113: 24838.73968 | U113: 27445.61644 | V113: 2810000 | W113: 432633.6465
F114: 104 | G114: 2025-08-01 | H114: 2025-08-31 | I114: 31 | J114: 7 | K114: 2025-09-01 | L114: =VLOOKUP(YEAR(G114),Справочники!$C$3:$I$33,7,FALSE) -> 365 | M114: =VLOOKUP(YEAR(G114),Справочники!$C$3:$D$33,2,FALSE) -> 24838.73968 | N114: 3242633.646 | O114: 2810000 | P114: 432633.6465 | Q114: 27445.61644 | R114: 0 | S114: 0 | T114: 24838.73968 | U114: 27445.61644 | V114: 2810000 | W114: 435240.5232
F115: 105 | G115: 2025-09-01 | H115: 2025-09-30 | I115: 30 | J115: 2 | K115: 2025-09-30 | L115: =VLOOKUP(YEAR(G115),Справочники!$C$3:$I$33,7,FALSE) -> 365 | M115: =VLOOKUP(YEAR(G115),Справочники!$C$3:$D$33,2,FALSE) -> 24838.73968 | N115: 3245240.523 | O115: 2810000 | P115: 435240.5232 | Q115: 26560.27397 | R115: 0 | S115: 0 | T115: 24838.73968 | U115: 26560.27397 | V115: 2810000 | W115: 436962.0575
F116: 106 | G116: 2025-10-01 | H116: 2025-10-31 | I116: 31 | J116: 5 | K116: 2025-10-31 | L116: =VLOOKUP(YEAR(G116),Справочники!$C$3:$I$33,7,FALSE) -> 365 | M116: =VLOOKUP(YEAR(G116),Справочники!$C$3:$D$33,2,FALSE) -> 24838.73968 | N116: 3246962.058 | O116: 2810000 | P116: 436962.0575 | Q116: 27445.61644 | R116: 0 | S116: 0 | T116: 24838.73968 | U116: 27445.61644 | V116: 2810000 | W116: 439568.9343
F117: 107 | G117: 2025-11-01 | H117: 2025-11-30 | I117: 30 | J117: 7 | K117: 2025-12-01 | L117: =VLOOKUP(YEAR(G117),Справочники!$C$3:$I$33,7,FALSE) -> 365 | M117: =VLOOKUP(YEAR(G117),Справочники!$C$3:$D$33,2,FALSE) -> 24838.73968 | N117: 3249568.934 | O117: 2810000 | P117: 439568.9343 | Q117: 26560.27397 | R117: 0 | S117: 0 | T117: 24838.73968 | U117: 26560.27397 | V117: 2810000 | W117: 441290.4685
F118: 108 | G118: 2025-12-01 | H118: 2025-12-31 | I118: 31 | J118: 3 | K118: 2025-12-31 | L118: =VLOOKUP(YEAR(G118),Справочники!$C$3:$I$33,7,FALSE) -> 365 | M118: =VLOOKUP(YEAR(G118),Справочники!$C$3:$D$33,2,FALSE) -> 24838.73968 | N118: 3251290.469 | O118: 2810000 | P118: 441290.4685 | Q118: 27445.61644 | R118: 0 | S118: 0 | T118: 24838.73968 | U118: 27445.61644 | V118: 2810000 | W118: 443897.3453
F119: 109 | G119: 2026-01-01 | H119: 2026-01-31 | I119: 31 | J119: 6 | K119: 2026-02-02 | L119: =VLOOKUP(YEAR(G119),Справочники!$C$3:$I$33,7,FALSE) -> 365 | M119: =VLOOKUP(YEAR(G119),Справочники!$C$3:$D$33,2,FALSE) -> 25360.35322 | N119: 3253897.345 | O119: 2810000 | P119: 443897.3453 | Q119: 27445.61644 | R119: 0 | S119: 0 | T119: 25360.35322 | U119: 27445.61644 | V119: 2810000 | W119: 445982.6085
F120: 110 | G120: 2026-02-01 | H120: 2026-02-28 | I120: 28 | J120: 6 | K120: 2026-03-02 | L120: =VLOOKUP(YEAR(G120),Справочники!$C$3:$I$33,7,FALSE) -> 365 | M120: =VLOOKUP(YEAR(G120),Справочники!$C$3:$D$33,2,FALSE) -> 25360.35322 | N120: 3255982.609 | O120: 2810000 | P120: 445982.6085 | Q120: 24789.58904 | R120: 0 | S120: 0 | T120: 25360.35322 | U120: 24789.58904 | V120: 2810000 | W120: 445411.8443
F121: 111 | G121: 2026-03-01 | H121: 2026-03-31 | I121: 31 | J121: 2 | K121: 2026-03-31 | L121: =VLOOKUP(YEAR(G121),Справочники!$C$3:$I$33,7,FALSE) -> 365 | M121: =VLOOKUP(YEAR(G121),Справочники!$C$3:$D$33,2,FALSE) -> 25360.35322 | N121: 3255411.844 | O121: 2810000 | P121: 445411.8443 | Q121: 27445.61644 | R121: 0 | S121: 0 | T121: 25360.35322 | U121: 27445.61644 | V121: 2810000 | W121: 447497.1076
F122: 112 | G122: 2026-04-01 | H122: 2026-04-30 | I122: 30 | J122: 4 | K122: 2026-04-30 | L122: =VLOOKUP(YEAR(G122),Справочники!$C$3:$I$33,7,FALSE) -> 365 | M122: =VLOOKUP(YEAR(G122),Справочники!$C$3:$D$33,2,FALSE) -> 25360.35322 | N122: 3257497.108 | O122: 2810000 | P122: 447497.1076 | Q122: 26560.27397 | R122: 0 | S122: 0 | T122: 25360.35322 | U122: 26560.27397 | V122: 2810000 | W122: 448697.0283
F123: 113 | G123: 2026-05-01 | H123: 2026-05-31 | I123: 31 | J123: 7 | K123: 2026-06-01 | L123: =VLOOKUP(YEAR(G123),Справочники!$C$3:$I$33,7,FALSE) -> 365 | M123: =VLOOKUP(YEAR(G123),Справочники!$C$3:$D$33,2,FALSE) -> 25360.35322 | N123: 3258697.028 | O123: 2810000 | P123: 448697.0283 | Q123: 27445.61644 | R123: 0 | S123: 0 | T123: 25360.35322 | U123: 27445.61644 | V123: 2810000 | W123: 450782.2915
F124: 114 | G124: 2026-06-01 | H124: 2026-06-30 | I124: 30 | J124: 2 | K124: 2026-06-30 | L124: =VLOOKUP(YEAR(G124),Справочники!$C$3:$I$33,7,FALSE) -> 365 | M124: =VLOOKUP(YEAR(G124),Справочники!$C$3:$D$33,2,FALSE) -> 25360.35322 | N124: 3260782.292 | O124: 2810000 | P124: 450782.2915 | Q124: 26560.27397 | R124: 0 | S124: 0 | T124: 25360.35322 | U124: 26560.27397 | V124: 2810000 | W124: 451982.2123
F125: 115 | G125: 2026-07-01 | H125: 2026-07-31 | I125: 31 | J125: 5 | K125: 2026-07-31 | L125: =VLOOKUP(YEAR(G125),Справочники!$C$3:$I$33,7,FALSE) -> 365 | M125: =VLOOKUP(YEAR(G125),Справочники!$C$3:$D$33,2,FALSE) -> 25360.35322 | N125: 3261982.212 | O125: 2810000 | P125: 451982.2123 | Q125: 27445.61644 | R125: 0 | S125: 0 | T125: 25360.35322 | U125: 27445.61644 | V125: 2810000 | W125: 454067.4755
F126: 116 | G126: 2026-08-01 | H126: 2026-08-31 | I126: 31 | J126: 1 | K126: 2026-08-31 | L126: =VLOOKUP(YEAR(G126),Справочники!$C$3:$I$33,7,FALSE) -> 365 | M126: =VLOOKUP(YEAR(G126),Справочники!$C$3:$D$33,2,FALSE) -> 25360.35322 | N126: 3264067.476 | O126: 2810000 | P126: 454067.4755 | Q126: 27445.61644 | R126: 0 | S126: 0 | T126: 25360.35322 | U126: 27445.61644 | V126: 2810000 | W126: 456152.7387
F127: 117 | G127: 2026-09-01 | H127: 2026-09-30 | I127: 30 | J127: 3 | K127: 2026-09-30 | L127: =VLOOKUP(YEAR(G127),Справочники!$C$3:$I$33,7,FALSE) -> 365 | M127: =VLOOKUP(YEAR(G127),Справочники!$C$3:$D$33,2,FALSE) -> 25360.35322 | N127: 3266152.739 | O127: 2810000 | P127: 456152.7387 | Q127: 26560.27397 | R127: 0 | S127: 0 | T127: 25360.35322 | U127: 26560.27397 | V127: 2810000 | W127: 457352.6595
F128: 118 | G128: 2026-10-01 | H128: 2026-10-31 | I128: 31 | J128: 6 | K128: 2026-11-02 | L128: =VLOOKUP(YEAR(G128),Справочники!$C$3:$I$33,7,FALSE) -> 365 | M128: =VLOOKUP(YEAR(G128),Справочники!$C$3:$D$33,2,FALSE) -> 25360.35322 | N128: 3267352.659 | O128: 2810000 | P128: 457352.6595 | Q128: 27445.61644 | R128: 0 | S128: 0 | T128: 25360.35322 | U128: 27445.61644 | V128: 2810000 | W128: 459437.9227
F129: 119 | G129: 2026-11-01 | H129: 2026-11-30 | I129: 30 | J129: 1 | K129: 2026-11-30 | L129: =VLOOKUP(YEAR(G129),Справочники!$C$3:$I$33,7,FALSE) -> 365 | M129: =VLOOKUP(YEAR(G129),Справочники!$C$3:$D$33,2,FALSE) -> 25360.35322 | N129: 3269437.923 | O129: 2810000 | P129: 459437.9227 | Q129: 26560.27397 | R129: 0 | S129: 0 | T129: 25360.35322 | U129: 26560.27397 | V129: 2810000 | W129: 460637.8435
F130: 120 | G130: 2026-12-01 | H130: 2026-12-31 | I130: 31 | J130: 4 | K130: 2026-12-31 | L130: =VLOOKUP(YEAR(G130),Справочники!$C$3:$I$33,7,FALSE) -> 365 | M130: =VLOOKUP(YEAR(G130),Справочники!$C$3:$D$33,2,FALSE) -> 25360.35322 | N130: 3270637.843 | O130: 2810000 | P130: 460637.8435 | Q130: 27445.61644 | R130: 0 | S130: 0 | T130: 25360.35322 | U130: 27445.61644 | V130: 2810000 | W130: 462723.1067
F131: 121 | G131: 2027-01-01 | H131: 2027-01-31 | I131: 31 | J131: 7 | K131: 2027-02-01 | L131: =VLOOKUP(YEAR(G131),Справочники!$C$3:$I$33,7,FALSE) -> 365 | M131: =VLOOKUP(YEAR(G131),Справочники!$C$3:$D$33,2,FALSE) -> 25892.92064 | N131: 3272723.107 | O131: 2810000 | P131: 462723.1067 | Q131: 27445.61644 | R131: 0 | S131: 0 | T131: 25892.92064 | U131: 27445.61644 | V131: 2810000 | W131: 464275.8025
F132: 122 | G132: 2027-02-01 | H132: 2027-02-28 | I132: 28 | J132: 7 | K132: 2027-03-01 | L132: =VLOOKUP(YEAR(G132),Справочники!$C$3:$I$33,7,FALSE) -> 365 | M132: =VLOOKUP(YEAR(G132),Справочники!$C$3:$D$33,2,FALSE) -> 25892.92064 | N132: 3274275.802 | O132: 2810000 | P132: 464275.8025 | Q132: 24789.58904 | R132: 0 | S132: 0 | T132: 25892.92064 | U132: 24789.58904 | V132: 2810000 | W132: 463172.4709
F133: 123 | G133: 2027-03-01 | H133: 2027-03-31 | I133: 31 | J133: 3 | K133: 2027-03-31 | L133: =VLOOKUP(YEAR(G133),Справочники!$C$3:$I$33,7,FALSE) -> 365 | M133: =VLOOKUP(YEAR(G133),Справочники!$C$3:$D$33,2,FALSE) -> 25892.92064 | N133: 3273172.471 | O133: 2810000 | P133: 463172.4709 | Q133: 27445.61644 | R133: 0 | S133: 0 | T133: 25892.92064 | U133: 27445.61644 | V133: 2810000 | W133: 464725.1667
F134: 124 | G134: 2027-04-01 | H134: 2027-04-30 | I134: 30 | J134: 5 | K134: 2027-04-30 | L134: =VLOOKUP(YEAR(G134),Справочники!$C$3:$I$33,7,FALSE) -> 365 | M134: =VLOOKUP(YEAR(G134),Справочники!$C$3:$D$33,2,FALSE) -> 25892.92064 | N134: 3274725.167 | O134: 2810000 | P134: 464725.1667 | Q134: 26560.27397 | R134: 0 | S134: 0 | T134: 25892.92064 | U134: 26560.27397 | V134: 2810000 | W134: 465392.52
F135: 125 | G135: 2027-05-01 | H135: 2027-05-31 | I135: 31 | J135: 1 | K135: 2027-05-31 | L135: =VLOOKUP(YEAR(G135),Справочники!$C$3:$I$33,7,FALSE) -> 365 | M135: =VLOOKUP(YEAR(G135),Справочники!$C$3:$D$33,2,FALSE) -> 25892.92064 | N135: 3275392.52 | O135: 2810000 | P135: 465392.52 | Q135: 27445.61644 | R135: 0 | S135: 0 | T135: 25892.92064 | U135: 27445.61644 | V135: 2810000 | W135: 466945.2158
F136: 126 | G136: 2027-06-01 | H136: 2027-06-30 | I136: 30 | J136: 3 | K136: 2027-06-30 | L136: =VLOOKUP(YEAR(G136),Справочники!$C$3:$I$33,7,FALSE) -> 365 | M136: =VLOOKUP(YEAR(G136),Справочники!$C$3:$D$33,2,FALSE) -> 25892.92064 | N136: 3276945.216 | O136: 2810000 | P136: 466945.2158 | Q136: 26560.27397 | R136: 0 | S136: 0 | T136: 25892.92064 | U136: 26560.27397 | V136: 2810000 | W136: 467612.5692
F137: 127 | G137: 2027-07-01 | H137: 2027-07-31 | I137: 31 | J137: 6 | K137: 2027-08-02 | L137: =VLOOKUP(YEAR(G137),Справочники!$C$3:$I$33,7,FALSE) -> 365 | M137: =VLOOKUP(YEAR(G137),Справочники!$C$3:$D$33,2,FALSE) -> 25892.92064 | N137: 3277612.569 | O137: 2810000 | P137: 467612.5692 | Q137: 27445.61644 | R137: 0 | S137: 0 | T137: 25892.92064 | U137: 27445.61644 | V137: 2810000 | W137: 469165.265
F138: 128 | G138: 2027-08-01 | H138: 2027-08-31 | I138: 31 | J138: 2 | K138: 2027-08-31 | L138: =VLOOKUP(YEAR(G138),Справочники!$C$3:$I$33,7,FALSE) -> 365 | M138: =VLOOKUP(YEAR(G138),Справочники!$C$3:$D$33,2,FALSE) -> 25892.92064 | N138: 3279165.265 | O138: 2810000 | P138: 469165.265 | Q138: 27445.61644 | R138: 0 | S138: 0 | T138: 25892.92064 | U138: 27445.61644 | V138: 2810000 | W138: 470717.9608
F139: 129 | G139: 2027-09-01 | H139: 2027-09-30 | I139: 30 | J139: 4 | K139: 2027-09-30 | L139: =VLOOKUP(YEAR(G139),Справочники!$C$3:$I$33,7,FALSE) -> 365 | M139: =VLOOKUP(YEAR(G139),Справочники!$C$3:$D$33,2,FALSE) -> 25892.92064 | N139: 3280717.961 | O139: 2810000 | P139: 470717.9608 | Q139: 26560.27397 | R139: 0 | S139: 0 | T139: 25892.92064 | U139: 26560.27397 | V139: =O139-R139 -> 2810000 | W139: =P139+U139-T139 -> 471385.3141
F140: 130 | G140: 2027-10-01 | H140: =EOMONTH(G140,0) -> 2027-10-31 | I140: =H140-G140+1 -> 31 | J140: =WEEKDAY(H140,11) -> 7 | K140: =WORKDAY(H140,IF(OR(J140=6,J140=7),1,0)) -> 2027-11-01 | L140: =VLOOKUP(YEAR(G140),Справочники!$C$3:$I$33,7,FALSE) -> 365 | M140: =VLOOKUP(YEAR(G140),Справочники!$C$3:$D$33,2,FALSE) -> 25892.92064 | N140: =O140+P140 -> 3281385.314 | O140: 2810000 | P140: 471385.3141 | Q140: =O140*$D$4/L140*I140 -> 27445.61644 | R140: =MIN(M140-T140-S140,O140) -> 0 | S140: =MIN(M140-T140,Q140) -> 0 | T140: =MIN(M140,P140) -> 25892.92064 | U140: 27445.61644 | V140: 2810000 | W140: 472938.0099
F141: 131 | G141: =H140+1 -> 2027-11-01 | H141: 2027-11-30 | I141: 30 | J141: 2 | K141: 2027-11-30 | L141: =VLOOKUP(YEAR(G141),Справочники!$C$3:$I$33,7,FALSE) -> 365 | M141: =VLOOKUP(YEAR(G141),Справочники!$C$3:$D$33,2,FALSE) -> 25892.92064 | N141: 3282938.01 | O141: =V140 -> 2810000 | P141: 472938.0099 | Q141: 26560.27397 | R141: 0 | S141: 0 | T141: 25892.92064 | U141: =MAX(Q141-S141,0) -> 26560.27397 | V141: 2810000 | W141: 473605.3633
F142: 132 | G142: 2027-12-01 | H142: 2027-12-31 | I142: 31 | J142: 5 | K142: 2027-12-31 | L142: =VLOOKUP(YEAR(G142),Справочники!$C$3:$I$33,7,FALSE) -> 365 | M142: =VLOOKUP(YEAR(G142),Справочники!$C$3:$D$33,2,FALSE) -> 25892.92064 | N142: 3283605.363 | O142: 2810000 | P142: 473605.3633 | Q142: 27445.61644 | R142: 0 | S142: 0 | T142: 25892.92064 | U142: 27445.61644 | V142: 2810000 | W142: 475158.0591
F143: 133 | G143: 2028-01-01 | H143: 2028-01-31 | I143: 31 | J143: 1 | K143: 2028-01-31 | L143: =VLOOKUP(YEAR(G143),Справочники!$C$3:$I$33,7,FALSE) -> 366 | M143: =VLOOKUP(YEAR(G143),Справочники!$C$3:$D$33,2,FALSE) -> 26436.67197 | N143: 3285158.059 | O143: 2810000 | P143: 475158.0591 | Q143: 27370.62842 | R143: 0 | S143: 0 | T143: 26436.67197 | U143: 27370.62842 | V143: 2810000 | W143: 476092.0155
F144: 134 | G144: 2028-02-01 | H144: 2028-02-29 | I144: 29 | J144: 2 | K144: 2028-02-29 | L144: =VLOOKUP(YEAR(G144),Справочники!$C$3:$I$33,7,FALSE) -> 366 | M144: =VLOOKUP(YEAR(G144),Справочники!$C$3:$D$33,2,FALSE) -> 26436.67197 | N144: 3286092.016 | O144: 2810000 | P144: 476092.0155 | Q144: 25604.78142 | R144: 0 | S144: 0 | T144: 26436.67197 | U144: 25604.78142 | V144: 2810000 | W144: 475260.125
F145: 135 | G145: 2028-03-01 | H145: 2028-03-31 | I145: 31 | J145: 5 | K145: 2028-03-31 | L145: =VLOOKUP(YEAR(G145),Справочники!$C$3:$I$33,7,FALSE) -> 366 | M145: =VLOOKUP(YEAR(G145),Справочники!$C$3:$D$33,2,FALSE) -> 26436.67197 | N145: 3285260.125 | O145: 2810000 | P145: 475260.125 | Q145: 27370.62842 | R145: 0 | S145: 0 | T145: 26436.67197 | U145: 27370.62842 | V145: 2810000 | W145: 476194.0814
F146: 136 | G146: 2028-04-01 | H146: 2028-04-30 | I146: 30 | J146: 7 | K146: 2028-05-01 | L146: =VLOOKUP(YEAR(G146),Справочники!$C$3:$I$33,7,FALSE) -> 366 | M146: =VLOOKUP(YEAR(G146),Справочники!$C$3:$D$33,2,FALSE) -> 26436.67197 | N146: 3286194.081 | O146: 2810000 | P146: 476194.0814 | Q146: 26487.70492 | R146: 0 | S146: 0 | T146: 26436.67197 | U146: 26487.70492 | V146: 2810000 | W146: 476245.1144
F147: 137 | G147: 2028-05-01 | H147: 2028-05-31 | I147: 31 | J147: 3 | K147: 2028-05-31 | L147: =VLOOKUP(YEAR(G147),Справочники!$C$3:$I$33,7,FALSE) -> 366 | M147: =VLOOKUP(YEAR(G147),Справочники!$C$3:$D$33,2,FALSE) -> 26436.67197 | N147: 3286245.114 | O147: 2810000 | P147: 476245.1144 | Q147: 27370.62842 | R147: 0 | S147: 0 | T147: 26436.67197 | U147: 27370.62842 | V147: 2810000 | W147: 477179.0708
F148: 138 | G148: 2028-06-01 | H148: 2028-06-30 | I148: 30 | J148: 5 | K148: 2028-06-30 | L148: =VLOOKUP(YEAR(G148),Справочники!$C$3:$I$33,7,FALSE) -> 366 | M148: =VLOOKUP(YEAR(G148),Справочники!$C$3:$D$33,2,FALSE) -> 26436.67197 | N148: 3287179.071 | O148: 2810000 | P148: 477179.0708 | Q148: 26487.70492 | R148: 0 | S148: 0 | T148: 26436.67197 | U148: 26487.70492 | V148: 2810000 | W148: 477230.1038
F149: 139 | G149: 2028-07-01 | H149: 2028-07-31 | I149: 31 | J149: 1 | K149: 2028-07-31 | L149: =VLOOKUP(YEAR(G149),Справочники!$C$3:$I$33,7,FALSE) -> 366 | M149: =VLOOKUP(YEAR(G149),Справочники!$C$3:$D$33,2,FALSE) -> 26436.67197 | N149: 3287230.104 | O149: 2810000 | P149: 477230.1038 | Q149: 27370.62842 | R149: 0 | S149: 0 | T149: 26436.67197 | U149: 27370.62842 | V149: 2810000 | W149: 478164.0602
F150: 140 | G150: 2028-08-01 | H150: 2028-08-31 | I150: 31 | J150: 4 | K150: 2028-08-31 | L150: =VLOOKUP(YEAR(G150),Справочники!$C$3:$I$33,7,FALSE) -> 366 | M150: =VLOOKUP(YEAR(G150),Справочники!$C$3:$D$33,2,FALSE) -> 26436.67197 | N150: 3288164.06 | O150: 2810000 | P150: 478164.0602 | Q150: 27370.62842 | R150: 0 | S150: 0 | T150: 26436.67197 | U150: 27370.62842 | V150: 2810000 | W150: 479098.0167
F151: 141 | G151: 2028-09-01 | H151: 2028-09-30 | I151: 30 | J151: 6 | K151: 2028-10-02 | L151: =VLOOKUP(YEAR(G151),Справочники!$C$3:$I$33,7,FALSE) -> 366 | M151: =VLOOKUP(YEAR(G151),Справочники!$C$3:$D$33,2,FALSE) -> 26436.67197 | N151: 3289098.017 | O151: 2810000 | P151: 479098.0167 | Q151: 26487.70492 | R151: 0 | S151: 0 | T151: 26436.67197 | U151: 26487.70492 | V151: 2810000 | W151: 479149.0496
F152: 142 | G152: 2028-10-01 | H152: 2028-10-31 | I152: 31 | J152: 2 | K152: 2028-10-31 | L152: =VLOOKUP(YEAR(G152),Справочники!$C$3:$I$33,7,FALSE) -> 366 | M152: =VLOOKUP(YEAR(G152),Справочники!$C$3:$D$33,2,FALSE) -> 26436.67197 | N152: 3289149.05 | O152: 2810000 | P152: 479149.0496 | Q152: 27370.62842 | R152: 0 | S152: 0 | T152: 26436.67197 | U152: 27370.62842 | V152: 2810000 | W152: 480083.006
F153: 143 | G153: 2028-11-01 | H153: 2028-11-30 | I153: 30 | J153: 4 | K153: 2028-11-30 | L153: =VLOOKUP(YEAR(G153),Справочники!$C$3:$I$33,7,FALSE) -> 366 | M153: =VLOOKUP(YEAR(G153),Справочники!$C$3:$D$33,2,FALSE) -> 26436.67197 | N153: 3290083.006 | O153: 2810000 | P153: 480083.006 | Q153: 26487.70492 | R153: 0 | S153: 0 | T153: 26436.67197 | U153: 26487.70492 | V153: 2810000 | W153: 480134.039
F154: 144 | G154: 2028-12-01 | H154: 2028-12-31 | I154: 31 | J154: 7 | K154: 2029-01-01 | L154: =VLOOKUP(YEAR(G154),Справочники!$C$3:$I$33,7,FALSE) -> 366 | M154: =VLOOKUP(YEAR(G154),Справочники!$C$3:$D$33,2,FALSE) -> 26436.67197 | N154: 3290134.039 | O154: 2810000 | P154: 480134.039 | Q154: 27370.62842 | R154: 0 | S154: 0 | T154: 26436.67197 | U154: 27370.62842 | V154: 2810000 | W154: 481067.9954
F155: 145 | G155: 2029-01-01 | H155: 2029-01-31 | I155: 31 | J155: 3 | K155: 2029-01-31 | L155: =VLOOKUP(YEAR(G155),Справочники!$C$3:$I$33,7,FALSE) -> 365 | M155: =VLOOKUP(YEAR(G155),Справочники!$C$3:$D$33,2,FALSE) -> 26965.40541 | N155: 3291067.995 | O155: 2810000 | P155: 481067.9954 | Q155: 27445.61644 | R155: 0 | S155: 0 | T155: 26965.40541 | U155: 27445.61644 | V155: 2810000 | W155: 481548.2065
F156: 146 | G156: 2029-02-01 | H156: 2029-02-28 | I156: 28 | J156: 3 | K156: 2029-02-28 | L156: =VLOOKUP(YEAR(G156),Справочники!$C$3:$I$33,7,FALSE) -> 365 | M156: =VLOOKUP(YEAR(G156),Справочники!$C$3:$D$33,2,FALSE) -> 26965.40541 | N156: 3291548.206 | O156: 2810000 | P156: 481548.2065 | Q156: 24789.58904 | R156: 0 | S156: 0 | T156: 26965.40541 | U156: 24789.58904 | V156: 2810000 | W156: 479372.3901
F157: 147 | G157: 2029-03-01 | H157: 2029-03-31 | I157: 31 | J157: 6 | K157: 2029-04-02 | L157: =VLOOKUP(YEAR(G157),Справочники!$C$3:$I$33,7,FALSE) -> 365 | M157: =VLOOKUP(YEAR(G157),Справочники!$C$3:$D$33,2,FALSE) -> 26965.40541 | N157: 3289372.39 | O157: 2810000 | P157: 479372.3901 | Q157: 27445.61644 | R157: 0 | S157: 0 | T157: 26965.40541 | U157: 27445.61644 | V157: 2810000 | W157: 479852.6011
F158: 148 | G158: 2029-04-01 | H158: 2029-04-30 | I158: 30 | J158: 1 | K158: 2029-04-30 | L158: =VLOOKUP(YEAR(G158),Справочники!$C$3:$I$33,7,FALSE) -> 365 | M158: =VLOOKUP(YEAR(G158),Справочники!$C$3:$D$33,2,FALSE) -> 26965.40541 | N158: 3289852.601 | O158: 2810000 | P158: 479852.6011 | Q158: 26560.27397 | R158: 0 | S158: 0 | T158: 26965.40541 | U158: 26560.27397 | V158: 2810000 | W158: 479447.4697
F159: 149 | G159: 2029-05-01 | H159: 2029-05-31 | I159: 31 | J159: 4 | K159: 2029-05-31 | L159: =VLOOKUP(YEAR(G159),Справочники!$C$3:$I$33,7,FALSE) -> 365 | M159: =VLOOKUP(YEAR(G159),Справочники!$C$3:$D$33,2,FALSE) -> 26965.40541 | N159: 3289447.47 | O159: 2810000 | P159: 479447.4697 | Q159: 27445.61644 | R159: 0 | S159: 0 | T159: 26965.40541 | U159: 27445.61644 | V159: 2810000 | W159: 479927.6807
F160: 150 | G160: 2029-06-01 | H160: 2029-06-30 | I160: 30 | J160: 6 | K160: 2029-07-02 | L160: =VLOOKUP(YEAR(G160),Справочники!$C$3:$I$33,7,FALSE) -> 365 | M160: =VLOOKUP(YEAR(G160),Справочники!$C$3:$D$33,2,FALSE) -> 26965.40541 | N160: 3289927.681 | O160: 2810000 | P160: 479927.6807 | Q160: 26560.27397 | R160: 0 | S160: 0 | T160: 26965.40541 | U160: 26560.27397 | V160: 2810000 | W160: 479522.5493
F161: 151 | G161: 2029-07-01 | H161: 2029-07-31 | I161: 31 | J161: 2 | K161: 2029-07-31 | L161: =VLOOKUP(YEAR(G161),Справочники!$C$3:$I$33,7,FALSE) -> 365 | M161: =VLOOKUP(YEAR(G161),Справочники!$C$3:$D$33,2,FALSE) -> 26965.40541 | N161: 3289522.549 | O161: 2810000 | P161: 479522.5493 | Q161: 27445.61644 | R161: 0 | S161: 0 | T161: 26965.40541 | U161: 27445.61644 | V161: 2810000 | W161: 480002.7603
F162: 152 | G162: 2029-08-01 | H162: 2029-08-31 | I162: 31 | J162: 5 | K162: 2029-08-31 | L162: =VLOOKUP(YEAR(G162),Справочники!$C$3:$I$33,7,FALSE) -> 365 | M162: =VLOOKUP(YEAR(G162),Справочники!$C$3:$D$33,2,FALSE) -> 26965.40541 | N162: 3290002.76 | O162: 2810000 | P162: 480002.7603 | Q162: 27445.61644 | R162: 0 | S162: 0 | T162: 26965.40541 | U162: 27445.61644 | V162: 2810000 | W162: 480482.9714
F163: 153 | G163: 2029-09-01 | H163: 2029-09-30 | I163: 30 | J163: 7 | K163: 2029-10-01 | L163: =VLOOKUP(YEAR(G163),Справочники!$C$3:$I$33,7,FALSE) -> 365 | M163: =VLOOKUP(YEAR(G163),Справочники!$C$3:$D$33,2,FALSE) -> 26965.40541 | N163: 3290482.971 | O163: 2810000 | P163: 480482.9714 | Q163: 26560.27397 | R163: 0 | S163: 0 | T163: 26965.40541 | U163: 26560.27397 | V163: 2810000 | W163: 480077.8399
F164: 154 | G164: 2029-10-01 | H164: 2029-10-31 | I164: 31 | J164: 3 | K164: 2029-10-31 | L164: =VLOOKUP(YEAR(G164),Справочники!$C$3:$I$33,7,FALSE) -> 365 | M164: =VLOOKUP(YEAR(G164),Справочники!$C$3:$D$33,2,FALSE) -> 26965.40541 | N164: 3290077.84 | O164: 2810000 | P164: 480077.8399 | Q164: 27445.61644 | R164: 0 | S164: 0 | T164: 26965.40541 | U164: 27445.61644 | V164: 2810000 | W164: 480558.051
F165: 155 | G165: 2029-11-01 | H165: 2029-11-30 | I165: 30 | J165: 5 | K165: 2029-11-30 | L165: =VLOOKUP(YEAR(G165),Справочники!$C$3:$I$33,7,FALSE) -> 365 | M165: =VLOOKUP(YEAR(G165),Справочники!$C$3:$D$33,2,FALSE) -> 26965.40541 | N165: 3290558.051 | O165: 2810000 | P165: 480558.051 | Q165: 26560.27397 | R165: 0 | S165: 0 | T165: 26965.40541 | U165: 26560.27397 | V165: 2810000 | W165: 480152.9195
F166: 156 | G166: 2029-12-01 | H166: 2029-12-31 | I166: 31 | J166: 1 | K166: 2029-12-31 | L166: =VLOOKUP(YEAR(G166),Справочники!$C$3:$I$33,7,FALSE) -> 365 | M166: =VLOOKUP(YEAR(G166),Справочники!$C$3:$D$33,2,FALSE) -> 26965.40541 | N166: 3290152.92 | O166: 2810000 | P166: 480152.9195 | Q166: 27445.61644 | R166: 0 | S166: 0 | T166: 26965.40541 | U166: 27445.61644 | V166: 2810000 | W166: 480633.1305
F167: 157 | G167: 2030-01-01 | H167: 2030-01-31 | I167: 31 | J167: 4 | K167: 2030-01-31 | L167: =VLOOKUP(YEAR(G167),Справочники!$C$3:$I$33,7,FALSE) -> 365 | M167: =VLOOKUP(YEAR(G167),Справочники!$C$3:$D$33,2,FALSE) -> 27477.74811 | N167: 3290633.131 | O167: 2810000 | P167: 480633.1305 | Q167: 27445.61644 | R167: 0 | S167: 0 | T167: 27477.74811 | U167: 27445.61644 | V167: 2810000 | W167: 480600.9989
F168: 158 | G168: 2030-02-01 | H168: 2030-02-28 | I168: 28 | J168: 4 | K168: 2030-02-28 | L168: =VLOOKUP(YEAR(G168),Справочники!$C$3:$I$33,7,FALSE) -> 365 | M168: =VLOOKUP(YEAR(G168),Справочники!$C$3:$D$33,2,FALSE) -> 27477.74811 | N168: 3290600.999 | O168: 2810000 | P168: 480600.9989 | Q168: 24789.58904 | R168: 0 | S168: 0 | T168: 27477.74811 | U168: 24789.58904 | V168: 2810000 | W168: 477912.8398
F169: 159 | G169: 2030-03-01 | H169: 2030-03-31 | I169: 31 | J169: 7 | K169: 2030-04-01 | L169: =VLOOKUP(YEAR(G169),Справочники!$C$3:$I$33,7,FALSE) -> 365 | M169: =VLOOKUP(YEAR(G169),Справочники!$C$3:$D$33,2,FALSE) -> 27477.74811 | N169: 3287912.84 | O169: 2810000 | P169: 477912.8398 | Q169: 27445.61644 | R169: 0 | S169: 0 | T169: 27477.74811 | U169: 27445.61644 | V169: 2810000 | W169: 477880.7081
F170: 160 | G170: 2030-04-01 | H170: 2030-04-30 | I170: 30 | J170: 2 | K170: 2030-04-30 | L170: =VLOOKUP(YEAR(G170),Справочники!$C$3:$I$33,7,FALSE) -> 365 | M170: =VLOOKUP(YEAR(G170),Справочники!$C$3:$D$33,2,FALSE) -> 27477.74811 | N170: 3287880.708 | O170: 2810000 | P170: 477880.7081 | Q170: 26560.27397 | R170: 0 | S170: 0 | T170: 27477.74811 | U170: 26560.27397 | V170: 2810000 | W170: 476963.234
F171: 161 | G171: 2030-05-01 | H171: 2030-05-31 | I171: 31 | J171: 5 | K171: 2030-05-31 | L171: =VLOOKUP(YEAR(G171),Справочники!$C$3:$I$33,7,FALSE) -> 365 | M171: =VLOOKUP(YEAR(G171),Справочники!$C$3:$D$33,2,FALSE) -> 27477.74811 | N171: 3286963.234 | O171: 2810000 | P171: 476963.234 | Q171: 27445.61644 | R171: 0 | S171: 0 | T171: 27477.74811 | U171: 27445.61644 | V171: =O171-R171 -> 2810000 | W171: =P171+U171-T171 -> 476931.1023
F172: 162 | G172: 2030-06-01 | H172: 2030-06-30 | I172: 30 | J172: 7 | K172: 2030-07-01 | L172: =VLOOKUP(YEAR(G172),Справочники!$C$3:$I$33,7,FALSE) -> 365 | M172: =VLOOKUP(YEAR(G172),Справочники!$C$3:$D$33,2,FALSE) -> 27477.74811 | N172: 3286931.102 | O172: 2810000 | P172: 476931.1023 | Q172: 26560.27397 | R172: 0 | S172: 0 | T172: 27477.74811 | U172: 26560.27397 | V172: 2810000 | W172: 476013.6282
F173: 163 | G173: 2030-07-01 | H173: 2030-07-31 | I173: 31 | J173: 3 | K173: 2030-07-31 | L173: =VLOOKUP(YEAR(G173),Справочники!$C$3:$I$33,7,FALSE) -> 365 | M173: =VLOOKUP(YEAR(G173),Справочники!$C$3:$D$33,2,FALSE) -> 27477.74811 | N173: 3286013.628 | O173: 2810000 | P173: 476013.6282 | Q173: 27445.61644 | R173: 0 | S173: 0 | T173: 27477.74811 | U173: 27445.61644 | V173: 2810000 | W173: 475981.4965
F174: 164 | G174: 2030-08-01 | H174: 2030-08-31 | I174: 31 | J174: 6 | K174: 2030-09-02 | L174: =VLOOKUP(YEAR(G174),Справочники!$C$3:$I$33,7,FALSE) -> 365 | M174: =VLOOKUP(YEAR(G174),Справочники!$C$3:$D$33,2,FALSE) -> 27477.74811 | N174: 3285981.497 | O174: 2810000 | P174: 475981.4965 | Q174: 27445.61644 | R174: 0 | S174: 0 | T174: 27477.74811 | U174: 27445.61644 | V174: 2810000 | W174: 475949.3648
F175: 165 | G175: 2030-09-01 | H175: 2030-09-30 | I175: 30 | J175: 1 | K175: 2030-09-30 | L175: =VLOOKUP(YEAR(G175),Справочники!$C$3:$I$33,7,FALSE) -> 365 | M175: =VLOOKUP(YEAR(G175),Справочники!$C$3:$D$33,2,FALSE) -> 27477.74811 | N175: 3285949.365 | O175: 2810000 | P175: 475949.3648 | Q175: 26560.27397 | R175: 0 | S175: 0 | T175: 27477.74811 | U175: 26560.27397 | V175: 2810000 | W175: 475031.8907
F176: 166 | G176: 2030-10-01 | H176: 2030-10-31 | I176: 31 | J176: 4 | K176: 2030-10-31 | L176: =VLOOKUP(YEAR(G176),Справочники!$C$3:$I$33,7,FALSE) -> 365 | M176: =VLOOKUP(YEAR(G176),Справочники!$C$3:$D$33,2,FALSE) -> 27477.74811 | N176: 3285031.891 | O176: 2810000 | P176: 475031.8907 | Q176: 27445.61644 | R176: 0 | S176: 0 | T176: 27477.74811 | U176: 27445.61644 | V176: 2810000 | W176: 474999.759
F177: 167 | G177: 2030-11-01 | H177: 2030-11-30 | I177: 30 | J177: 6 | K177: 2030-12-02 | L177: =VLOOKUP(YEAR(G177),Справочники!$C$3:$I$33,7,FALSE) -> 365 | M177: =VLOOKUP(YEAR(G177),Справочники!$C$3:$D$33,2,FALSE) -> 27477.74811 | N177: 3284999.759 | O177: 2810000 | P177: 474999.759 | Q177: 26560.27397 | R177: 0 | S177: 0 | T177: 27477.74811 | U177: 26560.27397 | V177: 2810000 | W177: 474082.2849
F178: 168 | G178: 2030-12-01 | H178: 2030-12-31 | I178: 31 | J178: 2 | K178: 2030-12-31 | L178: =VLOOKUP(YEAR(G178),Справочники!$C$3:$I$33,7,FALSE) -> 365 | M178: =VLOOKUP(YEAR(G178),Справочники!$C$3:$D$33,2,FALSE) -> 27477.74811 | N178: 3284082.285 | O178: 2810000 | P178: 474082.2849 | Q178: 27445.61644 | R178: 0 | S178: 0 | T178: 27477.74811 | U178: 27445.61644 | V178: 2810000 | W178: 474050.1532
F179: 169 | G179: 2031-01-01 | H179: 2031-01-31 | I179: 31 | J179: 5 | K179: 2031-01-31 | L179: =VLOOKUP(YEAR(G179),Справочники!$C$3:$I$33,7,FALSE) -> 365 | M179: =VLOOKUP(YEAR(G179),Справочники!$C$3:$D$33,2,FALSE) -> 28027.30307 | N179: 3284050.153 | O179: 2810000 | P179: 474050.1532 | Q179: 27445.61644 | R179: 0 | S179: 0 | T179: 28027.30307 | U179: 27445.61644 | V179: 2810000 | W179: 473468.4666
F180: 170 | G180: 2031-02-01 | H180: 2031-02-28 | I180: 28 | J180: 5 | K180: 2031-02-28 | L180: =VLOOKUP(YEAR(G180),Справочники!$C$3:$I$33,7,FALSE) -> 365 | M180: =VLOOKUP(YEAR(G180),Справочники!$C$3:$D$33,2,FALSE) -> 28027.30307 | N180: 3283468.467 | O180: 2810000 | P180: 473468.4666 | Q180: 24789.58904 | R180: 0 | S180: 0 | T180: 28027.30307 | U180: 24789.58904 | V180: 2810000 | W180: 470230.7526
F181: 171 | G181: 2031-03-01 | H181: 2031-03-31 | I181: 31 | J181: 1 | K181: 2031-03-31 | L181: =VLOOKUP(YEAR(G181),Справочники!$C$3:$I$33,7,FALSE) -> 365 | M181: =VLOOKUP(YEAR(G181),Справочники!$C$3:$D$33,2,FALSE) -> 28027.30307 | N181: 3280230.753 | O181: 2810000 | P181: 470230.7526 | Q181: 27445.61644 | R181: 0 | S181: 0 | T181: 28027.30307 | U181: 27445.61644 | V181: 2810000 | W181: 469649.0659
F182: 172 | G182: 2031-04-01 | H182: 2031-04-30 | I182: 30 | J182: 3 | K182: 2031-04-30 | L182: =VLOOKUP(YEAR(G182),Справочники!$C$3:$I$33,7,FALSE) -> 365 | M182: =VLOOKUP(YEAR(G182),Справочники!$C$3:$D$33,2,FALSE) -> 28027.30307 | N182: 3279649.066 | O182: 2810000 | P182: 469649.0659 | Q182: 26560.27397 | R182: 0 | S182: 0 | T182: 28027.30307 | U182: 26560.27397 | V182: 2810000 | W182: 468182.0368
F183: 173 | G183: 2031-05-01 | H183: 2031-05-31 | I183: 31 | J183: 6 | K183: 2031-06-02 | L183: =VLOOKUP(YEAR(G183),Справочники!$C$3:$I$33,7,FALSE) -> 365 | M183: =VLOOKUP(YEAR(G183),Справочники!$C$3:$D$33,2,FALSE) -> 28027.30307 | N183: 3278182.037 | O183: 2810000 | P183: 468182.0368 | Q183: 27445.61644 | R183: 0 | S183: 0 | T183: 28027.30307 | U183: 27445.61644 | V183: 2810000 | W183: 467600.3502
F184: 174 | G184: 2031-06-01 | H184: 2031-06-30 | I184: 30 | J184: 1 | K184: 2031-06-30 | L184: =VLOOKUP(YEAR(G184),Справочники!$C$3:$I$33,7,FALSE) -> 365 | M184: =VLOOKUP(YEAR(G184),Справочники!$C$3:$D$33,2,FALSE) -> 28027.30307 | N184: 3277600.35 | O184: 2810000 | P184: 467600.3502 | Q184: 26560.27397 | R184: 0 | S184: 0 | T184: 28027.30307 | U184: 26560.27397 | V184: 2810000 | W184: 466133.3211
F185: 175 | G185: 2031-07-01 | H185: 2031-07-31 | I185: 31 | J185: 4 | K185: 2031-07-31 | L185: =VLOOKUP(YEAR(G185),Справочники!$C$3:$I$33,7,FALSE) -> 365 | M185: =VLOOKUP(YEAR(G185),Справочники!$C$3:$D$33,2,FALSE) -> 28027.30307 | N185: 3276133.321 | O185: 2810000 | P185: 466133.3211 | Q185: 27445.61644 | R185: 0 | S185: 0 | T185: 28027.30307 | U185: 27445.61644 | V185: 2810000 | W185: 465551.6344
F186: 176 | G186: 2031-08-01 | H186: 2031-08-31 | I186: 31 | J186: 7 | K186: 2031-09-01 | L186: =VLOOKUP(YEAR(G186),Справочники!$C$3:$I$33,7,FALSE) -> 365 | M186: =VLOOKUP(YEAR(G186),Справочники!$C$3:$D$33,2,FALSE) -> 28027.30307 | N186: 3275551.634 | O186: 2810000 | P186: 465551.6344 | Q186: 27445.61644 | R186: 0 | S186: 0 | T186: 28027.30307 | U186: 27445.61644 | V186: 2810000 | W186: 464969.9478
F187: 177 | G187: 2031-09-01 | H187: 2031-09-30 | I187: 30 | J187: 2 | K187: 2031-09-30 | L187: =VLOOKUP(YEAR(G187),Справочники!$C$3:$I$33,7,FALSE) -> 365 | M187: =VLOOKUP(YEAR(G187),Справочники!$C$3:$D$33,2,FALSE) -> 28027.30307 | N187: 3274969.948 | O187: 2810000 | P187: 464969.9478 | Q187: 26560.27397 | R187: 0 | S187: 0 | T187: 28027.30307 | U187: 26560.27397 | V187: 2810000 | W187: 463502.9187
F188: 178 | G188: 2031-10-01 | H188: 2031-10-31 | I188: 31 | J188: 5 | K188: 2031-10-31 | L188: =VLOOKUP(YEAR(G188),Справочники!$C$3:$I$33,7,FALSE) -> 365 | M188: =VLOOKUP(YEAR(G188),Справочники!$C$3:$D$33,2,FALSE) -> 28027.30307 | N188: 3273502.919 | O188: 2810000 | P188: 463502.9187 | Q188: 27445.61644 | R188: 0 | S188: 0 | T188: 28027.30307 | U188: 27445.61644 | V188: 2810000 | W188: 462921.2321
F189: 179 | G189: 2031-11-01 | H189: 2031-11-30 | I189: 30 | J189: 7 | K189: 2031-12-01 | L189: =VLOOKUP(YEAR(G189),Справочники!$C$3:$I$33,7,FALSE) -> 365 | M189: =VLOOKUP(YEAR(G189),Справочники!$C$3:$D$33,2,FALSE) -> 28027.30307 | N189: 3272921.232 | O189: 2810000 | P189: 462921.2321 | Q189: 26560.27397 | R189: 0 | S189: 0 | T189: 28027.30307 | U189: 26560.27397 | V189: 2810000 | W189: 461454.203
F190: 180 | G190: 2031-12-01 | H190: 2031-12-31 | I190: 31 | J190: 3 | K190: 2031-12-31 | L190: =VLOOKUP(YEAR(G190),Справочники!$C$3:$I$33,7,FALSE) -> 365 | M190: =VLOOKUP(YEAR(G190),Справочники!$C$3:$D$33,2,FALSE) -> 28027.30307 | N190: 3271454.203 | O190: 2810000 | P190: 461454.203 | Q190: 27445.61644 | R190: 0 | S190: 0 | T190: 28027.30307 | U190: 27445.61644 | V190: 2810000 | W190: 460872.5163
F191: 181 | G191: 2032-01-01 | H191: 2032-01-31 | I191: 31 | J191: 6 | K191: 2032-02-02 | L191: =VLOOKUP(YEAR(G191),Справочники!$C$3:$I$33,7,FALSE) -> 366 | M191: =VLOOKUP(YEAR(G191),Справочники!$C$3:$D$33,2,FALSE) -> 28587.84913 | N191: 3270872.516 | O191: 2810000 | P191: 460872.5163 | Q191: 27370.62842 | R191: 0 | S191: 0 | T191: 28587.84913 | U191: 27370.62842 | V191: 2810000 | W191: 459655.2956
F192: 182 | G192: 2032-02-01 | H192: 2032-02-29 | I192: 29 | J192: 7 | K192: 2032-03-01 | L192: =VLOOKUP(YEAR(G192),Справочники!$C$3:$I$33,7,FALSE) -> 366 | M192: =VLOOKUP(YEAR(G192),Справочники!$C$3:$D$33,2,FALSE) -> 28587.84913 | N192: 3269655.296 | O192: 2810000 | P192: 459655.2956 | Q192: 25604.78142 | R192: 0 | S192: 0 | T192: 28587.84913 | U192: 25604.78142 | V192: 2810000 | W192: 456672.2279
F193: 183 | G193: 2032-03-01 | H193: 2032-03-31 | I193: 31 | J193: 3 | K193: 2032-03-31 | L193: =VLOOKUP(YEAR(G193),Справочники!$C$3:$I$33,7,FALSE) -> 366 | M193: =VLOOKUP(YEAR(G193),Справочники!$C$3:$D$33,2,FALSE) -> 28587.84913 | N193: 3266672.228 | O193: 2810000 | P193: 456672.2279 | Q193: 27370.62842 | R193: 0 | S193: 0 | T193: 28587.84913 | U193: 27370.62842 | V193: 2810000 | W193: 455455.0072
F194: 184 | G194: 2032-04-01 | H194: 2032-04-30 | I194: 30 | J194: 5 | K194: 2032-04-30 | L194: =VLOOKUP(YEAR(G194),Справочники!$C$3:$I$33,7,FALSE) -> 366 | M194: =VLOOKUP(YEAR(G194),Справочники!$C$3:$D$33,2,FALSE) -> 28587.84913 | N194: 3265455.007 | O194: 2810000 | P194: 455455.0072 | Q194: 26487.70492 | R194: 0 | S194: 0 | T194: 28587.84913 | U194: 26487.70492 | V194: 2810000 | W194: 453354.863
F195: 185 | G195: 2032-05-01 | H195: 2032-05-31 | I195: 31 | J195: 1 | K195: 2032-05-31 | L195: =VLOOKUP(YEAR(G195),Справочники!$C$3:$I$33,7,FALSE) -> 366 | M195: =VLOOKUP(YEAR(G195),Справочники!$C$3:$D$33,2,FALSE) -> 28587.84913 | N195: 3263354.863 | O195: 2810000 | P195: 453354.863 | Q195: 27370.62842 | R195: 0 | S195: 0 | T195: 28587.84913 | U195: 27370.62842 | V195: 2810000 | W195: 452137.6423
F196: 186 | G196: 2032-06-01 | H196: 2032-06-30 | I196: 30 | J196: 3 | K196: 2032-06-30 | L196: =VLOOKUP(YEAR(G196),Справочники!$C$3:$I$33,7,FALSE) -> 366 | M196: =VLOOKUP(YEAR(G196),Справочники!$C$3:$D$33,2,FALSE) -> 28587.84913 | N196: 3262137.642 | O196: 2810000 | P196: 452137.6423 | Q196: 26487.70492 | R196: 0 | S196: 0 | T196: 28587.84913 | U196: 26487.70492 | V196: 2810000 | W196: 450037.498
F197: 187 | G197: 2032-07-01 | H197: 2032-07-31 | I197: 31 | J197: 6 | K197: 2032-08-02 | L197: =VLOOKUP(YEAR(G197),Справочники!$C$3:$I$33,7,FALSE) -> 366 | M197: =VLOOKUP(YEAR(G197),Справочники!$C$3:$D$33,2,FALSE) -> 28587.84913 | N197: 3260037.498 | O197: 2810000 | P197: 450037.498 | Q197: 27370.62842 | R197: 0 | S197: 0 | T197: 28587.84913 | U197: 27370.62842 | V197: 2810000 | W197: 448820.2773
F198: 188 | G198: 2032-08-01 | H198: 2032-08-31 | I198: 31 | J198: 2 | K198: 2032-08-31 | L198: =VLOOKUP(YEAR(G198),Справочники!$C$3:$I$33,7,FALSE) -> 366 | M198: =VLOOKUP(YEAR(G198),Справочники!$C$3:$D$33,2,FALSE) -> 28587.84913 | N198: 3258820.277 | O198: 2810000 | P198: 448820.2773 | Q198: 27370.62842 | R198: 0 | S198: 0 | T198: 28587.84913 | U198: 27370.62842 | V198: 2810000 | W198: 447603.0566
F199: 189 | G199: 2032-09-01 | H199: 2032-09-30 | I199: 30 | J199: 4 | K199: 2032-09-30 | L199: =VLOOKUP(YEAR(G199),Справочники!$C$3:$I$33,7,FALSE) -> 366 | M199: =VLOOKUP(YEAR(G199),Справочники!$C$3:$D$33,2,FALSE) -> 28587.84913 | N199: 3257603.057 | O199: 2810000 | P199: 447603.0566 | Q199: 26487.70492 | R199: 0 | S199: 0 | T199: 28587.84913 | U199: 26487.70492 | V199: 2810000 | W199: 445502.9124
F200: 190 | G200: 2032-10-01 | H200: 2032-10-31 | I200: 31 | J200: 7 | K200: 2032-11-01 | L200: =VLOOKUP(YEAR(G200),Справочники!$C$3:$I$33,7,FALSE) -> 366 | M200: =VLOOKUP(YEAR(G200),Справочники!$C$3:$D$33,2,FALSE) -> 28587.84913 | N200: 3255502.912 | O200: 2810000 | P200: 445502.9124 | Q200: 27370.62842 | R200: 0 | S200: 0 | T200: 28587.84913 | U200: 27370.62842 | V200: 2810000 | W200: 444285.6917
F201: 191 | G201: 2032-11-01 | H201: 2032-11-30 | I201: 30 | J201: 2 | K201: 2032-11-30 | L201: =VLOOKUP(YEAR(G201),Справочники!$C$3:$I$33,7,FALSE) -> 366 | M201: =VLOOKUP(YEAR(G201),Справочники!$C$3:$D$33,2,FALSE) -> 28587.84913 | N201: 3254285.692 | O201: 2810000 | P201: 444285.6917 | Q201: 26487.70492 | R201: 0 | S201: 0 | T201: 28587.84913 | U201: 26487.70492 | V201: 2810000 | W201: 442185.5475
F202: 192 | G202: 2032-12-01 | H202: 2032-12-31 | I202: 31 | J202: 5 | K202: 2032-12-31 | L202: =VLOOKUP(YEAR(G202),Справочники!$C$3:$I$33,7,FALSE) -> 366 | M202: =VLOOKUP(YEAR(G202),Справочники!$C$3:$D$33,2,FALSE) -> 28587.84913 | N202: 3252185.547 | O202: 2810000 | P202: 442185.5475 | Q202: 27370.62842 | R202: 0 | S202: 0 | T202: 28587.84913 | U202: 27370.62842 | V202: 2810000 | W202: 440968.3267
... 168 more rows

Sheet График платежей_ФГКУ (hidden)
B2: Параметр | D2: Значение
B3: Сумма кредита | D3: ='График платежей'!$D$3 -> 2810000
B4: Ставка | D4: ='График платежей'!$D$4 -> 0.115
B5: Максимальный срок, мес. | D5: ='График платежей'!$D$5 -> 2040-01-31
B6: Расчетный период полного погашения | D6: =MATCH(0,V11:V370,0) -> 325
B7: Остаток долга на конец срока кредита | D7: =VLOOKUP(D5,$G$11:$O$370,8,TRUE) -> 1374425.944
B8: Расчетная дата полного погашения | D8: =VLOOKUP(D6,$F$11:$H$370,3,FALSE) -> 2044-01-31 | P8: График платежей
B9: Возраст заемщика на даты погашения, лет | D9: =YEARFRAC('Ввод данных'!L11,$D$8) -> 49.08055556 | G9: Начало процентного периода | H9: Конец месяца (процентного периода) | I9: Процентный период, дн. | J9: День недели | K9: Первый рабочий день нового месяца | L9: Кол-во дней в году | M9: Платеж | N9: Общий долга на начало | O9: ОД на начало | P9: Накопленные %% на начало | Q9: Начислено за месяц | R9: Погашение ОД | S9: Погашение текущих % | T9: Погашение накопленных %% | U9: Формирование накопленных %% | V9: ОД на конец периода | W9: Накопленные %% на конец периода
F11: 1 | G11: ='Ввод данных'!$L$13 -> 2017-01-15 | H11: =EOMONTH(G11,0) -> 2017-01-31 | I11: =H11-G11 -> 16 | J11: =WEEKDAY(H11,11) -> 2 | K11: =WORKDAY(H11,IF(OR(J11=6,J11=7),1,0)) -> 2017-01-31 | L11: =VLOOKUP(YEAR(G11),Справочники!$C$3:$I$33,7,FALSE) -> 365 | M11: =VLOOKUP(YEAR(G11),Справочники!$C$3:$F$33,4,FALSE) -> 21678 | N11: =O11+P11 -> 2810000 | O11: =D3 -> 2810000 | P11: 0 | Q11: =O11*$D$4/L11*I11 -> 14165.47945 | R11: 0 | S11: 0 | T11: 0 | U11: =MAX(Q11-S11,0) -> 14165.47945 | V11: =O11-R11 -> 2810000 | W11: =P11+U11-T11 -> 14165.47945
F12: 2 | G12: =H11+1 -> 2017-02-01 | H12: =EOMONTH(G12,0) -> 2017-02-28 | I12: =H12-G12+1 -> 28 | J12: =WEEKDAY(H12,11) -> 2 | K12: =WORKDAY(H12,IF(OR(J12=6,J12=7),1,0)) -> 2017-02-28 | L12: =VLOOKUP(YEAR(G12),Справочники!$C$3:$I$33,7,FALSE) -> 365 | M12: =VLOOKUP(YEAR(G12),Справочники!$C$3:$F$33,4,FALSE)+MIN(W11,M11) -> 35843.47945 | N12: =O12+P12 -> 2824165.479 | O12: =V11 -> 2810000 | P12: =W11 -> 14165.47945 | Q12: =O12*$D$4/L12*I12 -> 24789.58904 | R12: =MIN(M12-T12-S12,O12) -> 0 | S12: =MIN(M12-T12,Q12) -> 21678 | T12: =MIN(M12,P12) -> 14165.47945 | U12: =MAX(Q12-S12,0) -> 3111.589041 | V12: =O12-R12 -> 2810000 | W12: 3111.589041
F13: 3 | G13: =H12+1 -> 2017-03-01 | H13: 2017-03-31 | I13: =H13-G13+1 -> 31 | J13: 5 | K13: 2017-03-31 | L13: =VLOOKUP(YEAR(G13),Справочники!$C$3:$I$33,7,FALSE) -> 365 | M13: =VLOOKUP(YEAR(G13),Справочники!$C$3:$F$33,4,FALSE)+IF('Ввод данных'!$L$49="да",'Ввод данных'!$L$47,0) -> 21678 | N13: 2813111.589 | O13: =V12 -> 2810000 | P13: 3111.589041 | Q13: =O13*$D$4/L13*I13 -> 27445.61644 | R13: 0 | S13: 18566.41096 | T13: 3111.589041 | U13: =MAX(Q13-S13,0) -> 8879.205479 | V13: 2810000 | W13: 8879.205479
F14: 4 | G14: 2017-04-01 | H14: 2017-04-30 | I14: 30 | J14: 7 | K14: 2017-05-01 | L14: =VLOOKUP(YEAR(G14),Справочники!$C$3:$I$33,7,FALSE) -> 365 | M14: =VLOOKUP(YEAR(G14),Справочники!$C$3:$F$33,4,FALSE) -> 21678 | N14: 2818879.205 | O14: 2810000 | P14: 8879.205479 | Q14: 26560.27397 | R14: 0 | S14: 12798.79452 | T14: 8879.205479 | U14: 13761.47945 | V14: 2810000 | W14: 13761.47945
F15: 5 | G15: 2017-05-01 | H15: 2017-05-31 | I15: 31 | J15: 3 | K15: 2017-05-31 | L15: =VLOOKUP(YEAR(G15),Справочники!$C$3:$I$33,7,FALSE) -> 365 | M15: =VLOOKUP(YEAR(G15),Справочники!$C$3:$F$33,4,FALSE) -> 21678 | N15: 2823761.479 | O15: 2810000 | P15: 13761.47945 | Q15: 27445.61644 | R15: 0 | S15: 7916.520548 | T15: 13761.47945 | U15: 19529.09589 | V15: 2810000 | W15: 19529.09589
F16: 6 | G16: 2017-06-01 | H16: 2017-06-30 | I16: 30 | J16: 5 | K16: 2017-06-30 | L16: =VLOOKUP(YEAR(G16),Справочники!$C$3:$I$33,7,FALSE) -> 365 | M16: =VLOOKUP(YEAR(G16),Справочники!$C$3:$F$33,4,FALSE) -> 21678 | N16: 2829529.096 | O16: 2810000 | P16: 19529.09589 | Q16: 26560.27397 | R16: 0 | S16: 2148.90411 | T16: 19529.09589 | U16: 24411.36986 | V16: 2810000 | W16: 24411.36986
F17: 7 | G17: 2017-07-01 | H17: 2017-07-31 | I17: 31 | J17: 1 | K17: 2017-07-31 | L17: =VLOOKUP(YEAR(G17),Справочники!$C$3:$I$33,7,FALSE) -> 365 | M17: =VLOOKUP(YEAR(G17),Справочники!$C$3:$F$33,4,FALSE) -> 21678 | N17: 2834411.37 | O17: =V16 -> 2810000 | P17: =W16 -> 24411.36986 | Q17: 27445.61644 | R17: 0 | S17: 0 | T17: 21678 | U17: =MAX(Q17-S17,0) -> 27445.61644 | V17: 2810000 | W17: 30178.9863
F18: 8 | G18: 2017-08-01 | H18: 2017-08-31 | I18: 31 | J18: 4 | K18: 2017-08-31 | L18: =VLOOKUP(YEAR(G18),Справочники!$C$3:$I$33,7,FALSE) -> 365 | M18: =VLOOKUP(YEAR(G18),Справочники!$C$3:$F$33,4,FALSE) -> 21678 | N18: 2840178.986 | O18: =V17 -> 2810000 | P18: =W17 -> 30178.9863 | Q18: 27445.61644 | R18: 0 | S18: 0 | T18: 21678 | U18: 27445.61644 | V18: 2810000 | W18: 35946.60274
F19: 9 | G19: 2017-09-01 | H19: 2017-09-30 | I19: 30 | J19: 6 | K19: 2017-10-02 | L19: =VLOOKUP(YEAR(G19),Справочники!$C$3:$I$33,7,FALSE) -> 365 | M19: =VLOOKUP(YEAR(G19),Справочники!$C$3:$F$33,4,FALSE) -> 21678 | N19: 2845946.603 | O19: 2810000 | P19: 35946.60274 | Q19: 26560.27397 | R19: 0 | S19: 0 | T19: 21678 | U19: 26560.27397 | V19: 2810000 | W19: 40828.87671
F20: 10 | G20: 2017-10-01 | H20: 2017-10-31 | I20: 31 | J20: 2 | K20: 2017-10-31 | L20: =VLOOKUP(YEAR(G20),Справочники!$C$3:$I$33,7,FALSE) -> 365 | M20: =VLOOKUP(YEAR(G20),Справочники!$C$3:$F$33,4,FALSE) -> 21678 | N20: 2850828.877 | O20: 2810000 | P20: 40828.87671 | Q20: 27445.61644 | R20: 0 | S20: 0 | T20: 21678 | U20: 27445.61644 | V20: 2810000 | W20: 46596.49315
F21: 11 | G21: 2017-11-01 | H21: 2017-11-30 | I21: 30 | J21: 4 | K21: 2017-11-30 | L21: =VLOOKUP(YEAR(G21),Справочники!$C$3:$I$33,7,FALSE) -> 365 | M21: =VLOOKUP(YEAR(G21),Справочники!$C$3:$F$33,4,FALSE) -> 21678 | N21: 2856596.493 | O21: 2810000 | P21: 46596.49315 | Q21: 26560.27397 | R21: 0 | S21: 0 | T21: 21678 | U21: 26560.27397 | V21: 2810000 | W21: 51478.76712
F22: 12 | G22: 2017-12-01 | H22: 2017-12-31 | I22: 31 | J22: 7 | K22: 2018-01-01 | L22: =VLOOKUP(YEAR(G22),Справочники!$C$3:$I$33,7,FALSE) -> 365 | M22: =VLOOKUP(YEAR(G22),Справочники!$C$3:$F$33,4,FALSE) -> 21678 | N22: 2861478.767 | O22: 2810000 | P22: 51478.76712 | Q22: 27445.61644 | R22: 0 | S22: 0 | T22: 21678 | U22: 27445.61644 | V22: 2810000 | W22: 57246.38356
F23: 13 | G23: 2018-01-01 | H23: 2018-01-31 | I23: 31 | J23: 3 | K23: 2018-01-31 | L23: =VLOOKUP(YEAR(G23),Справочники!$C$3:$I$33,7,FALSE) -> 365 | M23: =VLOOKUP(YEAR(G23),Справочники!$C$3:$F$33,4,FALSE) -> 23050 | N23: 2867246.384 | O23: =V22 -> 2810000 | P23: =W22 -> 57246.38356 | Q23: 27445.61644 | R23: 0 | S23: 0 | T23: 23050 | U23: 27445.61644 | V23: 2810000 | W23: 61642
F24: 14 | G24: 2018-02-01 | H24: 2018-02-28 | I24: 28 | J24: 3 | K24: 2018-02-28 | L24: =VLOOKUP(YEAR(G24),Справочники!$C$3:$I$33,7,FALSE) -> 365 | M24: =VLOOKUP(YEAR(G24),Справочники!$C$3:$F$33,4,FALSE) -> 23050 | N24: 2871642 | O24: 2810000 | P24: 61642 | Q24: 24789.58904 | R24: 0 | S24: 0 | T24: 23050 | U24: 24789.58904 | V24: 2810000 | W24: 63381.58904
F25: 15 | G25: 2018-03-01 | H25: 2018-03-31 | I25: 31 | J25: 6 | K25: 2018-04-02 | L25: =VLOOKUP(YEAR(G25),Справочники!$C$3:$I$33,7,FALSE) -> 365 | M25: =VLOOKUP(YEAR(G25),Справочники!$C$3:$F$33,4,FALSE) -> 23050 | N25: 2873381.589 | O25: 2810000 | P25: 63381.58904 | Q25: 27445.61644 | R25: 0 | S25: 0 | T25: 23050 | U25: 27445.61644 | V25: 2810000 | W25: 67777.20548
F26: 16 | G26: 2018-04-01 | H26: 2018-04-30 | I26: 30 | J26: 1 | K26: 2018-04-30 | L26: =VLOOKUP(YEAR(G26),Справочники!$C$3:$I$33,7,FALSE) -> 365 | M26: =VLOOKUP(YEAR(G26),Справочники!$C$3:$F$33,4,FALSE) -> 23050 | N26: 2877777.205 | O26: 2810000 | P26: 67777.20548 | Q26: 26560.27397 | R26: 0 | S26: 0 | T26: 23050 | U26: 26560.27397 | V26: 2810000 | W26: 71287.47945
F27: 17 | G27: 2018-05-01 | H27: 2018-05-31 | I27: 31 | J27: 4 | K27: 2018-05-31 | L27: =VLOOKUP(YEAR(G27),Справочники!$C$3:$I$33,7,FALSE) -> 365 | M27: =VLOOKUP(YEAR(G27),Справочники!$C$3:$F$33,4,FALSE) -> 23050 | N27: 2881287.479 | O27: 2810000 | P27: 71287.47945 | Q27: 27445.61644 | R27: 0 | S27: 0 | T27: 23050 | U27: 27445.61644 | V27: 2810000 | W27: 75683.09589
F28: 18 | G28: 2018-06-01 | H28: 2018-06-30 | I28: 30 | J28: 6 | K28: 2018-07-02 | L28: =VLOOKUP(YEAR(G28),Справочники!$C$3:$I$33,7,FALSE) -> 365 | M28: =VLOOKUP(YEAR(G28),Справочники!$C$3:$F$33,4,FALSE) -> 23050 | N28: 2885683.096 | O28: 2810000 | P28: 75683.09589 | Q28: 26560.27397 | R28: 0 | S28: 0 | T28: 23050 | U28: 26560.27397 | V28: 2810000 | W28: 79193.36986
F29: 19 | G29: 2018-07-01 | H29: 2018-07-31 | I29: 31 | J29: 2 | K29: 2018-07-31 | L29: =VLOOKUP(YEAR(G29),Справочники!$C$3:$I$33,7,FALSE) -> 365 | M29: =VLOOKUP(YEAR(G29),Справочники!$C$3:$F$33,4,FALSE) -> 23050 | N29: 2889193.37 | O29: 2810000 | P29: 79193.36986 | Q29: 27445.61644 | R29: 0 | S29: 0 | T29: 23050 | U29: 27445.61644 | V29: 2810000 | W29: 83588.9863
F30: 20 | G30: 2018-08-01 | H30: 2018-08-31 | I30: 31 | J30: 5 | K30: 2018-08-31 | L30: =VLOOKUP(YEAR(G30),Справочники!$C$3:$I$33,7,FALSE) -> 365 | M30: =VLOOKUP(YEAR(G30),Справочники!$C$3:$F$33,4,FALSE) -> 23050 | N30: 2893588.986 | O30: 2810000 | P30: 83588.9863 | Q30: 27445.61644 | R30: 0 | S30: 0 | T30: 23050 | U30: 27445.61644 | V30: 2810000 | W30: 87984.60274
F31: 21 | G31: 2018-09-01 | H31: 2018-09-30 | I31: 30 | J31: 7 | K31: 2018-10-01 | L31: =VLOOKUP(YEAR(G31),Справочники!$C$3:$I$33,7,FALSE) -> 365 | M31: =VLOOKUP(YEAR(G31),Справочники!$C$3:$F$33,4,FALSE) -> 23050 | N31: 2897984.603 | O31: 2810000 | P31: 87984.60274 | Q31: 26560.27397 | R31: 0 | S31: 0 | T31: 23050 | U31: 26560.27397 | V31: 2810000 | W31: 91494.87671
F32: 22 | G32: 2018-10-01 | H32: 2018-10-31 | I32: 31 | J32: 3 | K32: 2018-10-31 | L32: =VLOOKUP(YEAR(G32),Справочники!$C$3:$I$33,7,FALSE) -> 365 | M32: =VLOOKUP(YEAR(G32),Справочники!$C$3:$F$33,4,FALSE) -> 23050 | N32: 2901494.877 | O32: 2810000 | P32: 91494.87671 | Q32: 27445.61644 | R32: 0 | S32: 0 | T32: 23050 | U32: 27445.61644 | V32: 2810000 | W32: 95890.49315
F33: 23 | G33: 2018-11-01 | H33: 2018-11-30 | I33: 30 | J33: 5 | K33: 2018-11-30 | L33: =VLOOKUP(YEAR(G33),Справочники!$C$3:$I$33,7,FALSE) -> 365 | M33: =VLOOKUP(YEAR(G33),Справочники!$C$3:$F$33,4,FALSE) -> 23050 | N33: 2905890.493 | O33: 2810000 | P33: 95890.49315 | Q33: 26560.27397 | R33: 0 | S33: 0 | T33: 23050 | U33: 26560.27397 | V33: 2810000 | W33: 99400.76712
F34: 24 | G34: 2018-12-01 | H34: 2018-12-31 | I34: 31 | J34: 1 | K34: 2018-12-31 | L34: =VLOOKUP(YEAR(G34),Справочники!$C$3:$I$33,7,FALSE) -> 365 | M34: =VLOOKUP(YEAR(G34),Справочники!$C$3:$F$33,4,FALSE) -> 23050 | N34: 2909400.767 | O34: 2810000 | P34: 99400.76712 | Q34: 27445.61644 | R34: 0 | S34: 0 | T34: 23050 | U34: 27445.61644 | V34: 2810000 | W34: 103796.3836
F35: 25 | G35: 2019-01-01 | H35: 2019-01-31 | I35: 31 | J35: 4 | K35: 2019-01-31 | L35: =VLOOKUP(YEAR(G35),Справочники!$C$3:$I$33,7,FALSE) -> 365 | M35: =VLOOKUP(YEAR(G35),Справочники!$C$3:$F$33,4,FALSE) -> 23995 | N35: 2913796.384 | O35: 2810000 | P35: 103796.3836 | Q35: 27445.61644 | R35: 0 | S35: 0 | T35: 23995 | U35: 27445.61644 | V35: 2810000 | W35: 107247
F36: 26 | G36: 2019-02-01 | H36: 2019-02-28 | I36: 28 | J36: 4 | K36: 2019-02-28 | L36: =VLOOKUP(YEAR(G36),Справочники!$C$3:$I$33,7,FALSE) -> 365 | M36: =VLOOKUP(YEAR(G36),Справочники!$C$3:$F$33,4,FALSE) -> 23995 | N36: 2917247 | O36: 2810000 | P36: 107247 | Q36: 24789.58904 | R36: 0 | S36: 0 | T36: 23995 | U36: 24789.58904 | V36: 2810000 | W36: 108041.589
F37: 27 | G37: 2019-03-01 | H37: 2019-03-31 | I37: 31 | J37: 7 | K37: 2019-04-01 | L37: =VLOOKUP(YEAR(G37),Справочники!$C$3:$I$33,7,FALSE) -> 365 | M37: =VLOOKUP(YEAR(G37),Справочники!$C$3:$F$33,4,FALSE) -> 23995 | N37: 2918041.589 | O37: 2810000 | P37: 108041.589 | Q37: 27445.61644 | R37: 0 | S37: 0 | T37: 23995 | U37: 27445.61644 | V37: 2810000 | W37: 111492.2055
F38: 28 | G38: 2019-04-01 | H38: 2019-04-30 | I38: 30 | J38: 2 | K38: 2019-04-30 | L38: =VLOOKUP(YEAR(G38),Справочники!$C$3:$I$33,7,FALSE) -> 365 | M38: =VLOOKUP(YEAR(G38),Справочники!$C$3:$F$33,4,FALSE) -> 23995 | N38: 2921492.205 | O38: 2810000 | P38: 111492.2055 | Q38: 26560.27397 | R38: 0 | S38: 0 | T38: 23995 | U38: 26560.27397 | V38: 2810000 | W38: 114057.4795
F39: 29 | G39: 2019-05-01 | H39: 2019-05-31 | I39: 31 | J39: 5 | K39: 2019-05-31 | L39: =VLOOKUP(YEAR(G39),Справочники!$C$3:$I$33,7,FALSE) -> 365 | M39: =VLOOKUP(YEAR(G39),Справочники!$C$3:$F$33,4,FALSE) -> 23995 | N39: 2924057.479 | O39: 2810000 | P39: 114057.4795 | Q39: 27445.61644 | R39: 0 | S39: 0 | T39: 23995 | U39: 27445.61644 | V39: 2810000 | W39: 117508.0959
F40: 30 | G40: 2019-06-01 | H40: 2019-06-30 | I40: 30 | J40: 7 | K40: 2019-07-01 | L40: =VLOOKUP(YEAR(G40),Справочники!$C$3:$I$33,7,FALSE) -> 365 | M40: =VLOOKUP(YEAR(G40),Справочники!$C$3:$F$33,4,FALSE) -> 23995 | N40: 2927508.096 | O40: 2810000 | P40: 117508.0959 | Q40: 26560.27397 | R40: 0 | S40: 0 | T40: 23995 | U40: 26560.27397 | V40: 2810000 | W40: 120073.3699
F41: 31 | G41: 2019-07-01 | H41: 2019-07-31 | I41: 31 | J41: 3 | K41: 2019-07-31 | L41: =VLOOKUP(YEAR(G41),Справочники!$C$3:$I$33,7,FALSE) -> 365 | M41: =VLOOKUP(YEAR(G41),Справочники!$C$3:$F$33,4,FALSE) -> 23995 | N41: 2930073.37 | O41: 2810000 | P41: 120073.3699 | Q41: 27445.61644 | R41: 0 | S41: 0 | T41: 23995 | U41: 27445.61644 | V41: 2810000 | W41: 123523.9863
F42: 32 | G42: 2019-08-01 | H42: 2019-08-31 | I42: 31 | J42: 6 | K42: 2019-09-02 | L42: =VLOOKUP(YEAR(G42),Справочники!$C$3:$I$33,7,FALSE) -> 365 | M42: =VLOOKUP(YEAR(G42),Справочники!$C$3:$F$33,4,FALSE) -> 23995 | N42: 2933523.986 | O42: 2810000 | P42: 123523.9863 | Q42: 27445.61644 | R42: 0 | S42: 0 | T42: 23995 | U42: 27445.61644 | V42: 2810000 | W42: 126974.6027
F43: 33 | G43: 2019-09-01 | H43: 2019-09-30 | I43: 30 | J43: 1 | K43: 2019-09-30 | L43: =VLOOKUP(YEAR(G43),Справочники!$C$3:$I$33,7,FALSE) -> 365 | M43: =VLOOKUP(YEAR(G43),Справочники!$C$3:$F$33,4,FALSE) -> 23995 | N43: 2936974.603 | O43: 2810000 | P43: 126974.6027 | Q43: 26560.27397 | R43: 0 | S43: 0 | T43: 23995 | U43: 26560.27397 | V43: 2810000 | W43: 129539.8767
F44: 34 | G44: 2019-10-01 | H44: 2019-10-31 | I44: 31 | J44: 4 | K44: 2019-10-31 | L44: =VLOOKUP(YEAR(G44),Справочники!$C$3:$I$33,7,FALSE) -> 365 | M44: =VLOOKUP(YEAR(G44),Справочники!$C$3:$F$33,4,FALSE) -> 23995 | N44: 2939539.877 | O44: 2810000 | P44: 129539.8767 | Q44: 27445.61644 | R44: 0 | S44: 0 | T44: 23995 | U44: 27445.61644 | V44: 2810000 | W44: 132990.4932
F45: 35 | G45: 2019-11-01 | H45: 2019-11-30 | I45: 30 | J45: 6 | K45: 2019-12-02 | L45: =VLOOKUP(YEAR(G45),Справочники!$C$3:$I$33,7,FALSE) -> 365 | M45: =VLOOKUP(YEAR(G45),Справочники!$C$3:$F$33,4,FALSE) -> 23995 | N45: 2942990.493 | O45: 2810000 | P45: 132990.4932 | Q45: 26560.27397 | R45: 0 | S45: 0 | T45: 23995 | U45: 26560.27397 | V45: 2810000 | W45: 135555.7671
F46: 36 | G46: 2019-12-01 | H46: 2019-12-31 | I46: 31 | J46: 2 | K46: 2019-12-31 | L46: =VLOOKUP(YEAR(G46),Справочники!$C$3:$I$33,7,FALSE) -> 365 | M46: =VLOOKUP(YEAR(G46),Справочники!$C$3:$F$33,4,FALSE) -> 23995 | N46: 2945555.767 | O46: 2810000 | P46: 135555.7671 | Q46: 27445.61644 | R46: 0 | S46: 0 | T46: 23995 | U46: 27445.61644 | V46: 2810000 | W46: 139006.3836
F47: 37 | G47: 2020-01-01 | H47: 2020-01-31 | I47: 31 | J47: 5 | K47: 2020-01-31 | L47: =VLOOKUP(YEAR(G47),Справочники!$C$3:$I$33,7,FALSE) -> 366 | M47: =VLOOKUP(YEAR(G47),Справочники!$C$3:$F$33,4,FALSE) -> 24810 | N47: 2949006.384 | O47: 2810000 | P47: 139006.3836 | Q47: 27370.62842 | R47: 0 | S47: 0 | T47: 24810 | U47: 27370.62842 | V47: 2810000 | W47: 141567.012
F48: 38 | G48: 2020-02-01 | H48: 2020-02-29 | I48: 29 | J48: 6 | K48: 2020-03-02 | L48: =VLOOKUP(YEAR(G48),Справочники!$C$3:$I$33,7,FALSE) -> 366 | M48: =VLOOKUP(YEAR(G48),Справочники!$C$3:$F$33,4,FALSE) -> 24810 | N48: 2951567.012 | O48: 2810000 | P48: 141567.012 | Q48: 25604.78142 | R48: 0 | S48: 0 | T48: 24810 | U48: 25604.78142 | V48: 2810000 | W48: 142361.7934
F49: 39 | G49: 2020-03-01 | H49: 2020-03-31 | I49: 31 | J49: 2 | K49: 2020-03-31 | L49: =VLOOKUP(YEAR(G49),Справочники!$C$3:$I$33,7,FALSE) -> 366 | M49: =VLOOKUP(YEAR(G49),Справочники!$C$3:$F$33,4,FALSE) -> 24810 | N49: 2952361.793 | O49: 2810000 | P49: 142361.7934 | Q49: 27370.62842 | R49: 0 | S49: 0 | T49: 24810 | U49: 27370.62842 | V49: 2810000 | W49: 144922.4218
F50: 40 | G50: 2020-04-01 | H50: 2020-04-30 | I50: 30 | J50: 4 | K50: 2020-04-30 | L50: =VLOOKUP(YEAR(G50),Справочники!$C$3:$I$33,7,FALSE) -> 366 | M50: =VLOOKUP(YEAR(G50),Справочники!$C$3:$F$33,4,FALSE) -> 24810 | N50: 2954922.422 | O50: 2810000 | P50: 144922.4218 | Q50: 26487.70492 | R50: 0 | S50: 0 | T50: 24810 | U50: 26487.70492 | V50: 2810000 | W50: 146600.1267
F51: 41 | G51: 2020-05-01 | H51: 2020-05-31 | I51: 31 | J51: 7 | K51: 2020-06-01 | L51: =VLOOKUP(YEAR(G51),Справочники!$C$3:$I$33,7,FALSE) -> 366 | M51: =VLOOKUP(YEAR(G51),Справочники!$C$3:$F$33,4,FALSE) -> 24810 | N51: 2956600.127 | O51: 2810000 | P51: 146600.1267 | Q51: 27370.62842 | R51: 0 | S51: 0 | T51: 24810 | U51: 27370.62842 | V51: 2810000 | W51: 149160.7551
F52: 42 | G52: 2020-06-01 | H52: 2020-06-30 | I52: 30 | J52: 2 | K52: 2020-06-30 | L52: =VLOOKUP(YEAR(G52),Справочники!$C$3:$I$33,7,FALSE) -> 366 | M52: =VLOOKUP(YEAR(G52),Справочники!$C$3:$F$33,4,FALSE) -> 24810 | N52: 2959160.755 | O52: 2810000 | P52: 149160.7551 | Q52: 26487.70492 | R52: 0 | S52: 0 | T52: 24810 | U52: 26487.70492 | V52: 2810000 | W52: 150838.4601
F53: 43 | G53: 2020-07-01 | H53: 2020-07-31 | I53: 31 | J53: 5 | K53: 2020-07-31 | L53: =VLOOKUP(YEAR(G53),Справочники!$C$3:$I$33,7,FALSE) -> 366 | M53: =VLOOKUP(YEAR(G53),Справочники!$C$3:$F$33,4,FALSE) -> 24810 | N53: 2960838.46 | O53: 2810000 | P53: 150838.4601 | Q53: 27370.62842 | R53: 0 | S53: 0 | T53: 24810 | U53: 27370.62842 | V53: 2810000 | W53: 153399.0885
F54: 44 | G54: 2020-08-01 | H54: 2020-08-31 | I54: 31 | J54: 1 | K54: 2020-08-31 | L54: =VLOOKUP(YEAR(G54),Справочники!$C$3:$I$33,7,FALSE) -> 366 | M54: =VLOOKUP(YEAR(G54),Справочники!$C$3:$F$33,4,FALSE) -> 24810 | N54: 2963399.088 | O54: 2810000 | P54: 153399.0885 | Q54: 27370.62842 | R54: 0 | S54: 0 | T54: 24810 | U54: 27370.62842 | V54: 2810000 | W54: 155959.7169
F55: 45 | G55: 2020-09-01 | H55: 2020-09-30 | I55: 30 | J55: 3 | K55: 2020-09-30 | L55: =VLOOKUP(YEAR(G55),Справочники!$C$3:$I$33,7,FALSE) -> 366 | M55: =VLOOKUP(YEAR(G55),Справочники!$C$3:$F$33,4,FALSE) -> 24810 | N55: 2965959.717 | O55: 2810000 | P55: 155959.7169 | Q55: 26487.70492 | R55: 0 | S55: 0 | T55: 24810 | U55: 26487.70492 | V55: 2810000 | W55: 157637.4218
F56: 46 | G56: 2020-10-01 | H56: 2020-10-31 | I56: 31 | J56: 6 | K56: 2020-11-02 | L56: =VLOOKUP(YEAR(G56),Справочники!$C$3:$I$33,7,FALSE) -> 366 | M56: =VLOOKUP(YEAR(G56),Справочники!$C$3:$F$33,4,FALSE) -> 24810 | N56: 2967637.422 | O56: 2810000 | P56: 157637.4218 | Q56: 27370.62842 | R56: 0 | S56: 0 | T56: 24810 | U56: 27370.62842 | V56: 2810000 | W56: 160198.0502
F57: 47 | G57: 2020-11-01 | H57: 2020-11-30 | I57: 30 | J57: 1 | K57: 2020-11-30 | L57: =VLOOKUP(YEAR(G57),Справочники!$C$3:$I$33,7,FALSE) -> 366 | M57: =VLOOKUP(YEAR(G57),Справочники!$C$3:$F$33,4,FALSE) -> 24810 | N57: 2970198.05 | O57: 2810000 | P57: 160198.0502 | Q57: 26487.70492 | R57: 0 | S57: 0 | T57: 24810 | U57: 26487.70492 | V57: 2810000 | W57: 161875.7551
F58: 48 | G58: 2020-12-01 | H58: 2020-12-31 | I58: 31 | J58: 4 | K58: 2020-12-31 | L58: =VLOOKUP(YEAR(G58),Справочники!$C$3:$I$33,7,FALSE) -> 366 | M58: =VLOOKUP(YEAR(G58),Справочники!$C$3:$F$33,4,FALSE) -> 24810 | N58: 2971875.755 | O58: 2810000 | P58: 161875.7551 | Q58: 27370.62842 | R58: 0 | S58: 0 | T58: 24810 | U58: 27370.62842 | V58: 2810000 | W58: 164436.3836
F59: 49 | G59: 2021-01-01 | H59: 2021-01-31 | I59: 31 | J59: 7 | K59: 2021-02-01 | L59: =VLOOKUP(YEAR(G59),Справочники!$C$3:$I$33,7,FALSE) -> 365 | M59: =VLOOKUP(YEAR(G59),Справочники!$C$3:$F$33,4,FALSE) -> 25580 | N59: 2974436.384 | O59: 2810000 | P59: 164436.3836 | Q59: 27445.61644 | R59: 0 | S59: 0 | T59: 25580 | U59: 27445.61644 | V59: 2810000 | W59: 166302
F60: 50 | G60: 2021-02-01 | H60: 2021-02-28 | I60: 28 | J60: 7 | K60: 2021-03-01 | L60: =VLOOKUP(YEAR(G60),Справочники!$C$3:$I$33,7,FALSE) -> 365 | M60: =VLOOKUP(YEAR(G60),Справочники!$C$3:$F$33,4,FALSE) -> 25580 | N60: 2976302 | O60: 2810000 | P60: 166302 | Q60: 24789.58904 | R60: 0 | S60: 0 | T60: 25580 | U60: 24789.58904 | V60: 2810000 | W60: 165511.589
F61: 51 | G61: 2021-03-01 | H61: 2021-03-31 | I61: 31 | J61: 3 | K61: 2021-03-31 | L61: =VLOOKUP(YEAR(G61),Справочники!$C$3:$I$33,7,FALSE) -> 365 | M61: =VLOOKUP(YEAR(G61),Справочники!$C$3:$F$33,4,FALSE) -> 25580 | N61: 2975511.589 | O61: 2810000 | P61: 165511.589 | Q61: 27445.61644 | R61: 0 | S61: 0 | T61: 25580 | U61: 27445.61644 | V61: 2810000 | W61: 167377.2055
F62: 52 | G62: 2021-04-01 | H62: 2021-04-30 | I62: 30 | J62: 5 | K62: 2021-04-30 | L62: =VLOOKUP(YEAR(G62),Справочники!$C$3:$I$33,7,FALSE) -> 365 | M62: =VLOOKUP(YEAR(G62),Справочники!$C$3:$F$33,4,FALSE) -> 25580 | N62: 2977377.205 | O62: 2810000 | P62: 167377.2055 | Q62: 26560.27397 | R62: 0 | S62: 0 | T62: 25580 | U62: 26560.27397 | V62: 2810000 | W62: 168357.4795
F63: 53 | G63: 2021-05-01 | H63: 2021-05-31 | I63: 31 | J63: 1 | K63: 2021-05-31 | L63: =VLOOKUP(YEAR(G63),Справочники!$C$3:$I$33,7,FALSE) -> 365 | M63: =VLOOKUP(YEAR(G63),Справочники!$C$3:$F$33,4,FALSE) -> 25580 | N63: 2978357.479 | O63: 2810000 | P63: 168357.4795 | Q63: 27445.61644 | R63: 0 | S63: 0 | T63: 25580 | U63: 27445.61644 | V63: 2810000 | W63: 170223.0959
F64: 54 | G64: 2021-06-01 | H64: 2021-06-30 | I64: 30 | J64: 3 | K64: 2021-06-30 | L64: =VLOOKUP(YEAR(G64),Справочники!$C$3:$I$33,7,FALSE) -> 365 | M64: =VLOOKUP(YEAR(G64),Справочники!$C$3:$F$33,4,FALSE) -> 25580 | N64: 2980223.096 | O64: 2810000 | P64: 170223.0959 | Q64: 26560.27397 | R64: 0 | S64: 0 | T64: 25580 | U64: 26560.27397 | V64: 2810000 | W64: 171203.3699
F65: 55 | G65: 2021-07-01 | H65: 2021-07-31 | I65: 31 | J65: 6 | K65: 2021-08-02 | L65: =VLOOKUP(YEAR(G65),Справочники!$C$3:$I$33,7,FALSE) -> 365 | M65: =VLOOKUP(YEAR(G65),Справочники!$C$3:$F$33,4,FALSE) -> 25580 | N65: 2981203.37 | O65: 2810000 | P65: 171203.3699 | Q65: 27445.61644 | R65: 0 | S65: 0 | T65: 25580 | U65: 27445.61644 | V65: 2810000 | W65: 173068.9863
F66: 56 | G66: 2021-08-01 | H66: 2021-08-31 | I66: 31 | J66: 2 | K66: 2021-08-31 | L66: =VLOOKUP(YEAR(G66),Справочники!$C$3:$I$33,7,FALSE) -> 365 | M66: =VLOOKUP(YEAR(G66),Справочники!$C$3:$F$33,4,FALSE) -> 25580 | N66: 2983068.986 | O66: 2810000 | P66: 173068.9863 | Q66: 27445.61644 | R66: 0 | S66: 0 | T66: 25580 | U66: 27445.61644 | V66: 2810000 | W66: 174934.6027
F67: 57 | G67: 2021-09-01 | H67: 2021-09-30 | I67: 30 | J67: 4 | K67: 2021-09-30 | L67: =VLOOKUP(YEAR(G67),Справочники!$C$3:$I$33,7,FALSE) -> 365 | M67: =VLOOKUP(YEAR(G67),Справочники!$C$3:$F$33,4,FALSE) -> 25580 | N67: 2984934.603 | O67: 2810000 | P67: 174934.6027 | Q67: 26560.27397 | R67: 0 | S67: 0 | T67: 25580 | U67: 26560.27397 | V67: 2810000 | W67: 175914.8767
F68: 58 | G68: 2021-10-01 | H68: 2021-10-31 | I68: 31 | J68: 7 | K68: 2021-11-01 | L68: =VLOOKUP(YEAR(G68),Справочники!$C$3:$I$33,7,FALSE) -> 365 | M68: =VLOOKUP(YEAR(G68),Справочники!$C$3:$F$33,4,FALSE) -> 25580 | N68: 2985914.877 | O68: 2810000 | P68: 175914.8767 | Q68: 27445.61644 | R68: 0 | S68: 0 | T68: 25580 | U68: 27445.61644 | V68: 2810000 | W68: 177780.4932
F69: 59 | G69: 2021-11-01 | H69: 2021-11-30 | I69: 30 | J69: 2 | K69: 2021-11-30 | L69: =VLOOKUP(YEAR(G69),Справочники!$C$3:$I$33,7,FALSE) -> 365 | M69: =VLOOKUP(YEAR(G69),Справочники!$C$3:$F$33,4,FALSE) -> 25580 | N69: 2987780.493 | O69: 2810000 | P69: 177780.4932 | Q69: 26560.27397 | R69: 0 | S69: 0 | T69: 25580 | U69: 26560.27397 | V69: 2810000 | W69: 178760.7671
F70: 60 | G70: 2021-12-01 | H70: 2021-12-31 | I70: 31 | J70: 5 | K70: 2021-12-31 | L70: =VLOOKUP(YEAR(G70),Справочники!$C$3:$I$33,7,FALSE) -> 365 | M70: =VLOOKUP(YEAR(G70),Справочники!$C$3:$F$33,4,FALSE) -> 25580 | N70: 2988760.767 | O70: 2810000 | P70: 178760.7671 | Q70: 27445.61644 | R70: 0 | S70: 0 | T70: 25580 | U70: 27445.61644 | V70: 2810000 | W70: 180626.3836
F71: 61 | G71: 2022-01-01 | H71: 2022-01-31 | I71: 31 | J71: 1 | K71: 2022-01-31 | L71: =VLOOKUP(YEAR(G71),Справочники!$C$3:$I$33,7,FALSE) -> 365 | M71: =VLOOKUP(YEAR(G71),Справочники!$C$3:$F$33,4,FALSE) -> 26345 | N71: 2990626.384 | O71: 2810000 | P71: 180626.3836 | Q71: 27445.61644 | R71: 0 | S71: 0 | T71: 26345 | U71: 27445.61644 | V71: 2810000 | W71: 181727
F72: 62 | G72: 2022-02-01 | H72: 2022-02-28 | I72: 28 | J72: 1 | K72: 2022-02-28 | L72: =VLOOKUP(YEAR(G72),Справочники!$C$3:$I$33,7,FALSE) -> 365 | M72: =VLOOKUP(YEAR(G72),Справочники!$C$3:$F$33,4,FALSE) -> 26345 | N72: 2991727 | O72: 2810000 | P72: 181727 | Q72: 24789.58904 | R72: 0 | S72: 0 | T72: 26345 | U72: 24789.58904 | V72: 2810000 | W72: 180171.589
F73: 63 | G73: 2022-03-01 | H73: 2022-03-31 | I73: 31 | J73: 4 | K73: 2022-03-31 | L73: =VLOOKUP(YEAR(G73),Справочники!$C$3:$I$33,7,FALSE) -> 365 | M73: =VLOOKUP(YEAR(G73),Справочники!$C$3:$F$33,4,FALSE) -> 26345 | N73: 2990171.589 | O73: 2810000 | P73: 180171.589 | Q73: 27445.61644 | R73: 0 | S73: 0 | T73: 26345 | U73: 27445.61644 | V73: 2810000 | W73: 181272.2055
F74: 64 | G74: 2022-04-01 | H74: 2022-04-30 | I74: 30 | J74: 6 | K74: 2022-05-02 | L74: =VLOOKUP(YEAR(G74),Справочники!$C$3:$I$33,7,FALSE) -> 365 | M74: =VLOOKUP(YEAR(G74),Справочники!$C$3:$F$33,4,FALSE) -> 26345 | N74: 2991272.205 | O74: 2810000 | P74: 181272.2055 | Q74: 26560.27397 | R74: 0 | S74: 0 | T74: 26345 | U74: 26560.27397 | V74: 2810000 | W74: 181487.4795
F75: 65 | G75: 2022-05-01 | H75: 2022-05-31 | I75: 31 | J75: 2 | K75: 2022-05-31 | L75: =VLOOKUP(YEAR(G75),Справочники!$C$3:$I$33,7,FALSE) -> 365 | M75: =VLOOKUP(YEAR(G75),Справочники!$C$3:$F$33,4,FALSE) -> 26345 | N75: 2991487.479 | O75: 2810000 | P75: 181487.4795 | Q75: 27445.61644 | R75: 0 | S75: 0 | T75: 26345 | U75: 27445.61644 | V75: 2810000 | W75: =P75+U75-T75 -> 182588.0959
F76: 66 | G76: 2022-06-01 | H76: =EOMONTH(G76,0) -> 2022-06-30 | I76: 30 | J76: =WEEKDAY(H76,11) -> 4 | K76: =WORKDAY(H76,IF(OR(J76=6,J76=7),1,0)) -> 2022-06-30 | L76: =VLOOKUP(YEAR(G76),Справочники!$C$3:$I$33,7,FALSE) -> 365 | M76: =VLOOKUP(YEAR(G76),Справочники!$C$3:$F$33,4,FALSE) -> 26345 | N76: =O76+P76 -> 2992588.096 | O76: 2810000 | P76: 182588.0959 | Q76: 26560.27397 | R76: =MIN(M76-T76-S76,O76) -> 0 | S76: =MIN(M76-T76,Q76) -> 0 | T76: =MIN(M76,P76) -> 26345 | U76: 26560.27397 | V76: =O76-R76 -> 2810000 | W76: 182803.3699
F77: 67 | G77: =H76+1 -> 2022-07-01 | H77: 2022-07-31 | I77: =H77-G77+1 -> 31 | J77: 7 | K77: 2022-08-01 | L77: =VLOOKUP(YEAR(G77),Справочники!$C$3:$I$33,7,FALSE) -> 365 | M77: =VLOOKUP(YEAR(G77),Справочники!$C$3:$F$33,4,FALSE) -> 26345 | N77: 2992803.37 | O77: =V76 -> 2810000 | P77: 182803.3699 | Q77: =O77*$D$4/L77*I77 -> 27445.61644 | R77: 0 | S77: 0 | T77: 26345 | U77: =MAX(Q77-S77,0) -> 27445.61644 | V77: 2810000 | W77: 183903.9863
F78: 68 | G78: 2022-08-01 | H78: 2022-08-31 | I78: 31 | J78: 3 | K78: 2022-08-31 | L78: =VLOOKUP(YEAR(G78),Справочники!$C$3:$I$33,7,FALSE) -> 365 | M78: =VLOOKUP(YEAR(G78),Справочники!$C$3:$F$33,4,FALSE) -> 26345 | N78: 2993903.986 | O78: 2810000 | P78: 183903.9863 | Q78: 27445.61644 | R78: 0 | S78: 0 | T78: 26345 | U78: 27445.61644 | V78: 2810000 | W78: 185004.6027
F79: 69 | G79: 2022-09-01 | H79: 2022-09-30 | I79: 30 | J79: 5 | K79: 2022-09-30 | L79: =VLOOKUP(YEAR(G79),Справочники!$C$3:$I$33,7,FALSE) -> 365 | M79: =VLOOKUP(YEAR(G79),Справочники!$C$3:$F$33,4,FALSE) -> 26345 | N79: 2995004.603 | O79: 2810000 | P79: 185004.6027 | Q79: 26560.27397 | R79: 0 | S79: 0 | T79: 26345 | U79: 26560.27397 | V79: 2810000 | W79: 185219.8767
F80: 70 | G80: 2022-10-01 | H80: 2022-10-31 | I80: 31 | J80: 1 | K80: 2022-10-31 | L80: =VLOOKUP(YEAR(G80),Справочники!$C$3:$I$33,7,FALSE) -> 365 | M80: =VLOOKUP(YEAR(G80),Справочники!$C$3:$F$33,4,FALSE) -> 26345 | N80: 2995219.877 | O80: 2810000 | P80: 185219.8767 | Q80: 27445.61644 | R80: 0 | S80: 0 | T80: 26345 | U80: 27445.61644 | V80: 2810000 | W80: 186320.4932
F81: 71 | G81: 2022-11-01 | H81: 2022-11-30 | I81: 30 | J81: 3 | K81: 2022-11-30 | L81: =VLOOKUP(YEAR(G81),Справочники!$C$3:$I$33,7,FALSE) -> 365 | M81: =VLOOKUP(YEAR(G81),Справочники!$C$3:$F$33,4,FALSE) -> 26345 | N81: 2996320.493 | O81: 2810000 | P81: 186320.4932 | Q81: 26560.27397 | R81: 0 | S81: 0 | T81: 26345 | U81: 26560.27397 | V81: 2810000 | W81: 186535.7671
F82: 72 | G82: 2022-12-01 | H82: 2022-12-31 | I82: 31 | J82: 6 | K82: 2023-01-02 | L82: =VLOOKUP(YEAR(G82),Справочники!$C$3:$I$33,7,FALSE) -> 365 | M82: =VLOOKUP(YEAR(G82),Справочники!$C$3:$F$33,4,FALSE) -> 26345 | N82: 2996535.767 | O82: 2810000 | P82: 186535.7671 | Q82: 27445.61644 | R82: 0 | S82: 0 | T82: 26345 | U82: 27445.61644 | V82: 2810000 | W82: 187636.3836
F83: 73 | G83: 2023-01-01 | H83: 2023-01-31 | I83: 31 | J83: 2 | K83: 2023-01-31 | L83: =VLOOKUP(YEAR(G83),Справочники!$C$3:$I$33,7,FALSE) -> 365 | M83: =VLOOKUP(YEAR(G83),Справочники!$C$3:$F$33,4,FALSE) -> 27080 | N83: 2997636.384 | O83: 2810000 | P83: 187636.3836 | Q83: 27445.61644 | R83: 0 | S83: 0 | T83: 27080 | U83: 27445.61644 | V83: 2810000 | W83: 188002
F84: 74 | G84: 2023-02-01 | H84: 2023-02-28 | I84: 28 | J84: 2 | K84: 2023-02-28 | L84: =VLOOKUP(YEAR(G84),Справочники!$C$3:$I$33,7,FALSE) -> 365 | M84: =VLOOKUP(YEAR(G84),Справочники!$C$3:$F$33,4,FALSE) -> 27080 | N84: 2998002 | O84: 2810000 | P84: 188002 | Q84: 24789.58904 | R84: 0 | S84: 0 | T84: 27080 | U84: 24789.58904 | V84: 2810000 | W84: 185711.589
F85: 75 | G85: 2023-03-01 | H85: 2023-03-31 | I85: 31 | J85: 5 | K85: 2023-03-31 | L85: =VLOOKUP(YEAR(G85),Справочники!$C$3:$I$33,7,FALSE) -> 365 | M85: =VLOOKUP(YEAR(G85),Справочники!$C$3:$F$33,4,FALSE) -> 27080 | N85: 2995711.589 | O85: 2810000 | P85: 185711.589 | Q85: 27445.61644 | R85: 0 | S85: 0 | T85: 27080 | U85: 27445.61644 | V85: 2810000 | W85: 186077.2055
F86: 76 | G86: 2023-04-01 | H86: 2023-04-30 | I86: 30 | J86: 7 | K86: 2023-05-01 | L86: =VLOOKUP(YEAR(G86),Справочники!$C$3:$I$33,7,FALSE) -> 365 | M86: =VLOOKUP(YEAR(G86),Справочники!$C$3:$F$33,4,FALSE) -> 27080 | N86: 2996077.205 | O86: 2810000 | P86: 186077.2055 | Q86: 26560.27397 | R86: 0 | S86: 0 | T86: 27080 | U86: 26560.27397 | V86: 2810000 | W86: 185557.4795
F87: 77 | G87: 2023-05-01 | H87: 2023-05-31 | I87: 31 | J87: 3 | K87: 2023-05-31 | L87: =VLOOKUP(YEAR(G87),Справочники!$C$3:$I$33,7,FALSE) -> 365 | M87: =VLOOKUP(YEAR(G87),Справочники!$C$3:$F$33,4,FALSE) -> 27080 | N87: 2995557.479 | O87: 2810000 | P87: 185557.4795 | Q87: 27445.61644 | R87: 0 | S87: 0 | T87: 27080 | U87: 27445.61644 | V87: 2810000 | W87: 185923.0959
F88: 78 | G88: 2023-06-01 | H88: 2023-06-30 | I88: 30 | J88: 5 | K88: 2023-06-30 | L88: =VLOOKUP(YEAR(G88),Справочники!$C$3:$I$33,7,FALSE) -> 365 | M88: =VLOOKUP(YEAR(G88),Справочники!$C$3:$F$33,4,FALSE) -> 27080 | N88: 2995923.096 | O88: 2810000 | P88: 185923.0959 | Q88: 26560.27397 | R88: 0 | S88: 0 | T88: 27080 | U88: 26560.27397 | V88: 2810000 | W88: 185403.3699
F89: 79 | G89: 2023-07-01 | H89: 2023-07-31 | I89: 31 | J89: 1 | K89: 2023-07-31 | L89: =VLOOKUP(YEAR(G89),Справочники!$C$3:$I$33,7,FALSE) -> 365 | M89: =VLOOKUP(YEAR(G89),Справочники!$C$3:$F$33,4,FALSE) -> 27080 | N89: 2995403.37 | O89: 2810000 | P89: 185403.3699 | Q89: 27445.61644 | R89: 0 | S89: 0 | T89: 27080 | U89: 27445.61644 | V89: 2810000 | W89: 185768.9863
F90: 80 | G90: 2023-08-01 | H90: 2023-08-31 | I90: 31 | J90: 4 | K90: 2023-08-31 | L90: =VLOOKUP(YEAR(G90),Справочники!$C$3:$I$33,7,FALSE) -> 365 | M90: =VLOOKUP(YEAR(G90),Справочники!$C$3:$F$33,4,FALSE) -> 27080 | N90: 2995768.986 | O90: 2810000 | P90: 185768.9863 | Q90: 27445.61644 | R90: 0 | S90: 0 | T90: 27080 | U90: 27445.61644 | V90: 2810000 | W90: 186134.6027
F91: 81 | G91: 2023-09-01 | H91: 2023-09-30 | I91: 30 | J91: 6 | K91: 2023-10-02 | L91: =VLOOKUP(YEAR(G91),Справочники!$C$3:$I$33,7,FALSE) -> 365 | M91: =VLOOKUP(YEAR(G91),Справочники!$C$3:$F$33,4,FALSE) -> 27080 | N91: 2996134.603 | O91: 2810000 | P91: 186134.6027 | Q91: 26560.27397 | R91: 0 | S91: 0 | T91: 27080 | U91: 26560.27397 | V91: 2810000 | W91: 185614.8767
F92: 82 | G92: 2023-10-01 | H92: 2023-10-31 | I92: 31 | J92: 2 | K92: 2023-10-31 | L92: =VLOOKUP(YEAR(G92),Справочники!$C$3:$I$33,7,FALSE) -> 365 | M92: =VLOOKUP(YEAR(G92),Справочники!$C$3:$F$33,4,FALSE) -> 27080 | N92: 2995614.877 | O92: 2810000 | P92: 185614.8767 | Q92: 27445.61644 | R92: 0 | S92: 0 | T92: 27080 | U92: 27445.61644 | V92: 2810000 | W92: 185980.4932
F93: 83 | G93: 2023-11-01 | H93: 2023-11-30 | I93: 30 | J93: 4 | K93: 2023-11-30 | L93: =VLOOKUP(YEAR(G93),Справочники!$C$3:$I$33,7,FALSE) -> 365 | M93: =VLOOKUP(YEAR(G93),Справочники!$C$3:$F$33,4,FALSE) -> 27080 | N93: 2995980.493 | O93: 2810000 | P93: 185980.4932 | Q93: 26560.27397 | R93: 0 | S93: 0 | T93: 27080 | U93: 26560.27397 | V93: 2810000 | W93: 185460.7671
F94: 84 | G94: 2023-12-01 | H94: 2023-12-31 | I94: 31 | J94: 7 | K94: 2024-01-01 | L94: =VLOOKUP(YEAR(G94),Справочники!$C$3:$I$33,7,FALSE) -> 365 | M94: =VLOOKUP(YEAR(G94),Справочники!$C$3:$F$33,4,FALSE) -> 27080 | N94: 2995460.767 | O94: 2810000 | P94: 185460.7671 | Q94: 27445.61644 | R94: 0 | S94: 0 | T94: 27080 | U94: 27445.61644 | V94: 2810000 | W94: 185826.3836
F95: 85 | G95: 2024-01-01 | H95: 2024-01-31 | I95: 31 | J95: 3 | K95: 2024-01-31 | L95: =VLOOKUP(YEAR(G95),Справочники!$C$3:$I$33,7,FALSE) -> 366 | M95: =VLOOKUP(YEAR(G95),Справочники!$C$3:$F$33,4,FALSE) -> 27810 | N95: 2995826.384 | O95: 2810000 | P95: 185826.3836 | Q95: 27370.62842 | R95: 0 | S95: 0 | T95: 27810 | U95: 27370.62842 | V95: 2810000 | W95: 185387.012
F96: 86 | G96: 2024-02-01 | H96: 2024-02-29 | I96: 29 | J96: 4 | K96: 2024-02-29 | L96: =VLOOKUP(YEAR(G96),Справочники!$C$3:$I$33,7,FALSE) -> 366 | M96: =VLOOKUP(YEAR(G96),Справочники!$C$3:$F$33,4,FALSE) -> 27810 | N96: 2995387.012 | O96: 2810000 | P96: 185387.012 | Q96: 25604.78142 | R96: 0 | S96: 0 | T96: 27810 | U96: 25604.78142 | V96: 2810000 | W96: 183181.7934
F97: 87 | G97: 2024-03-01 | H97: 2024-03-31 | I97: 31 | J97: 7 | K97: 2024-04-01 | L97: =VLOOKUP(YEAR(G97),Справочники!$C$3:$I$33,7,FALSE) -> 366 | M97: =VLOOKUP(YEAR(G97),Справочники!$C$3:$F$33,4,FALSE) -> 27810 | N97: 2993181.793 | O97: 2810000 | P97: 183181.7934 | Q97: 27370.62842 | R97: 0 | S97: 0 | T97: 27810 | U97: 27370.62842 | V97: 2810000 | W97: 182742.4218
F98: 88 | G98: 2024-04-01 | H98: 2024-04-30 | I98: 30 | J98: 2 | K98: 2024-04-30 | L98: =VLOOKUP(YEAR(G98),Справочники!$C$3:$I$33,7,FALSE) -> 366 | M98: =VLOOKUP(YEAR(G98),Справочники!$C$3:$F$33,4,FALSE) -> 27810 | N98: 2992742.422 | O98: 2810000 | P98: 182742.4218 | Q98: 26487.70492 | R98: 0 | S98: 0 | T98: 27810 | U98: 26487.70492 | V98: 2810000 | W98: 181420.1267
F99: 89 | G99: 2024-05-01 | H99: 2024-05-31 | I99: 31 | J99: 5 | K99: 2024-05-31 | L99: =VLOOKUP(YEAR(G99),Справочники!$C$3:$I$33,7,FALSE) -> 366 | M99: =VLOOKUP(YEAR(G99),Справочники!$C$3:$F$33,4,FALSE) -> 27810 | N99: 2991420.127 | O99: 2810000 | P99: 181420.1267 | Q99: 27370.62842 | R99: 0 | S99: 0 | T99: 27810 | U99: 27370.62842 | V99: 2810000 | W99: 180980.7551
F100: 90 | G100: 2024-06-01 | H100: 2024-06-30 | I100: 30 | J100: 7 | K100: 2024-07-01 | L100: =VLOOKUP(YEAR(G100),Справочники!$C$3:$I$33,7,FALSE) -> 366 | M100: =VLOOKUP(YEAR(G100),Справочники!$C$3:$F$33,4,FALSE) -> 27810 | N100: 2990980.755 | O100: 2810000 | P100: 180980.7551 | Q100: 26487.70492 | R100: 0 | S100: 0 | T100: 27810 | U100: 26487.70492 | V100: 2810000 | W100: 179658.4601
F101: 91 | G101: 2024-07-01 | H101: 2024-07-31 | I101: 31 | J101: 3 | K101: 2024-07-31 | L101: =VLOOKUP(YEAR(G101),Справочники!$C$3:$I$33,7,FALSE) -> 366 | M101: =VLOOKUP(YEAR(G101),Справочники!$C$3:$F$33,4,FALSE) -> 27810 | N101: 2989658.46 | O101: 2810000 | P101: 179658.4601 | Q101: 27370.62842 | R101: 0 | S101: 0 | T101: 27810 | U101: 27370.62842 | V101: 2810000 | W101: 179219.0885
F102: 92 | G102: 2024-08-01 | H102: 2024-08-31 | I102: 31 | J102: 6 | K102: 2024-09-02 | L102: =VLOOKUP(YEAR(G102),Справочники!$C$3:$I$33,7,FALSE) -> 366 | M102: =VLOOKUP(YEAR(G102),Справочники!$C$3:$F$33,4,FALSE) -> 27810 | N102: 2989219.088 | O102: 2810000 | P102: 179219.0885 | Q102: 27370.62842 | R102: 0 | S102: 0 | T102: 27810 | U102: 27370.62842 | V102: 2810000 | W102: 178779.7169
F103: 93 | G103: 2024-09-01 | H103: 2024-09-30 | I103: 30 | J103: 1 | K103: 2024-09-30 | L103: =VLOOKUP(YEAR(G103),Справочники!$C$3:$I$33,7,FALSE) -> 366 | M103: =VLOOKUP(YEAR(G103),Справочники!$C$3:$F$33,4,FALSE) -> 27810 | N103: 2988779.717 | O103: 2810000 | P103: 178779.7169 | Q103: 26487.70492 | R103: 0 | S103: 0 | T103: 27810 | U103: 26487.70492 | V103: 2810000 | W103: 177457.4218
F104: 94 | G104: 2024-10-01 | H104: 2024-10-31 | I104: 31 | J104: 4 | K104: 2024-10-31 | L104: =VLOOKUP(YEAR(G104),Справочники!$C$3:$I$33,7,FALSE) -> 366 | M104: =VLOOKUP(YEAR(G104),Справочники!$C$3:$F$33,4,FALSE) -> 27810 | N104: 2987457.422 | O104: 2810000 | P104: 177457.4218 | Q104: 27370.62842 | R104: 0 | S104: 0 | T104: 27810 | U104: 27370.62842 | V104: 2810000 | W104: 177018.0502
F105: 95 | G105: 2024-11-01 | H105: 2024-11-30 | I105: 30 | J105: 6 | K105: 2024-12-02 | L105: =VLOOKUP(YEAR(G105),Справочники!$C$3:$I$33,7,FALSE) -> 366 | M105: =VLOOKUP(YEAR(G105),Справочники!$C$3:$F$33,4,FALSE) -> 27810 | N105: 2987018.05 | O105: 2810000 | P105: 177018.0502 | Q105: 26487.70492 | R105: 0 | S105: 0 | T105: 27810 | U105: 26487.70492 | V105: 2810000 | W105: 175695.7551
F106: 96 | G106: 2024-12-01 | H106: 2024-12-31 | I106: 31 | J106: 2 | K106: 2024-12-31 | L106: =VLOOKUP(YEAR(G106),Справочники!$C$3:$I$33,7,FALSE) -> 366 | M106: =VLOOKUP(YEAR(G106),Справочники!$C$3:$F$33,4,FALSE) -> 27810 | N106: 2985695.755 | O106: 2810000 | P106: 175695.7551 | Q106: 27370.62842 | R106: 0 | S106: 0 | T106: 27810 | U106: 27370.62842 | V106: 2810000 | W106: 175256.3836
F107: 97 | G107: 2025-01-01 | H107: 2025-01-31 | I107: 31 | J107: 5 | K107: 2025-01-31 | L107: =VLOOKUP(YEAR(G107),Справочники!$C$3:$I$33,7,FALSE) -> 365 | M107: =VLOOKUP(YEAR(G107),Справочники!$C$3:$F$33,4,FALSE) -> 28420 | N107: 2985256.384 | O107: 2810000 | P107: 175256.3836 | Q107: 27445.61644 | R107: 0 | S107: 0 | T107: 28420 | U107: 27445.61644 | V107: 2810000 | W107: 174282
F108: 98 | G108: 2025-02-01 | H108: 2025-02-28 | I108: 28 | J108: 5 | K108: 2025-02-28 | L108: =VLOOKUP(YEAR(G108),Справочники!$C$3:$I$33,7,FALSE) -> 365 | M108: =VLOOKUP(YEAR(G108),Справочники!$C$3:$F$33,4,FALSE) -> 28420 | N108: 2984282 | O108: 2810000 | P108: 174282 | Q108: 24789.58904 | R108: 0 | S108: 0 | T108: 28420 | U108: 24789.58904 | V108: 2810000 | W108: 170651.589
F109: 99 | G109: 2025-03-01 | H109: 2025-03-31 | I109: 31 | J109: 1 | K109: 2025-03-31 | L109: =VLOOKUP(YEAR(G109),Справочники!$C$3:$I$33,7,FALSE) -> 365 | M109: =VLOOKUP(YEAR(G109),Справочники!$C$3:$F$33,4,FALSE) -> 28420 | N109: 2980651.589 | O109: 2810000 | P109: 170651.589 | Q109: 27445.61644 | R109: 0 | S109: 0 | T109: 28420 | U109: 27445.61644 | V109: 2810000 | W109: 169677.2055
F110: 100 | G110: 2025-04-01 | H110: 2025-04-30 | I110: 30 | J110: 3 | K110: 2025-04-30 | L110: =VLOOKUP(YEAR(G110),Справочники!$C$3:$I$33,7,FALSE) -> 365 | M110: =VLOOKUP(YEAR(G110),Справочники!$C$3:$F$33,4,FALSE) -> 28420 | N110: 2979677.205 | O110: 2810000 | P110: 169677.2055 | Q110: 26560.27397 | R110: 0 | S110: 0 | T110: 28420 | U110: 26560.27397 | V110: 2810000 | W110: 167817.4795
F111: 101 | G111: 2025-05-01 | H111: 2025-05-31 | I111: 31 | J111: 6 | K111: 2025-06-02 | L111: =VLOOKUP(YEAR(G111),Справочники!$C$3:$I$33,7,FALSE) -> 365 | M111: =VLOOKUP(YEAR(G111),Справочники!$C$3:$F$33,4,FALSE) -> 28420 | N111: 2977817.479 | O111: 2810000 | P111: 167817.4795 | Q111: 27445.61644 | R111: 0 | S111: 0 | T111: 28420 | U111: 27445.61644 | V111: 2810000 | W111: 166843.0959
F112: 102 | G112: 2025-06-01 | H112: 2025-06-30 | I112: 30 | J112: 1 | K112: 2025-06-30 | L112: =VLOOKUP(YEAR(G112),Справочники!$C$3:$I$33,7,FALSE) -> 365 | M112: =VLOOKUP(YEAR(G112),Справочники!$C$3:$F$33,4,FALSE) -> 28420 | N112: 2976843.096 | O112: 2810000 | P112: 166843.0959 | Q112: 26560.27397 | R112: 0 | S112: 0 | T112: 28420 | U112: 26560.27397 | V112: 2810000 | W112: 164983.3699
F113: 103 | G113: 2025-07-01 | H113: 2025-07-31 | I113: 31 | J113: 4 | K113: 2025-07-31 | L113: =VLOOKUP(YEAR(G113),Справочники!$C$3:$I$33,7,FALSE) -> 365 | M113: =VLOOKUP(YEAR(G113),Справочники!$C$3:$F$33,4,FALSE) -> 28420 | N113: 2974983.37 | O113: 2810000 | P113: 164983.3699 | Q113: 27445.61644 | R113: 0 | S113: 0 | T113: 28420 | U113: 27445.61644 | V113: 2810000 | W113: 164008.9863
F114: 104 | G114: 2025-08-01 | H114: 2025-08-31 | I114: 31 | J114: 7 | K114: 2025-09-01 | L114: =VLOOKUP(YEAR(G114),Справочники!$C$3:$I$33,7,FALSE) -> 365 | M114: =VLOOKUP(YEAR(G114),Справочники!$C$3:$F$33,4,FALSE) -> 28420 | N114: 2974008.986 | O114: 2810000 | P114: 164008.9863 | Q114: 27445.61644 | R114: 0 | S114: 0 | T114: 28420 | U114: 27445.61644 | V114: 2810000 | W114: 163034.6027
F115: 105 | G115: 2025-09-01 | H115: 2025-09-30 | I115: 30 | J115: 2 | K115: 2025-09-30 | L115: =VLOOKUP(YEAR(G115),Справочники!$C$3:$I$33,7,FALSE) -> 365 | M115: =VLOOKUP(YEAR(G115),Справочники!$C$3:$F$33,4,FALSE) -> 28420 | N115: 2973034.603 | O115: 2810000 | P115: 163034.6027 | Q115: 26560.27397 | R115: 0 | S115: 0 | T115: 28420 | U115: 26560.27397 | V115: 2810000 | W115: 161174.8767
F116: 106 | G116: 2025-10-01 | H116: 2025-10-31 | I116: 31 | J116: 5 | K116: 2025-10-31 | L116: =VLOOKUP(YEAR(G116),Справочники!$C$3:$I$33,7,FALSE) -> 365 | M116: =VLOOKUP(YEAR(G116),Справочники!$C$3:$F$33,4,FALSE) -> 28420 | N116: 2971174.877 | O116: 2810000 | P116: 161174.8767 | Q116: 27445.61644 | R116: 0 | S116: 0 | T116: 28420 | U116: 27445.61644 | V116: 2810000 | W116: 160200.4932
F117: 107 | G117: 2025-11-01 | H117: 2025-11-30 | I117: 30 | J117: 7 | K117: 2025-12-01 | L117: =VLOOKUP(YEAR(G117),Справочники!$C$3:$I$33,7,FALSE) -> 365 | M117: =VLOOKUP(YEAR(G117),Справочники!$C$3:$F$33,4,FALSE) -> 28420 | N117: 2970200.493 | O117: 2810000 | P117: 160200.4932 | Q117: 26560.27397 | R117: 0 | S117: 0 | T117: 28420 | U117: 26560.27397 | V117: 2810000 | W117: 158340.7671
F118: 108 | G118: 2025-12-01 | H118: 2025-12-31 | I118: 31 | J118: 3 | K118: 2025-12-31 | L118: =VLOOKUP(YEAR(G118),Справочники!$C$3:$I$33,7,FALSE) -> 365 | M118: =VLOOKUP(YEAR(G118),Справочники!$C$3:$F$33,4,FALSE) -> 28420 | N118: 2968340.767 | O118: 2810000 | P118: 158340.7671 | Q118: 27445.61644 | R118: 0 | S118: 0 | T118: 28420 | U118: 27445.61644 | V118: 2810000 | W118: 157366.3836
F119: 109 | G119: 2026-01-01 | H119: 2026-01-31 | I119: 31 | J119: 6 | K119: 2026-02-02 | L119: =VLOOKUP(YEAR(G119),Справочники!$C$3:$I$33,7,FALSE) -> 365 | M119: =VLOOKUP(YEAR(G119),Справочники!$C$3:$F$33,4,FALSE) -> 29015 | N119: 2967366.384 | O119: 2810000 | P119: 157366.3836 | Q119: 27445.61644 | R119: 0 | S119: 0 | T119: 29015 | U119: 27445.61644 | V119: 2810000 | W119: 155797
F120: 110 | G120: 2026-02-01 | H120: 2026-02-28 | I120: 28 | J120: 6 | K120: 2026-03-02 | L120: =VLOOKUP(YEAR(G120),Справочники!$C$3:$I$33,7,FALSE) -> 365 | M120: =VLOOKUP(YEAR(G120),Справочники!$C$3:$F$33,4,FALSE) -> 29015 | N120: 2965797 | O120: 2810000 | P120: 155797 | Q120: 24789.58904 | R120: 0 | S120: 0 | T120: 29015 | U120: 24789.58904 | V120: 2810000 | W120: 151571.589
F121: 111 | G121: 2026-03-01 | H121: 2026-03-31 | I121: 31 | J121: 2 | K121: 2026-03-31 | L121: =VLOOKUP(YEAR(G121),Справочники!$C$3:$I$33,7,FALSE) -> 365 | M121: =VLOOKUP(YEAR(G121),Справочники!$C$3:$F$33,4,FALSE) -> 29015 | N121: 2961571.589 | O121: 2810000 | P121: 151571.589 | Q121: 27445.61644 | R121: 0 | S121: 0 | T121: 29015 | U121: 27445.61644 | V121: 2810000 | W121: 150002.2055
F122: 112 | G122: 2026-04-01 | H122: 2026-04-30 | I122: 30 | J122: 4 | K122: 2026-04-30 | L122: =VLOOKUP(YEAR(G122),Справочники!$C$3:$I$33,7,FALSE) -> 365 | M122: =VLOOKUP(YEAR(G122),Справочники!$C$3:$F$33,4,FALSE) -> 29015 | N122: 2960002.205 | O122: 2810000 | P122: 150002.2055 | Q122: 26560.27397 | R122: 0 | S122: 0 | T122: 29015 | U122: 26560.27397 | V122: 2810000 | W122: 147547.4795
F123: 113 | G123: 2026-05-01 | H123: 2026-05-31 | I123: 31 | J123: 7 | K123: 2026-06-01 | L123: =VLOOKUP(YEAR(G123),Справочники!$C$3:$I$33,7,FALSE) -> 365 | M123: =VLOOKUP(YEAR(G123),Справочники!$C$3:$F$33,4,FALSE) -> 29015 | N123: 2957547.479 | O123: 2810000 | P123: 147547.4795 | Q123: 27445.61644 | R123: 0 | S123: 0 | T123: 29015 | U123: 27445.61644 | V123: 2810000 | W123: 145978.0959
F124: 114 | G124: 2026-06-01 | H124: 2026-06-30 | I124: 30 | J124: 2 | K124: 2026-06-30 | L124: =VLOOKUP(YEAR(G124),Справочники!$C$3:$I$33,7,FALSE) -> 365 | M124: =VLOOKUP(YEAR(G124),Справочники!$C$3:$F$33,4,FALSE) -> 29015 | N124: 2955978.096 | O124: 2810000 | P124: 145978.0959 | Q124: 26560.27397 | R124: 0 | S124: 0 | T124: 29015 | U124: 26560.27397 | V124: 2810000 | W124: 143523.3699
F125: 115 | G125: 2026-07-01 | H125: 2026-07-31 | I125: 31 | J125: 5 | K125: 2026-07-31 | L125: =VLOOKUP(YEAR(G125),Справочники!$C$3:$I$33,7,FALSE) -> 365 | M125: =VLOOKUP(YEAR(G125),Справочники!$C$3:$F$33,4,FALSE) -> 29015 | N125: 2953523.37 | O125: 2810000 | P125: 143523.3699 | Q125: 27445.61644 | R125: 0 | S125: 0 | T125: 29015 | U125: 27445.61644 | V125: 2810000 | W125: 141953.9863
F126: 116 | G126: 2026-08-01 | H126: 2026-08-31 | I126: 31 | J126: 1 | K126: 2026-08-31 | L126: =VLOOKUP(YEAR(G126),Справочники!$C$3:$I$33,7,FALSE) -> 365 | M126: =VLOOKUP(YEAR(G126),Справочники!$C$3:$F$33,4,FALSE) -> 29015 | N126: 2951953.986 | O126: 2810000 | P126: 141953.9863 | Q126: 27445.61644 | R126: 0 | S126: 0 | T126: 29015 | U126: 27445.61644 | V126: 2810000 | W126: 140384.6027
F127: 117 | G127: 2026-09-01 | H127: 2026-09-30 | I127: 30 | J127: 3 | K127: 2026-09-30 | L127: =VLOOKUP(YEAR(G127),Справочники!$C$3:$I$33,7,FALSE) -> 365 | M127: =VLOOKUP(YEAR(G127),Справочники!$C$3:$F$33,4,FALSE) -> 29015 | N127: 2950384.603 | O127: 2810000 | P127: 140384.6027 | Q127: 26560.27397 | R127: 0 | S127: 0 | T127: 29015 | U127: 26560.27397 | V127: 2810000 | W127: 137929.8767
F128: 118 | G128: 2026-10-01 | H128: 2026-10-31 | I128: 31 | J128: 6 | K128: 2026-11-02 | L128: =VLOOKUP(YEAR(G128),Справочники!$C$3:$I$33,7,FALSE) -> 365 | M128: =VLOOKUP(YEAR(G128),Справочники!$C$3:$F$33,4,FALSE) -> 29015 | N128: 2947929.877 | O128: 2810000 | P128: 137929.8767 | Q128: 27445.61644 | R128: 0 | S128: 0 | T128: 29015 | U128: 27445.61644 | V128: 2810000 | W128: 136360.4932
F129: 119 | G129: 2026-11-01 | H129: 2026-11-30 | I129: 30 | J129: 1 | K129: 2026-11-30 | L129: =VLOOKUP(YEAR(G129),Справочники!$C$3:$I$33,7,FALSE) -> 365 | M129: =VLOOKUP(YEAR(G129),Справочники!$C$3:$F$33,4,FALSE) -> 29015 | N129: 2946360.493 | O129: 2810000 | P129: 136360.4932 | Q129: 26560.27397 | R129: 0 | S129: 0 | T129: 29015 | U129: 26560.27397 | V129: 2810000 | W129: 133905.7671
F130: 120 | G130: 2026-12-01 | H130: 2026-12-31 | I130: 31 | J130: 4 | K130: 2026-12-31 | L130: =VLOOKUP(YEAR(G130),Справочники!$C$3:$I$33,7,FALSE) -> 365 | M130: =VLOOKUP(YEAR(G130),Справочники!$C$3:$F$33,4,FALSE) -> 29015 | N130: 2943905.767 | O130: 2810000 | P130: 133905.7671 | Q130: 27445.61644 | R130: 0 | S130: 0 | T130: 29015 | U130: 27445.61644 | V130: 2810000 | W130: 132336.3836
F131: 121 | G131: 2027-01-01 | H131: 2027-01-31 | I131: 31 | J131: 7 | K131: 2027-02-01 | L131: =VLOOKUP(YEAR(G131),Справочники!$C$3:$I$33,7,FALSE) -> 365 | M131: =VLOOKUP(YEAR(G131),Справочники!$C$3:$F$33,4,FALSE) -> 29625 | N131: 2942336.384 | O131: 2810000 | P131: 132336.3836 | Q131: 27445.61644 | R131: 0 | S131: 0 | T131: 29625 | U131: 27445.61644 | V131: 2810000 | W131: 130157
F132: 122 | G132: 2027-02-01 | H132: 2027-02-28 | I132: 28 | J132: 7 | K132: 2027-03-01 | L132: =VLOOKUP(YEAR(G132),Справочники!$C$3:$I$33,7,FALSE) -> 365 | M132: =VLOOKUP(YEAR(G132),Справочники!$C$3:$F$33,4,FALSE) -> 29625 | N132: 2940157 | O132: 2810000 | P132: 130157 | Q132: 24789.58904 | R132: 0 | S132: 0 | T132: 29625 | U132: 24789.58904 | V132: 2810000 | W132: 125321.589
F133: 123 | G133: 2027-03-01 | H133: 2027-03-31 | I133: 31 | J133: 3 | K133: 2027-03-31 | L133: =VLOOKUP(YEAR(G133),Справочники!$C$3:$I$33,7,FALSE) -> 365 | M133: =VLOOKUP(YEAR(G133),Справочники!$C$3:$F$33,4,FALSE) -> 29625 | N133: 2935321.589 | O133: 2810000 | P133: 125321.589 | Q133: 27445.61644 | R133: 0 | S133: 0 | T133: 29625 | U133: 27445.61644 | V133: 2810000 | W133: 123142.2055
F134: 124 | G134: 2027-04-01 | H134: 2027-04-30 | I134: 30 | J134: 5 | K134: 2027-04-30 | L134: =VLOOKUP(YEAR(G134),Справочники!$C$3:$I$33,7,FALSE) -> 365 | M134: =VLOOKUP(YEAR(G134),Справочники!$C$3:$F$33,4,FALSE) -> 29625 | N134: 2933142.205 | O134: 2810000 | P134: 123142.2055 | Q134: 26560.27397 | R134: 0 | S134: 0 | T134: 29625 | U134: 26560.27397 | V134: 2810000 | W134: 120077.4795
F135: 125 | G135: 2027-05-01 | H135: 2027-05-31 | I135: 31 | J135: 1 | K135: 2027-05-31 | L135: =VLOOKUP(YEAR(G135),Справочники!$C$3:$I$33,7,FALSE) -> 365 | M135: =VLOOKUP(YEAR(G135),Справочники!$C$3:$F$33,4,FALSE) -> 29625 | N135: 2930077.479 | O135: 2810000 | P135: 120077.4795 | Q135: 27445.61644 | R135: 0 | S135: 0 | T135: 29625 | U135: 27445.61644 | V135: 2810000 | W135: 117898.0959
F136: 126 | G136: 2027-06-01 | H136: 2027-06-30 | I136: 30 | J136: 3 | K136: 2027-06-30 | L136: =VLOOKUP(YEAR(G136),Справочники!$C$3:$I$33,7,FALSE) -> 365 | M136: =VLOOKUP(YEAR(G136),Справочники!$C$3:$F$33,4,FALSE) -> 29625 | N136: 2927898.096 | O136: 2810000 | P136: 117898.0959 | Q136: 26560.27397 | R136: 0 | S136: 0 | T136: 29625 | U136: 26560.27397 | V136: 2810000 | W136: 114833.3699
F137: 127 | G137: 2027-07-01 | H137: 2027-07-31 | I137: 31 | J137: 6 | K137: 2027-08-02 | L137: =VLOOKUP(YEAR(G137),Справочники!$C$3:$I$33,7,FALSE) -> 365 | M137: =VLOOKUP(YEAR(G137),Справочники!$C$3:$F$33,4,FALSE) -> 29625 | N137: 2924833.37 | O137: 2810000 | P137: 114833.3699 | Q137: 27445.61644 | R137: 0 | S137: 0 | T137: 29625 | U137: 27445.61644 | V137: 2810000 | W137: 112653.9863
F138: 128 | G138: 2027-08-01 | H138: 2027-08-31 | I138: 31 | J138: 2 | K138: 2027-08-31 | L138: =VLOOKUP(YEAR(G138),Справочники!$C$3:$I$33,7,FALSE) -> 365 | M138: =VLOOKUP(YEAR(G138),Справочники!$C$3:$F$33,4,FALSE) -> 29625 | N138: 2922653.986 | O138: 2810000 | P138: 112653.9863 | Q138: 27445.61644 | R138: 0 | S138: 0 | T138: 29625 | U138: 27445.61644 | V138: 2810000 | W138: 110474.6027
F139: 129 | G139: 2027-09-01 | H139: 2027-09-30 | I139: 30 | J139: 4 | K139: 2027-09-30 | L139: =VLOOKUP(YEAR(G139),Справочники!$C$3:$I$33,7,FALSE) -> 365 | M139: =VLOOKUP(YEAR(G139),Справочники!$C$3:$F$33,4,FALSE) -> 29625 | N139: 2920474.603 | O139: 2810000 | P139: 110474.6027 | Q139: 26560.27397 | R139: 0 | S139: 0 | T139: 29625 | U139: 26560.27397 | V139: 2810000 | W139: =P139+U139-T139 -> 107409.8767
F140: 130 | G140: 2027-10-01 | H140: =EOMONTH(G140,0) -> 2027-10-31 | I140: 31 | J140: =WEEKDAY(H140,11) -> 7 | K140: =WORKDAY(H140,IF(OR(J140=6,J140=7),1,0)) -> 2027-11-01 | L140: =VLOOKUP(YEAR(G140),Справочники!$C$3:$I$33,7,FALSE) -> 365 | M140: =VLOOKUP(YEAR(G140),Справочники!$C$3:$F$33,4,FALSE) -> 29625 | N140: =O140+P140 -> 2917409.877 | O140: 2810000 | P140: 107409.8767 | Q140: 27445.61644 | R140: =MIN(M140-T140-S140,O140) -> 0 | S140: =MIN(M140-T140,Q140) -> 0 | T140: =MIN(M140,P140) -> 29625 | U140: 27445.61644 | V140: =O140-R140 -> 2810000 | W140: 105230.4932
F141: 131 | G141: =H140+1 -> 2027-11-01 | H141: 2027-11-30 | I141: =H141-G141+1 -> 30 | J141: 2 | K141: 2027-11-30 | L141: =VLOOKUP(YEAR(G141),Справочники!$C$3:$I$33,7,FALSE) -> 365 | M141: =VLOOKUP(YEAR(G141),Справочники!$C$3:$F$33,4,FALSE) -> 29625 | N141: 2915230.493 | O141: =V140 -> 2810000 | P141: 105230.4932 | Q141: =O141*$D$4/L141*I141 -> 26560.27397 | R141: 0 | S141: 0 | T141: 29625 | U141: =MAX(Q141-S141,0) -> 26560.27397 | V141: 2810000 | W141: 102165.7671
F142: 132 | G142: 2027-12-01 | H142: 2027-12-31 | I142: 31 | J142: 5 | K142: 2027-12-31 | L142: =VLOOKUP(YEAR(G142),Справочники!$C$3:$I$33,7,FALSE) -> 365 | M142: =VLOOKUP(YEAR(G142),Справочники!$C$3:$F$33,4,FALSE) -> 29625 | N142: 2912165.767 | O142: 2810000 | P142: 102165.7671 | Q142: 27445.61644 | R142: 0 | S142: 0 | T142: 29625 | U142: 27445.61644 | V142: 2810000 | W142: 99986.38356
F143: 133 | G143: 2028-01-01 | H143: 2028-01-31 | I143: 31 | J143: 1 | K143: 2028-01-31 | L143: =VLOOKUP(YEAR(G143),Справочники!$C$3:$I$33,7,FALSE) -> 366 | M143: =VLOOKUP(YEAR(G143),Справочники!$C$3:$F$33,4,FALSE) -> 30245 | N143: 2909986.384 | O143: 2810000 | P143: 99986.38356 | Q143: 27370.62842 | R143: 0 | S143: 0 | T143: 30245 | U143: 27370.62842 | V143: 2810000 | W143: 97112.01198
F144: 134 | G144: 2028-02-01 | H144: 2028-02-29 | I144: 29 | J144: 2 | K144: 2028-02-29 | L144: =VLOOKUP(YEAR(G144),Справочники!$C$3:$I$33,7,FALSE) -> 366 | M144: =VLOOKUP(YEAR(G144),Справочники!$C$3:$F$33,4,FALSE) -> 30245 | N144: 2907112.012 | O144: 2810000 | P144: 97112.01198 | Q144: 25604.78142 | R144: 0 | S144: 0 | T144: 30245 | U144: 25604.78142 | V144: 2810000 | W144: 92471.7934
F145: 135 | G145: 2028-03-01 | H145: 2028-03-31 | I145: 31 | J145: 5 | K145: 2028-03-31 | L145: =VLOOKUP(YEAR(G145),Справочники!$C$3:$I$33,7,FALSE) -> 366 | M145: =VLOOKUP(YEAR(G145),Справочники!$C$3:$F$33,4,FALSE) -> 30245 | N145: 2902471.793 | O145: 2810000 | P145: 92471.7934 | Q145: 27370.62842 | R145: 0 | S145: 0 | T145: 30245 | U145: 27370.62842 | V145: 2810000 | W145: 89597.42181
F146: 136 | G146: 2028-04-01 | H146: 2028-04-30 | I146: 30 | J146: 7 | K146: 2028-05-01 | L146: =VLOOKUP(YEAR(G146),Справочники!$C$3:$I$33,7,FALSE) -> 366 | M146: =VLOOKUP(YEAR(G146),Справочники!$C$3:$F$33,4,FALSE) -> 30245 | N146: 2899597.422 | O146: 2810000 | P146: 89597.42181 | Q146: 26487.70492 | R146: 0 | S146: 0 | T146: 30245 | U146: 26487.70492 | V146: 2810000 | W146: 85840.12673
F147: 137 | G147: 2028-05-01 | H147: 2028-05-31 | I147: 31 | J147: 3 | K147: 2028-05-31 | L147: =VLOOKUP(YEAR(G147),Справочники!$C$3:$I$33,7,FALSE) -> 366 | M147: =VLOOKUP(YEAR(G147),Справочники!$C$3:$F$33,4,FALSE) -> 30245 | N147: 2895840.127 | O147: 2810000 | P147: 85840.12673 | Q147: 27370.62842 | R147: 0 | S147: 0 | T147: 30245 | U147: 27370.62842 | V147: 2810000 | W147: 82965.75515
F148: 138 | G148: 2028-06-01 | H148: 2028-06-30 | I148: 30 | J148: 5 | K148: 2028-06-30 | L148: =VLOOKUP(YEAR(G148),Справочники!$C$3:$I$33,7,FALSE) -> 366 | M148: =VLOOKUP(YEAR(G148),Справочники!$C$3:$F$33,4,FALSE) -> 30245 | N148: 2892965.755 | O148: 2810000 | P148: 82965.75515 | Q148: 26487.70492 | R148: 0 | S148: 0 | T148: 30245 | U148: 26487.70492 | V148: 2810000 | W148: 79208.46006
F149: 139 | G149: 2028-07-01 | H149: 2028-07-31 | I149: 31 | J149: 1 | K149: 2028-07-31 | L149: =VLOOKUP(YEAR(G149),Справочники!$C$3:$I$33,7,FALSE) -> 366 | M149: =VLOOKUP(YEAR(G149),Справочники!$C$3:$F$33,4,FALSE) -> 30245 | N149: 2889208.46 | O149: 2810000 | P149: 79208.46006 | Q149: 27370.62842 | R149: 0 | S149: 0 | T149: 30245 | U149: 27370.62842 | V149: 2810000 | W149: 76334.08848
F150: 140 | G150: 2028-08-01 | H150: 2028-08-31 | I150: 31 | J150: 4 | K150: 2028-08-31 | L150: =VLOOKUP(YEAR(G150),Справочники!$C$3:$I$33,7,FALSE) -> 366 | M150: =VLOOKUP(YEAR(G150),Справочники!$C$3:$F$33,4,FALSE) -> 30245 | N150: 2886334.088 | O150: 2810000 | P150: 76334.08848 | Q150: 27370.62842 | R150: 0 | S150: 0 | T150: 30245 | U150: 27370.62842 | V150: 2810000 | W150: 73459.71689
F151: 141 | G151: 2028-09-01 | H151: 2028-09-30 | I151: 30 | J151: 6 | K151: 2028-10-02 | L151: =VLOOKUP(YEAR(G151),Справочники!$C$3:$I$33,7,FALSE) -> 366 | M151: =VLOOKUP(YEAR(G151),Справочники!$C$3:$F$33,4,FALSE) -> 30245 | N151: 2883459.717 | O151: 2810000 | P151: 73459.71689 | Q151: 26487.70492 | R151: 0 | S151: 0 | T151: 30245 | U151: 26487.70492 | V151: 2810000 | W151: 69702.42181
F152: 142 | G152: 2028-10-01 | H152: 2028-10-31 | I152: 31 | J152: 2 | K152: 2028-10-31 | L152: =VLOOKUP(YEAR(G152),Справочники!$C$3:$I$33,7,FALSE) -> 366 | M152: =VLOOKUP(YEAR(G152),Справочники!$C$3:$F$33,4,FALSE) -> 30245 | N152: 2879702.422 | O152: 2810000 | P152: 69702.42181 | Q152: 27370.62842 | R152: 0 | S152: 0 | T152: 30245 | U152: 27370.62842 | V152: 2810000 | W152: 66828.05023
F153: 143 | G153: 2028-11-01 | H153: 2028-11-30 | I153: 30 | J153: 4 | K153: 2028-11-30 | L153: =VLOOKUP(YEAR(G153),Справочники!$C$3:$I$33,7,FALSE) -> 366 | M153: =VLOOKUP(YEAR(G153),Справочники!$C$3:$F$33,4,FALSE) -> 30245 | N153: 2876828.05 | O153: 2810000 | P153: 66828.05023 | Q153: 26487.70492 | R153: 0 | S153: 0 | T153: 30245 | U153: 26487.70492 | V153: 2810000 | W153: 63070.75515
F154: 144 | G154: 2028-12-01 | H154: 2028-12-31 | I154: 31 | J154: 7 | K154: 2029-01-01 | L154: =VLOOKUP(YEAR(G154),Справочники!$C$3:$I$33,7,FALSE) -> 366 | M154: =VLOOKUP(YEAR(G154),Справочники!$C$3:$F$33,4,FALSE) -> 30245 | N154: 2873070.755 | O154: 2810000 | P154: 63070.75515 | Q154: 27370.62842 | R154: 0 | S154: 0 | T154: 30245 | U154: 27370.62842 | V154: 2810000 | W154: 60196.38356
F155: 145 | G155: 2029-01-01 | H155: 2029-01-31 | I155: 31 | J155: 3 | K155: 2029-01-31 | L155: =VLOOKUP(YEAR(G155),Справочники!$C$3:$I$33,7,FALSE) -> 365 | M155: =VLOOKUP(YEAR(G155),Справочники!$C$3:$F$33,4,FALSE) -> 30850 | N155: 2870196.384 | O155: 2810000 | P155: 60196.38356 | Q155: 27445.61644 | R155: 0 | S155: 0 | T155: 30850 | U155: 27445.61644 | V155: 2810000 | W155: 56792
F156: 146 | G156: 2029-02-01 | H156: 2029-02-28 | I156: 28 | J156: 3 | K156: 2029-02-28 | L156: =VLOOKUP(YEAR(G156),Справочники!$C$3:$I$33,7,FALSE) -> 365 | M156: =VLOOKUP(YEAR(G156),Справочники!$C$3:$F$33,4,FALSE) -> 30850 | N156: 2866792 | O156: 2810000 | P156: 56792 | Q156: 24789.58904 | R156: 0 | S156: 0 | T156: 30850 | U156: 24789.58904 | V156: 2810000 | W156: 50731.58904
F157: 147 | G157: 2029-03-01 | H157: 2029-03-31 | I157: 31 | J157: 6 | K157: 2029-04-02 | L157: =VLOOKUP(YEAR(G157),Справочники!$C$3:$I$33,7,FALSE) -> 365 | M157: =VLOOKUP(YEAR(G157),Справочники!$C$3:$F$33,4,FALSE) -> 30850 | N157: 2860731.589 | O157: 2810000 | P157: 50731.58904 | Q157: 27445.61644 | R157: 0 | S157: 0 | T157: 30850 | U157: 27445.61644 | V157: 2810000 | W157: 47327.20548
F158: 148 | G158: 2029-04-01 | H158: 2029-04-30 | I158: 30 | J158: 1 | K158: 2029-04-30 | L158: =VLOOKUP(YEAR(G158),Справочники!$C$3:$I$33,7,FALSE) -> 365 | M158: =VLOOKUP(YEAR(G158),Справочники!$C$3:$F$33,4,FALSE) -> 30850 | N158: 2857327.205 | O158: 2810000 | P158: 47327.20548 | Q158: 26560.27397 | R158: 0 | S158: 0 | T158: 30850 | U158: 26560.27397 | V158: 2810000 | W158: 43037.47945
F159: 149 | G159: 2029-05-01 | H159: 2029-05-31 | I159: 31 | J159: 4 | K159: 2029-05-31 | L159: =VLOOKUP(YEAR(G159),Справочники!$C$3:$I$33,7,FALSE) -> 365 | M159: =VLOOKUP(YEAR(G159),Справочники!$C$3:$F$33,4,FALSE) -> 30850 | N159: 2853037.479 | O159: 2810000 | P159: 43037.47945 | Q159: 27445.61644 | R159: 0 | S159: 0 | T159: 30850 | U159: 27445.61644 | V159: 2810000 | W159: 39633.09589
F160: 150 | G160: 2029-06-01 | H160: 2029-06-30 | I160: 30 | J160: 6 | K160: 2029-07-02 | L160: =VLOOKUP(YEAR(G160),Справочники!$C$3:$I$33,7,FALSE) -> 365 | M160: =VLOOKUP(YEAR(G160),Справочники!$C$3:$F$33,4,FALSE) -> 30850 | N160: 2849633.096 | O160: 2810000 | P160: 39633.09589 | Q160: 26560.27397 | R160: 0 | S160: 0 | T160: 30850 | U160: 26560.27397 | V160: 2810000 | W160: 35343.36986
F161: 151 | G161: 2029-07-01 | H161: 2029-07-31 | I161: 31 | J161: 2 | K161: 2029-07-31 | L161: =VLOOKUP(YEAR(G161),Справочники!$C$3:$I$33,7,FALSE) -> 365 | M161: =VLOOKUP(YEAR(G161),Справочники!$C$3:$F$33,4,FALSE) -> 30850 | N161: 2845343.37 | O161: 2810000 | P161: 35343.36986 | Q161: 27445.61644 | R161: 0 | S161: 0 | T161: 30850 | U161: 27445.61644 | V161: 2810000 | W161: 31938.9863
F162: 152 | G162: 2029-08-01 | H162: 2029-08-31 | I162: 31 | J162: 5 | K162: 2029-08-31 | L162: =VLOOKUP(YEAR(G162),Справочники!$C$3:$I$33,7,FALSE) -> 365 | M162: =VLOOKUP(YEAR(G162),Справочники!$C$3:$F$33,4,FALSE) -> 30850 | N162: 2841938.986 | O162: 2810000 | P162: 31938.9863 | Q162: 27445.61644 | R162: 0 | S162: 0 | T162: 30850 | U162: 27445.61644 | V162: 2810000 | W162: 28534.60274
F163: 153 | G163: 2029-09-01 | H163: 2029-09-30 | I163: 30 | J163: 7 | K163: 2029-10-01 | L163: =VLOOKUP(YEAR(G163),Справочники!$C$3:$I$33,7,FALSE) -> 365 | M163: =VLOOKUP(YEAR(G163),Справочники!$C$3:$F$33,4,FALSE) -> 30850 | N163: 2838534.603 | O163: 2810000 | P163: 28534.60274 | Q163: 26560.27397 | R163: 0 | S163: 2315.39726 | T163: 28534.60274 | U163: 24244.87671 | V163: 2810000 | W163: 24244.87671
F164: 154 | G164: 2029-10-01 | H164: 2029-10-31 | I164: 31 | J164: 3 | K164: 2029-10-31 | L164: =VLOOKUP(YEAR(G164),Справочники!$C$3:$I$33,7,FALSE) -> 365 | M164: =VLOOKUP(YEAR(G164),Справочники!$C$3:$F$33,4,FALSE) -> 30850 | N164: 2834244.877 | O164: 2810000 | P164: 24244.87671 | Q164: 27445.61644 | R164: 0 | S164: 6605.123288 | T164: 24244.87671 | U164: 20840.49315 | V164: 2810000 | W164: 20840.49315
F165: 155 | G165: 2029-11-01 | H165: 2029-11-30 | I165: 30 | J165: 5 | K165: 2029-11-30 | L165: =VLOOKUP(YEAR(G165),Справочники!$C$3:$I$33,7,FALSE) -> 365 | M165: =VLOOKUP(YEAR(G165),Справочники!$C$3:$F$33,4,FALSE) -> 30850 | N165: 2830840.493 | O165: 2810000 | P165: 20840.49315 | Q165: 26560.27397 | R165: 0 | S165: 10009.50685 | T165: 20840.49315 | U165: 16550.76712 | V165: 2810000 | W165: 16550.76712
F166: 156 | G166: 2029-12-01 | H166: 2029-12-31 | I166: 31 | J166: 1 | K166: 2029-12-31 | L166: =VLOOKUP(YEAR(G166),Справочники!$C$3:$I$33,7,FALSE) -> 365 | M166: =VLOOKUP(YEAR(G166),Справочники!$C$3:$F$33,4,FALSE) -> 30850 | N166: 2826550.767 | O166: 2810000 | P166: 16550.76712 | Q166: 27445.61644 | R166: 0 | S166: 14299.23288 | T166: 16550.76712 | U166: 13146.38356 | V166: 2810000 | W166: 13146.38356
F167: 157 | G167: 2030-01-01 | H167: 2030-01-31 | I167: 31 | J167: 4 | K167: 2030-01-31 | L167: =VLOOKUP(YEAR(G167),Справочники!$C$3:$I$33,7,FALSE) -> 365 | M167: =VLOOKUP(YEAR(G167),Справочники!$C$3:$F$33,4,FALSE) -> 31435 | N167: 2823146.384 | O167: 2810000 | P167: 13146.38356 | Q167: 27445.61644 | R167: 0 | S167: 18288.61644 | T167: 13146.38356 | U167: 9157 | V167: 2810000 | W167: 9157
F168: 158 | G168: 2030-02-01 | H168: 2030-02-28 | I168: 28 | J168: 4 | K168: 2030-02-28 | L168: =VLOOKUP(YEAR(G168),Справочники!$C$3:$I$33,7,FALSE) -> 365 | M168: =VLOOKUP(YEAR(G168),Справочники!$C$3:$F$33,4,FALSE) -> 31435 | N168: 2819157 | O168: 2810000 | P168: 9157 | Q168: 24789.58904 | R168: 0 | S168: 22278 | T168: 9157 | U168: 2511.589041 | V168: 2810000 | W168: 2511.589041
F169: 159 | G169: 2030-03-01 | H169: 2030-03-31 | I169: 31 | J169: 7 | K169: 2030-04-01 | L169: =VLOOKUP(YEAR(G169),Справочники!$C$3:$I$33,7,FALSE) -> 365 | M169: =VLOOKUP(YEAR(G169),Справочники!$C$3:$F$33,4,FALSE) -> 31435 | N169: 2812511.589 | O169: 2810000 | P169: 2511.589041 | Q169: 27445.61644 | R169: 1477.794521 | S169: 27445.61644 | T169: 2511.589041 | U169: 0 | V169: 2808522.205 | W169: 0
F170: 160 | G170: 2030-04-01 | H170: 2030-04-30 | I170: 30 | J170: 2 | K170: 2030-04-30 | L170: =VLOOKUP(YEAR(G170),Справочники!$C$3:$I$33,7,FALSE) -> 365 | M170: =VLOOKUP(YEAR(G170),Справочники!$C$3:$F$33,4,FALSE) -> 31435 | N170: 2808522.205 | O170: 2808522.205 | P170: 0 | Q170: 26546.30578 | R170: 4888.694222 | S170: 26546.30578 | T170: 0 | U170: 0 | V170: 2803633.511 | W170: 0
F171: 161 | G171: 2030-05-01 | H171: 2030-05-31 | I171: 31 | J171: 5 | K171: 2030-05-31 | L171: =VLOOKUP(YEAR(G171),Справочники!$C$3:$I$33,7,FALSE) -> 365 | M171: =VLOOKUP(YEAR(G171),Справочники!$C$3:$F$33,4,FALSE) -> 31435 | N171: 2803633.511 | O171: 2803633.511 | P171: 0 | Q171: 27383.43416 | R171: 4051.565842 | S171: 27383.43416 | T171: 0 | U171: 0 | V171: 2799581.945 | W171: 0
F172: 162 | G172: 2030-06-01 | H172: 2030-06-30 | I172: 30 | J172: 7 | K172: 2030-07-01 | L172: =VLOOKUP(YEAR(G172),Справочники!$C$3:$I$33,7,FALSE) -> 365 | M172: =VLOOKUP(YEAR(G172),Справочники!$C$3:$F$33,4,FALSE) -> 31435 | N172: 2799581.945 | O172: 2799581.945 | P172: 0 | Q172: 26461.80195 | R172: 4973.19805 | S172: 26461.80195 | T172: 0 | U172: 0 | V172: 2794608.747 | W172: 0
F173: 163 | G173: 2030-07-01 | H173: 2030-07-31 | I173: 31 | J173: 3 | K173: 2030-07-31 | L173: =VLOOKUP(YEAR(G173),Справочники!$C$3:$I$33,7,FALSE) -> 365 | M173: =VLOOKUP(YEAR(G173),Справочники!$C$3:$F$33,4,FALSE) -> 31435 | N173: 2794608.747 | O173: 2794608.747 | P173: 0 | Q173: 27295.28818 | R173: 4139.711824 | S173: 27295.28818 | T173: 0 | U173: 0 | V173: 2790469.036 | W173: 0
F174: 164 | G174: 2030-08-01 | H174: 2030-08-31 | I174: 31 | J174: 6 | K174: 2030-09-02 | L174: =VLOOKUP(YEAR(G174),Справочники!$C$3:$I$33,7,FALSE) -> 365 | M174: =VLOOKUP(YEAR(G174),Справочники!$C$3:$F$33,4,FALSE) -> 31435 | N174: 2790469.036 | O174: 2790469.036 | P174: 0 | Q174: 27254.8551 | R174: 4180.144899 | S174: 27254.8551 | T174: 0 | U174: 0 | V174: 2786288.891 | W174: 0
F175: 165 | G175: 2030-09-01 | H175: 2030-09-30 | I175: 30 | J175: 1 | K175: 2030-09-30 | L175: =VLOOKUP(YEAR(G175),Справочники!$C$3:$I$33,7,FALSE) -> 365 | M175: =VLOOKUP(YEAR(G175),Справочники!$C$3:$F$33,4,FALSE) -> 31435 | N175: 2786288.891 | O175: 2786288.891 | P175: 0 | Q175: 26336.15527 | R175: 5098.844732 | S175: 26336.15527 | T175: 0 | U175: 0 | V175: 2781190.046 | W175: 0
F176: 166 | G176: 2030-10-01 | H176: 2030-10-31 | I176: 31 | J176: 4 | K176: 2030-10-31 | L176: =VLOOKUP(YEAR(G176),Справочники!$C$3:$I$33,7,FALSE) -> 365 | M176: =VLOOKUP(YEAR(G176),Справочники!$C$3:$F$33,4,FALSE) -> 31435 | N176: 2781190.046 | O176: 2781190.046 | P176: 0 | Q176: 27164.22606 | R176: 4270.773935 | S176: 27164.22606 | T176: 0 | U176: 0 | V176: 2776919.272 | W176: 0
F177: 167 | G177: 2030-11-01 | H177: 2030-11-30 | I177: 30 | J177: 6 | K177: 2030-12-02 | L177: =VLOOKUP(YEAR(G177),Справочники!$C$3:$I$33,7,FALSE) -> 365 | M177: =VLOOKUP(YEAR(G177),Справочники!$C$3:$F$33,4,FALSE) -> 31435 | N177: 2776919.272 | O177: 2776919.272 | P177: 0 | Q177: 26247.59312 | R177: 5187.406881 | S177: 26247.59312 | T177: 0 | U177: 0 | V177: 2771731.865 | W177: 0
F178: 168 | G178: 2030-12-01 | H178: 2030-12-31 | I178: 31 | J178: 2 | K178: 2030-12-31 | L178: =VLOOKUP(YEAR(G178),Справочники!$C$3:$I$33,7,FALSE) -> 365 | M178: =VLOOKUP(YEAR(G178),Справочники!$C$3:$F$33,4,FALSE) -> 31435 | N178: 2771731.865 | O178: 2771731.865 | P178: 0 | Q178: 27071.84685 | R178: 4363.153153 | S178: 27071.84685 | T178: 0 | U178: 0 | V178: 2767368.712 | W178: 0
F179: 169 | G179: 2031-01-01 | H179: 2031-01-31 | I179: 31 | J179: 5 | K179: 2031-01-31 | L179: =VLOOKUP(YEAR(G179),Справочники!$C$3:$I$33,7,FALSE) -> 365 | M179: =VLOOKUP(YEAR(G179),Справочники!$C$3:$F$33,4,FALSE) -> 32065 | N179: 2767368.712 | O179: 2767368.712 | P179: 0 | Q179: 27029.23139 | R179: 5035.768608 | S179: 27029.23139 | T179: 0 | U179: 0 | V179: 2762332.943 | W179: 0
F180: 170 | G180: 2031-02-01 | H180: 2031-02-28 | I180: 28 | J180: 5 | K180: 2031-02-28 | L180: =VLOOKUP(YEAR(G180),Справочники!$C$3:$I$33,7,FALSE) -> 365 | M180: =VLOOKUP(YEAR(G180),Справочники!$C$3:$F$33,4,FALSE) -> 32065 | N180: 2762332.943 | O180: 2762332.943 | P180: 0 | Q180: 24369.07419 | R180: 7695.925815 | S180: 24369.07419 | T180: 0 | U180: 0 | V180: 2754637.018 | W180: 0
F181: 171 | G181: 2031-03-01 | H181: 2031-03-31 | I181: 31 | J181: 1 | K181: 2031-03-31 | L181: =VLOOKUP(YEAR(G181),Справочники!$C$3:$I$33,7,FALSE) -> 365 | M181: =VLOOKUP(YEAR(G181),Справочники!$C$3:$F$33,4,FALSE) -> 32065 | N181: 2754637.018 | O181: 2754637.018 | P181: 0 | Q181: 26904.87936 | R181: 5160.120637 | S181: 26904.87936 | T181: 0 | U181: 0 | V181: 2749476.897 | W181: 0
F182: 172 | G182: 2031-04-01 | H182: 2031-04-30 | I182: 30 | J182: 3 | K182: 2031-04-30 | L182: =VLOOKUP(YEAR(G182),Справочники!$C$3:$I$33,7,FALSE) -> 365 | M182: =VLOOKUP(YEAR(G182),Справочники!$C$3:$F$33,4,FALSE) -> 32065 | N182: 2749476.897 | O182: 2749476.897 | P182: 0 | Q182: 25988.20629 | R182: 6076.793714 | S182: 25988.20629 | T182: 0 | U182: 0 | V182: 2743400.103 | W182: 0
F183: 173 | G183: 2031-05-01 | H183: 2031-05-31 | I183: 31 | J183: 6 | K183: 2031-06-02 | L183: =VLOOKUP(YEAR(G183),Справочники!$C$3:$I$33,7,FALSE) -> 365 | M183: =VLOOKUP(YEAR(G183),Справочники!$C$3:$F$33,4,FALSE) -> 32065 | N183: 2743400.103 | O183: 2743400.103 | P183: 0 | Q183: 26795.12704 | R183: 5269.872965 | S183: 26795.12704 | T183: 0 | U183: 0 | V183: 2738130.23 | W183: 0
F184: 174 | G184: 2031-06-01 | H184: 2031-06-30 | I184: 30 | J184: 1 | K184: 2031-06-30 | L184: =VLOOKUP(YEAR(G184),Справочники!$C$3:$I$33,7,FALSE) -> 365 | M184: =VLOOKUP(YEAR(G184),Справочники!$C$3:$F$33,4,FALSE) -> 32065 | N184: 2738130.23 | O184: 2738130.23 | P184: 0 | Q184: 25880.95697 | R184: 6184.04303 | S184: 25880.95697 | T184: 0 | U184: 0 | V184: 2731946.187 | W184: 0
F185: 175 | G185: 2031-07-01 | H185: 2031-07-31 | I185: 31 | J185: 4 | K185: 2031-07-31 | L185: =VLOOKUP(YEAR(G185),Справочники!$C$3:$I$33,7,FALSE) -> 365 | M185: =VLOOKUP(YEAR(G185),Справочники!$C$3:$F$33,4,FALSE) -> 32065 | N185: 2731946.187 | O185: 2731946.187 | P185: 0 | Q185: 26683.25523 | R185: 5381.744775 | S185: 26683.25523 | T185: 0 | U185: 0 | V185: 2726564.442 | W185: 0
F186: 176 | G186: 2031-08-01 | H186: 2031-08-31 | I186: 31 | J186: 7 | K186: 2031-09-01 | L186: =VLOOKUP(YEAR(G186),Справочники!$C$3:$I$33,7,FALSE) -> 365 | M186: =VLOOKUP(YEAR(G186),Справочники!$C$3:$F$33,4,FALSE) -> 32065 | N186: 2726564.442 | O186: 2726564.442 | P186: 0 | Q186: 26630.69106 | R186: 5434.308939 | S186: 26630.69106 | T186: 0 | U186: 0 | V186: 2721130.133 | W186: 0
F187: 177 | G187: 2031-09-01 | H187: 2031-09-30 | I187: 30 | J187: 2 | K187: 2031-09-30 | L187: =VLOOKUP(YEAR(G187),Справочники!$C$3:$I$33,7,FALSE) -> 365 | M187: =VLOOKUP(YEAR(G187),Справочники!$C$3:$F$33,4,FALSE) -> 32065 | N187: 2721130.133 | O187: 2721130.133 | P187: 0 | Q187: 25720.27112 | R187: 6344.728876 | S187: 25720.27112 | T187: 0 | U187: 0 | V187: 2714785.405 | W187: 0
F188: 178 | G188: 2031-10-01 | H188: 2031-10-31 | I188: 31 | J188: 5 | K188: 2031-10-31 | L188: =VLOOKUP(YEAR(G188),Справочники!$C$3:$I$33,7,FALSE) -> 365 | M188: =VLOOKUP(YEAR(G188),Справочники!$C$3:$F$33,4,FALSE) -> 32065 | N188: 2714785.405 | O188: 2714785.405 | P188: 0 | Q188: 26515.64375 | R188: 5549.356254 | S188: 26515.64375 | T188: 0 | U188: 0 | V188: 2709236.048 | W188: 0
F189: 179 | G189: 2031-11-01 | H189: 2031-11-30 | I189: 30 | J189: 7 | K189: 2031-12-01 | L189: =VLOOKUP(YEAR(G189),Справочники!$C$3:$I$33,7,FALSE) -> 365 | M189: =VLOOKUP(YEAR(G189),Справочники!$C$3:$F$33,4,FALSE) -> 32065 | N189: 2709236.048 | O189: 2709236.048 | P189: 0 | Q189: 25607.84758 | R189: 6457.15242 | S189: 25607.84758 | T189: 0 | U189: 0 | V189: 2702778.896 | W189: 0
F190: 180 | G190: 2031-12-01 | H190: 2031-12-31 | I190: 31 | J190: 3 | K190: 2031-12-31 | L190: =VLOOKUP(YEAR(G190),Справочники!$C$3:$I$33,7,FALSE) -> 365 | M190: =VLOOKUP(YEAR(G190),Справочники!$C$3:$F$33,4,FALSE) -> 32065 | N190: 2702778.896 | O190: 2702778.896 | P190: 0 | Q190: 26398.3747 | R190: 5666.625304 | S190: 26398.3747 | T190: 0 | U190: 0 | V190: 2697112.271 | W190: 0
F191: 181 | G191: 2032-01-01 | H191: 2032-01-31 | I191: 31 | J191: 6 | K191: 2032-02-02 | L191: =VLOOKUP(YEAR(G191),Справочники!$C$3:$I$33,7,FALSE) -> 366 | M191: =VLOOKUP(YEAR(G191),Справочники!$C$3:$F$33,4,FALSE) -> 32705 | N191: 2697112.271 | O191: 2697112.271 | P191: 0 | Q191: 26271.05258 | R191: 6433.947419 | S191: 26271.05258 | T191: 0 | U191: 0 | V191: 2690678.323 | W191: 0
F192: 182 | G192: 2032-02-01 | H192: 2032-02-29 | I192: 29 | J192: 7 | K192: 2032-03-01 | L192: =VLOOKUP(YEAR(G192),Справочники!$C$3:$I$33,7,FALSE) -> 366 | M192: =VLOOKUP(YEAR(G192),Справочники!$C$3:$F$33,4,FALSE) -> 32705 | N192: 2690678.323 | O192: 2690678.323 | P192: 0 | Q192: 24517.51969 | R192: 8187.480307 | S192: 24517.51969 | T192: 0 | U192: 0 | V192: 2682490.843 | W192: 0
F193: 183 | G193: 2032-03-01 | H193: 2032-03-31 | I193: 31 | J193: 3 | K193: 2032-03-31 | L193: =VLOOKUP(YEAR(G193),Справочники!$C$3:$I$33,7,FALSE) -> 366 | M193: =VLOOKUP(YEAR(G193),Справочники!$C$3:$F$33,4,FALSE) -> 32705 | N193: 2682490.843 | O193: 2682490.843 | P193: 0 | Q193: 26128.63348 | R193: 6576.366517 | S193: 26128.63348 | T193: 0 | U193: 0 | V193: 2675914.476 | W193: 0
F194: 184 | G194: 2032-04-01 | H194: 2032-04-30 | I194: 30 | J194: 5 | K194: 2032-04-30 | L194: =VLOOKUP(YEAR(G194),Справочники!$C$3:$I$33,7,FALSE) -> 366 | M194: =VLOOKUP(YEAR(G194),Справочники!$C$3:$F$33,4,FALSE) -> 32705 | N194: 2675914.476 | O194: 2675914.476 | P194: 0 | Q194: 25223.784 | R194: 7481.216002 | S194: 25223.784 | T194: 0 | U194: 0 | V194: 2668433.26 | W194: 0
F195: 185 | G195: 2032-05-01 | H195: 2032-05-31 | I195: 31 | J195: 1 | K195: 2032-05-31 | L195: =VLOOKUP(YEAR(G195),Справочники!$C$3:$I$33,7,FALSE) -> 366 | M195: =VLOOKUP(YEAR(G195),Справочники!$C$3:$F$33,4,FALSE) -> 32705 | N195: 2668433.26 | O195: 2668433.26 | P195: 0 | Q195: 25991.70648 | R195: 6713.293516 | S195: 25991.70648 | T195: 0 | U195: 0 | V195: 2661719.967 | W195: 0
F196: 186 | G196: 2032-06-01 | H196: 2032-06-30 | I196: 30 | J196: 3 | K196: 2032-06-30 | L196: =VLOOKUP(YEAR(G196),Справочники!$C$3:$I$33,7,FALSE) -> 366 | M196: =VLOOKUP(YEAR(G196),Справочники!$C$3:$F$33,4,FALSE) -> 32705 | N196: 2661719.967 | O196: 2661719.967 | P196: 0 | Q196: 25089.98329 | R196: 7615.016706 | S196: 25089.98329 | T196: 0 | U196: 0 | V196: 2654104.95 | W196: 0
F197: 187 | G197: 2032-07-01 | H197: 2032-07-31 | I197: 31 | J197: 6 | K197: 2032-08-02 | L197: =VLOOKUP(YEAR(G197),Справочники!$C$3:$I$33,7,FALSE) -> 366 | M197: =VLOOKUP(YEAR(G197),Справочники!$C$3:$F$33,4,FALSE) -> 32705 | N197: 2654104.95 | O197: 2654104.95 | P197: 0 | Q197: 25852.14248 | R197: 6852.857521 | S197: 25852.14248 | T197: 0 | U197: 0 | V197: 2647252.093 | W197: 0
F198: 188 | G198: 2032-08-01 | H198: 2032-08-31 | I198: 31 | J198: 2 | K198: 2032-08-31 | L198: =VLOOKUP(YEAR(G198),Справочники!$C$3:$I$33,7,FALSE) -> 366 | M198: =VLOOKUP(YEAR(G198),Справочники!$C$3:$F$33,4,FALSE) -> 32705 | N198: 2647252.093 | O198: 2647252.093 | P198: 0 | Q198: 25785.39265 | R198: 6919.607349 | S198: 25785.39265 | T198: 0 | U198: 0 | V198: 2640332.485 | W198: 0
F199: 189 | G199: 2032-09-01 | H199: 2032-09-30 | I199: 30 | J199: 4 | K199: 2032-09-30 | L199: =VLOOKUP(YEAR(G199),Справочники!$C$3:$I$33,7,FALSE) -> 366 | M199: =VLOOKUP(YEAR(G199),Справочники!$C$3:$F$33,4,FALSE) -> 32705 | N199: 2640332.485 | O199: 2640332.485 | P199: 0 | Q199: 24888.37998 | R199: 7816.620016 | S199: 24888.37998 | T199: 0 | U199: 0 | V199: 2632515.865 | W199: 0
F200: 190 | G200: 2032-10-01 | H200: 2032-10-31 | I200: 31 | J200: 7 | K200: 2032-11-01 | L200: =VLOOKUP(YEAR(G200),Справочники!$C$3:$I$33,7,FALSE) -> 366 | M200: =VLOOKUP(YEAR(G200),Справочники!$C$3:$F$33,4,FALSE) -> 32705 | N200: 2632515.865 | O200: 2632515.865 | P200: 0 | Q200: 25641.85535 | R200: 7063.144646 | S200: 25641.85535 | T200: 0 | U200: 0 | V200: 2625452.721 | W200: 0
F201: 191 | G201: 2032-11-01 | H201: 2032-11-30 | I201: 30 | J201: 2 | K201: 2032-11-30 | L201: =VLOOKUP(YEAR(G201),Справочники!$C$3:$I$33,7,FALSE) -> 366 | M201: =VLOOKUP(YEAR(G201),Справочники!$C$3:$F$33,4,FALSE) -> 32705 | N201: 2625452.721 | O201: 2625452.721 | P201: 0 | Q201: 24748.11991 | R201: 7956.880093 | S201: 24748.11991 | T201: 0 | U201: 0 | V201: 2617495.841 | W201: 0
F202: 192 | G202: 2032-12-01 | H202: 2032-12-31 | I202: 31 | J202: 5 | K202: 2032-12-31 | L202: =VLOOKUP(YEAR(G202),Справочники!$C$3:$I$33,7,FALSE) -> 366 | M202: =VLOOKUP(YEAR(G202),Справочники!$C$3:$F$33,4,FALSE) -> 32705 | N202: 2617495.841 | O202: 2617495.841 | P202: 0 | Q202: 25495.55375 | R202: 7209.446253 | S202: 25495.55375 | T202: 0 | U202: 0 | V202: 2610286.394 | W202: 0
... 168 more rows

Sheet Справочники (hidden)
C2: Год | D2: Прогноз для расчета | E2: Индекс | F2: Прогноз ФГКУ в 2016г. | G2: Индекс | H2: Отклонение расчет/ФГКУ ("запас прочности") | I2: Ко-во дней в году | J2: Високосный (да/нет) | K2: Прогноз ФГКУ в 2017г. | L2: Индекс | M2: Справочник Банков для перечисления платежей участника НИС | O2: Сумма накоплений для оплаты ПВ | Q2: Процентная ставка | R2: Максимальная сумма по продукту | S2: Максимальная сумма кредита с учетом увеличение на размер неиспользованных накоплений | W2: Максимальный К/З
C3: 2016 | D3: 20490 | E3: - | F3: 20490 | G3: - | I3: =IF(J3="да",366,365) -> 366 | J3: да | M3: Столбец1 | O3: 1400000 | Q3: 0.115 | R3: 2100000 | S3: =R3+IF('Ввод данных'!$L$49="да",'Ввод данных'!$L$47,0) -> 2100000 | W3: 0.8
C4: 2017 | D4: 21678 | E4: 0.0581 | F4: 21678 | G4: =F4/F3-1 -> 0.0579795022 | H4: =D4/F4 -> 1 | I4: =IF(J4="да",366,365) -> 365 | J4: нет | K4: 21678 | L4: 0.0581 | M4: Сбербанк | Q4: 0.125 | R4: 1930000 | S4: =R4+IF('Ввод данных'!$L$49="да",'Ввод данных'!$L$47,0) -> 1930000
C5: 2018 | D5: =D4*(1+E5) -> 21678 | E5: 0 | F5: 23050 | G5: =F5/F4-1 -> 0.0632899714 | H5: =D5/F5 -> 0.9404772234 | I5: 365 | J5: нет | K5: 21678 | L5: 0 | M5: ВТБ24
C6: 2019 | D6: 21678 | E6: 0 | F6: 23995 | G6: 0.0409978308 | H6: 0.9034382163 | I6: 365 | J6: нет | K6: 21678 | L6: 0 | M6: Газпромбанк | O6: Период с даты подписания до даты выдачи КД, мес. | R6: минимальная сумма по продукту
C7: 2020 | D7: 21678 | E7: 0 | F7: 24810 | G7: 0.03396540946 | H7: 0.8737605804 | I7: 366 | J7: да | K7: 21678 | L7: 0 | M7: Связь-Банк | O7: 2 | R7: 300000
C8: 2021 | D8: 22350.018 | E8: 0.031 | F8: 25580 | G8: 0.03103587263 | H8: 0.8737301798 | I8: 365 | J8: нет | K8: 22350 | L8: 0.031 | M8: Зенит | O8: минимальный срок кредита, мес.
C9: 2022 | D9: 23020.51854 | E9: 0.03 | F9: 26345 | G9: 0.0299061767 | H9: 0.8738097757 | I9: 365 | J9: нет | K9: 23020.5 | L9: 0.03 | M9: Иной | O9: 3
C10: 2023 | D10: 23665.09306 | E10: 0.028 | F10: 27080 | G10: 0.02789903207 | H10: 0.8738956078 | I10: 365 | J10: нет | K10: 23665.1 | L10: 0.028
C11: 2024 | D11: 24304.05057 | E11: 0.027 | F11: 27810 | G11: 0.02695716396 | H11: 0.8739320594 | I11: 366 | J11: да | K11: 24304.1 | L11: 0.027 | O11: да
C12: 2025 | D12: 24838.73968 | E12: 0.022 | F12: 28420 | G12: 0.02193455592 | H12: 0.8739880255 | I12: 365 | J12: нет | K12: 24838.7 | L12: 0.022 | O12: нет
C13: 2026 | D13: 25360.35322 | E13: 0.021 | F13: 29015 | G13: 0.02093596059 | H13: 0.8740428474 | I13: 365 | J13: нет | K13: 25360.4 | L13: 0.021
C14: 2027 | D14: 25892.92064 | E14: 0.021 | F14: 29625 | G14: 0.02102360848 | H14: 0.8740226375 | I14: 365 | J14: нет | K14: 25892.9 | L14: 0.021 | O14: Максимальная сумма неиспользованных накоплений для увеличения суммы кредита
C15: 2028 | D15: 26436.67197 | E15: 0.021 | F15: 30245 | G15: 0.02092827004 | H15: 0.8740840459 | I15: 366 | J15: да | K15: 26436.7 | L15: 0.021 | O15: 600000
C16: 2029 | D16: 26965.40541 | E16: 0.02 | F16: 30850 | G16: 0.02000330633 | H16: 0.8740812126 | I16: 365 | J16: нет | K16: 26965.4 | L16: 0.02
C17: 2030 | D17: 27477.74811 | E17: 0.019 | F17: 31435 | G17: 0.01896272285 | H17: 0.8741131895 | I17: 365 | J17: нет | K17: 27477.7 | L17: 0.019
C18: 2031 | D18: 28027.30307 | E18: 0.02 | F18: 32065 | G18: 0.02004135518 | H18: 0.8740777506 | I18: 365 | J18: нет | K18: 28027.3 | L18: 0.02 | O18: Минимальный срок кредита, мес.
C19: 2032 | D19: 28587.84913 | E19: 0.02 | F19: 32705 | G19: 0.01995945735 | H19: 0.8741124946 | I19: 366 | J19: да | K19: 28587.8 | L19: 0.02 | O19: 36
C20: 2033 | D20: 29159.60612 | E20: 0.02 | F20: 33360 | G20: 0.02002751873 | H20: 0.8740889124 | I20: 365 | J20: нет | K20: 29159.6 | L20: 0.02
C21: 2034 | D21: 29742.79824 | E21: 0.02 | F21: 34025 | G21: 0.01993405276 | H21: 0.8741454295 | I21: 365 | J21: нет | K21: 29742.8 | L21: 0.02
C22: 2035 | D22: 30337.6542 | E22: 0.02 | F22: 34705 | G22: 0.01998530492 | H22: 0.8741580235 | I22: 365 | J22: нет | K22: 30337.7 | L22: 0.02
C23: 2036 | D23: 30944.40729 | E23: 0.02 | F23: 35400 | G23: 0.02002593286 | H23: 0.8741357991 | I23: 366 | J23: да | K23: 30944.4 | L23: 0.02
C24: 2037 | D24: 31563.29543 | E24: 0.02 | F24: 35400 | G24: 0 | H24: 0.8916185151 | I24: 365 | J24: нет | K24: 31563.3 | L24: 0.02
C25: 2038 | D25: 31563.29543 | E25: 0 | F25: 35400 | G25: 0 | H25: 0.8916185151 | I25: 365 | J25: нет
C26: 2039 | D26: 31563.29543 | E26: 0 | F26: 35400 | G26: 0 | H26: 0.8916185151 | I26: 365 | J26: нет
C27: 2040 | D27: 31563.29543 | E27: 0 | F27: 35400 | G27: 0 | H27: 0.8916185151 | I27: 366 | J27: да
C28: 2041 | D28: 31563.29543 | E28: 0 | F28: 35400 | G28: 0 | H28: 0.8916185151 | I28: 365 | J28: нет
C29: 2042 | D29: 31563.29543 | E29: 0 | F29: 35400 | G29: 0 | H29: 0.8916185151 | I29: 365 | J29: нет
C30: 2043 | D30: 31563.29543 | E30: 0 | F30: 35400 | G30: 0 | H30: 0.8916185151 | I30: 365 | J30: нет
C31: 2044 | D31: 31563.29543 | E31: 0 | F31: 35400 | G31: 0 | H31: 0.8916185151 | I31: 366 | J31: да
C32: 2045 | D32: 31563.29543 | E32: 0 | F32: 35400 | G32: 0 | H32: 0.8916185151 | I32: 365 | J32: нет
C33: 2046 | D33: 31563.29543 | E33: 0 | F33: 35400 | G33: 0 | H33: 0.8916185151 | I33: 365 | J33: нет

Sheet Анализ результатов (hidden)
C2: Платежи по стравочнику АИЖК | D2: Платежи по прогнозу ФГКУ | E2: "Запас по сроку"
B3: Возраст заемщика на дату окончания кредитного договора | C3: ='Ввод данных'!$L$32 -> 45 г 0 м | D3: ='Ввод данных'!$L$32 -> 45 г 0 м
B4: Возраст заемщика на расчетную дату погашание кредита, лет. | C4: ='График платежей'!$D$9 ->  | D4: ='График платежей_ФГКУ'!$D$9 -> 49.08055556 | E4: =C4-D4 -> 
